Capital or Revenue,Directorate,Transaction Number,Date,Service Area,Expenses Type,Amount,Supplier Name
Revenue,Community Wellbeing & Social Care,5105653486,05.09.2012,Homelessness,Accommodation Costs - Leaseholder Payments,695.89,REDACTED PERSONAL DATA
Revenue,Community Wellbeing & Social Care,5105653486,05.09.2012,Homelessness,Accommodation Costs - Leaseholder Payments,695.89,REDACTED PERSONAL DATA
Revenue,Community Wellbeing & Social Care,5105653486,05.09.2012,Homelessness,Accommodation Costs - Leaseholder Payments,695.89,REDACTED PERSONAL DATA
Revenue,Community Wellbeing & Social Care,5105653486,05.09.2012,Homelessness,Accommodation Costs - Leaseholder Payments,695.89,REDACTED PERSONAL DATA
Revenue,Community Wellbeing & Social Care,5105653486,05.09.2012,Homelessness,Accommodation Costs - Leaseholder Payments,695.89,REDACTED PERSONAL DATA
Revenue,Resources,5105650344,07.09.2012,Ryde Theatre Contract,Property Services - Planned Maintenance,600.00,REDACTED PERSONAL DATA
Revenue,"Chief Executive, Schools & Learning",5105657273,21.09.2012,Commissioning - Adult & Community Learning,Grants to External Bodies,"5,520.00",REDACTED PERSONAL DATA
Revenue,Community Wellbeing & Social Care,5105658672,28.09.2012,Youth & Community Service,Operational Equipment,990.00,REDACTED PERSONAL DATA
Capital,Resources,5105655167,12.09.2012,Capital Receipts,External Design and Supervision Fees,630.00,REDACTED PERSONAL DATA
Revenue,Resources,5105654157,07.09.2012,Coroner,Consultants Fees,663.04,REDACTED PERSONAL DATA
Revenue,Economy & Environment,1900561219,05.09.2012,Crematorium,Professional Services,860.00,REDACTED PERSONAL DATA
Revenue,Resources,5105657785,28.09.2012,Coroner,Consultants Fees,"1,231.36",REDACTED PERSONAL DATA
Revenue,Community Wellbeing & Social Care,5105653506,05.09.2012,Homelessness,Accommodation Costs - Leaseholder Payments,866.67,2K PROPERTY [HZ]
Revenue,Economy & Environment,5105655877,26.09.2012,Medina Vending Machine Stock,Order Settlement,825.54,3663 (BFS GROUP LTD)
Revenue,Community Wellbeing & Social Care,5105653492,05.09.2012,Homelessness,Accommodation Costs - Leaseholder Payments,780.00,REDACTED PERSONAL DATA
Revenue,Community Wellbeing & Social Care,5105653501,05.09.2012,Homelessness,Accommodation Costs - Leaseholder Payments,510.25,REDACTED PERSONAL DATA
Revenue,Community Wellbeing & Social Care,5105653501,05.09.2012,Homelessness,Accommodation Costs - Leaseholder Payments,510.25,REDACTED PERSONAL DATA
Revenue,Community Wellbeing & Social Care,5105653501,05.09.2012,Homelessness,Accommodation Costs - Leaseholder Payments,510.25,REDACTED PERSONAL DATA
Revenue,Community Wellbeing & Social Care,5105653501,05.09.2012,Homelessness,Accommodation Costs - Leaseholder Payments,510.25,REDACTED PERSONAL DATA
Revenue,Community Wellbeing & Social Care,5105653501,05.09.2012,Homelessness,Accommodation Costs - Leaseholder Payments,510.25,REDACTED PERSONAL DATA
Revenue,Community Wellbeing & Social Care,5105653501,05.09.2012,Homelessness,Accommodation Costs - Leaseholder Payments,510.25,REDACTED PERSONAL DATA
Capital,Community Wellbeing & Social Care,1900569164,26.09.2012,Disabled Facility Grants,Capital Grants,895.54,REDACTED PERSONAL DATA
Revenue,Community Wellbeing & Social Care,5105654096,26.09.2012,Section 106 Arts,Professional Services,665.73,REDACTED PERSONAL DATA
Revenue,Community Wellbeing & Social Care,5105653503,05.09.2012,Homelessness,Accommodation Costs - Leaseholder Payments,780.00,REDACTED PERSONAL DATA
Capital,Economy & Environment,5105656341,19.09.2012,Parks and Gardens,Payment to Contractors - Capital,"3,370.00",REDACTED PERSONAL DATA
Revenue,Community Wellbeing & Social Care,5105653490,05.09.2012,Homelessness,Accommodation Costs - Leaseholder Payments,649.83,REDACTED PERSONAL DATA
Revenue,Community Wellbeing & Social Care,5105653490,05.09.2012,Homelessness,Accommodation Costs - Leaseholder Payments,789.01,REDACTED PERSONAL DATA
Revenue,Community Wellbeing & Social Care,5105653490,05.09.2012,Homelessness,Accommodation Costs - Leaseholder Payments,835.08,REDACTED PERSONAL DATA
Revenue,Community Wellbeing & Social Care,5105658602,28.09.2012,SP Older Persons,Payment to Private Contractors,711.60,ABBEYFIELD WEST WIGHT SOCIETY[SP]
Revenue,Community Wellbeing & Social Care,5105654586,12.09.2012,Elderly Mental Ill Residential Care,Charges from Independent Providers,"1,642.20",ACACIA CARE HOME [SB]
Revenue,Community Wellbeing & Social Care,5105654586,12.09.2012,Elderly Frail Residential Care,Charges from Independent Providers,"1,642.20",ACACIA CARE HOME [SB]
Revenue,Community Wellbeing & Social Care,5105654586,12.09.2012,Elderly Frail Residential Care,Charges from Independent Providers,"1,567.72",ACACIA CARE HOME [SB]
Revenue,Community Wellbeing & Social Care,5105656223,19.09.2012,Elderly Frail Residential Care,Charges from Independent Providers,"1,759.50",ACACIA CARE HOME [SB]
Revenue,Community Wellbeing & Social Care,5105657162,21.09.2012,Elderly Frail Residential Care,Charges from Independent Providers,980.05,ACACIA CARE HOME [SB]
Revenue,Community Wellbeing & Social Care,5105656041,19.09.2012,Physical Disability Homecare,Charges from Independent Providers,658.00,ACORN CARE SERVICE LTD [SB]
Revenue,Community Wellbeing & Social Care,5105657108,21.09.2012,Elderly Frail Homecare,Charges from Independent Providers,931.00,ACORN CARE SERVICE LTD [SB]
Revenue,Community Wellbeing & Social Care,5105656039,19.09.2012,Elderly Frail Homecare,Charges from Independent Providers,"1,022.00",ACORN CARE SERVICE LTD [SB]
Revenue,Community Wellbeing & Social Care,5105656044,19.09.2012,Elderly Frail Homecare,Charges from Independent Providers,686.16,ACORN CARE SERVICE LTD [SB]
Revenue,Community Wellbeing & Social Care,5105656047,19.09.2012,Elderly Frail Homecare,Charges from Independent Providers,686.00,ACORN CARE SERVICE LTD [SB]
Revenue,Community Wellbeing & Social Care,5105656051,19.09.2012,Elderly Frail Homecare,Charges from Independent Providers,"1,862.00",ACORN CARE SERVICE LTD [SB]
Revenue,Community Wellbeing & Social Care,5105657396,21.09.2012,Elderly Frail Homecare,Charges from Independent Providers,588.00,ACORN CARE SERVICE LTD [SB]
Revenue,Community Wellbeing & Social Care,5105657397,21.09.2012,Elderly Frail Homecare,Charges from Independent Providers,588.00,ACORN CARE SERVICE LTD [SB]
Revenue,Community Wellbeing & Social Care,5105657398,21.09.2012,Elderly Frail Homecare,Charges from Independent Providers,588.00,ACORN CARE SERVICE LTD [SB]
Revenue,Community Wellbeing & Social Care,5105657399,21.09.2012,Elderly Frail Homecare,Charges from Independent Providers,588.00,ACORN CARE SERVICE LTD [SB]
Revenue,Community Wellbeing & Social Care,5105657405,21.09.2012,Elderly Frail Homecare,Charges from Independent Providers,588.00,ACORN CARE SERVICE LTD [SB]
Revenue,Economy & Environment,5105655639,19.09.2012,Environmental Health Geographical Team,Professional Services,993.00,ACOUSTIC CALIBRATION SE
Revenue,Resources,5105656842,21.09.2012,"County Hall,Newport",Security of Building,586.88,ADT FIRE AND SECURITY PLC
Revenue,Economy & Environment,5105654050,07.09.2012,Bus Shelter Maintenance,Highways Minor Works,"1,003.68",AGGREGATE INDUSTRIES [SB] - CIS
Revenue,Economy & Environment,5105655568,14.09.2012,Structural Maintenance Other Roads,Highways Minor Works,549.01,AGGREGATE INDUSTRIES [SB] - CIS
Revenue,Economy & Environment,5105655713,14.09.2012,Structural Maintenance Other Roads,Highways Minor Works,537.53,AGGREGATE INDUSTRIES [SB] - CIS
Revenue,Economy & Environment,5105655718,14.09.2012,Bus Shelter Maintenance,Highways Minor Works,543.45,AGGREGATE INDUSTRIES [SB] - CIS
Revenue,Economy & Environment,5105655708,14.09.2012,Structural Maintenance Other Roads,Highways Minor Works,624.66,AGGREGATE INDUSTRIES [SB] - CIS
Revenue,Economy & Environment,5105655711,14.09.2012,Structural Maintenance Other Roads,Highways Minor Works,"1,055.92",AGGREGATE INDUSTRIES [SB] - CIS
Revenue,Community Wellbeing & Social Care,5105635076,19.09.2012,Looked After Children Units 1-4,Agency staff,"1,517.00",AIR SOCIAL CARE
Revenue,Community Wellbeing & Social Care,5105653631,19.09.2012,Looked After Children Units 1-4,Agency staff,922.50,AIR SOCIAL CARE
Revenue,Community Wellbeing & Social Care,5105653630,26.09.2012,Short Term Units,Agency staff,"1,517.00",AIR SOCIAL CARE
Revenue,Community Wellbeing & Social Care,5105653700,05.09.2012,Short Term Units,Agency staff,"1,480.00",AIR SOCIAL CARE
Revenue,Community Wellbeing & Social Care,5105655628,19.09.2012,Short Term Units,Agency staff,"1,480.00",AIR SOCIAL CARE
Revenue,Community Wellbeing & Social Care,5105657970,26.09.2012,Short Term Units,Agency staff,"1,480.00",AIR SOCIAL CARE
Revenue,Community Wellbeing & Social Care,5105657969,26.09.2012,Reviewing Officer,Agency staff,"1,665.00",AIR SOCIAL CARE
Revenue,Community Wellbeing & Social Care,5105658399,28.09.2012,Short Term Units,Agency staff,"1,480.00",AIR SOCIAL CARE
Revenue,Community Wellbeing & Social Care,5105656782,26.09.2012,Reviewing Officer,Agency staff,"1,665.00",AIR SOCIAL CARE
Revenue,Community Wellbeing & Social Care,5105656769,26.09.2012,Reviewing Officer,Agency staff,"1,665.00",AIR SOCIAL CARE
Revenue,Community Wellbeing & Social Care,5105656791,26.09.2012,Reviewing Officer,Agency staff,"1,665.00",AIR SOCIAL CARE
Revenue,Community Wellbeing & Social Care,5105655773,26.09.2012,Reviewing Officer,Agency staff,"1,327.50",AIR SOCIAL CARE
Revenue,Community Wellbeing & Social Care,5105653623,05.09.2012,Reviewing Officer,Agency staff,"1,665.00",AIR SOCIAL CARE
Revenue,Corporate,5105657874,26.09.2012,Business Systems Improvement Project savings,Furniture & Fittings,745.00,ALAN SHEPARD (IOW)
Revenue,Resources,5105654345,12.09.2012,"Registration Of Births,Deaths, Marriages",Courier Costs,525.00,ALAN SHEPARD (IOW)
Revenue,Corporate,5105653417,05.09.2012,Business Systems Improvement Project savings,Other Capital Expenditure,795.00,ALAN SHEPARD (IOW)
Revenue,Economy & Environment,5105657877,26.09.2012,Technical Support,Professional Services,810.00,ALEXANDER TECHNOLOGIES EUROPE LTD
Revenue,"Chief Executive, Schools & Learning",5105655103,12.09.2012,11-19 Activities,Professional Services,"8,093.68",ALKEMYGOLD LTD
Revenue,Community Wellbeing & Social Care,5105654485,12.09.2012,Learning Disabilities Residential Care,Charges from Independent Providers,"3,409.00",ALPHAGRANGE LTD [SB]
Revenue,"Chief Executive, Schools & Learning",5105649060,05.09.2012,Tuition Centres,Taxis - Contract Hire,537.80,AMAR TAXIS AND CHAUFFEUR DRIVEN
Revenue,Economy & Environment,5105655166,12.09.2012,Waste Strategy,Consultants Fees,"12,136.96",AMEC ENVIRONMENT AND
Revenue,Community Wellbeing & Social Care,5105655881,19.09.2012,Child Protection Co-Ordinator,Agency staff,"9,418.00",AMICUS INTERIM LTD
Revenue,Community Wellbeing & Social Care,5105654487,12.09.2012,Elderly Mental Ill Residential Care,Charges from Independent Providers,"1,642.20",ANCONA CARE HOME [SB]
Revenue,Community Wellbeing & Social Care,5105654487,12.09.2012,Elderly Mental Ill Residential Care,Charges from Independent Providers,"1,930.32",ANCONA CARE HOME [SB]
Revenue,Community Wellbeing & Social Care,5105654487,12.09.2012,Elderly Frail Residential Care,Charges from Independent Providers,"1,567.72",ANCONA CARE HOME [SB]
Revenue,Community Wellbeing & Social Care,5105654487,12.09.2012,Elderly Frail Residential Care,Charges from Independent Providers,"1,567.72",ANCONA CARE HOME [SB]
Revenue,Community Wellbeing & Social Care,5105654487,12.09.2012,Elderly Frail Residential Care,Charges from Independent Providers,"1,930.32",ANCONA CARE HOME [SB]
Revenue,Community Wellbeing & Social Care,5105654487,12.09.2012,Elderly Frail Residential Care,Charges from Independent Providers,"1,930.32",ANCONA CARE HOME [SB]
Capital,Resources,5105657879,26.09.2012,Capital Receipts,External Design and Supervision Fees,"9,550.00",ARID
Revenue,Community Wellbeing & Social Care,5105657232,21.09.2012,Integrated Community Equipment Service,Operational Equipment,975.00,ARJO MED AB LTD
Revenue,Resources,5105657611,21.09.2012,Corporate Management (Finance),Professional Services,"2,760.00",AUDIT COMMISSION
Revenue,Community Wellbeing & Social Care,5105654454,12.09.2012,Elderly Mental Ill Residential Care,Charges from Independent Providers,"1,642.20",AUTUMN HOUSE CARE LTD  [SB]
Revenue,Community Wellbeing & Social Care,5105654454,12.09.2012,Elderly Mental Ill Residential Care,Charges from Independent Providers,"1,930.32",AUTUMN HOUSE CARE LTD  [SB]
Revenue,Community Wellbeing & Social Care,5105654454,12.09.2012,Elderly Mental Ill Residential Care,Charges from Independent Providers,"1,930.32",AUTUMN HOUSE CARE LTD  [SB]
Revenue,Community Wellbeing & Social Care,5105654454,12.09.2012,Elderly Mental Ill Residential Care,Charges from Independent Providers,"1,930.32",AUTUMN HOUSE CARE LTD  [SB]
Revenue,Community Wellbeing & Social Care,5105654454,12.09.2012,Elderly Mental Ill Residential Care,Charges from Independent Providers,"1,930.32",AUTUMN HOUSE CARE LTD  [SB]
Revenue,Community Wellbeing & Social Care,5105654454,12.09.2012,Elderly Mental Ill Residential Care,Charges from Independent Providers,"1,930.32",AUTUMN HOUSE CARE LTD  [SB]
Revenue,Community Wellbeing & Social Care,5105654454,12.09.2012,Elderly Mental Ill Residential Care,Charges from Independent Providers,"1,930.32",AUTUMN HOUSE CARE LTD  [SB]
Revenue,Community Wellbeing & Social Care,5105654454,12.09.2012,Elderly Mental Ill Residential Care,Charges from Independent Providers,"1,930.32",AUTUMN HOUSE CARE LTD  [SB]
Revenue,Community Wellbeing & Social Care,5105654454,12.09.2012,Elderly Mental Ill Residential Care,Charges from Independent Providers,"1,642.20",AUTUMN HOUSE CARE LTD  [SB]
Revenue,Community Wellbeing & Social Care,5105654454,12.09.2012,Elderly Mental Ill Residential Care,Charges from Independent Providers,"1,930.32",AUTUMN HOUSE CARE LTD  [SB]
Revenue,Community Wellbeing & Social Care,5105654454,12.09.2012,Elderly Mental Ill Residential Care,Charges from Independent Providers,"1,930.32",AUTUMN HOUSE CARE LTD  [SB]
Revenue,Community Wellbeing & Social Care,5105654454,12.09.2012,Elderly Frail Residential Care,Charges from Independent Providers,"1,642.20",AUTUMN HOUSE CARE LTD  [SB]
Revenue,Community Wellbeing & Social Care,5105654454,12.09.2012,Physical Disability Residential Care,Charges from Independent Providers,"1,930.32",AUTUMN HOUSE CARE LTD  [SB]
Revenue,Community Wellbeing & Social Care,5105654454,12.09.2012,Elderly Frail Residential Care,Charges from Independent Providers,"1,930.32",AUTUMN HOUSE CARE LTD  [SB]
Revenue,Community Wellbeing & Social Care,5105654454,12.09.2012,Dementia Residential care,Charges from Independent Providers,"1,642.20",AUTUMN HOUSE CARE LTD  [SB]
Revenue,Community Wellbeing & Social Care,5105654454,12.09.2012,Dementia Residential care,Charges from Independent Providers,"1,930.32",AUTUMN HOUSE CARE LTD  [SB]
Revenue,Community Wellbeing & Social Care,5105654454,12.09.2012,Dementia Residential care,Charges from Independent Providers,"1,930.32",AUTUMN HOUSE CARE LTD  [SB]
Revenue,Community Wellbeing & Social Care,5105654454,12.09.2012,Dementia Residential care,Charges from Independent Providers,"1,930.32",AUTUMN HOUSE CARE LTD  [SB]
Revenue,Community Wellbeing & Social Care,5105658345,28.09.2012,Elderly Mental Ill Residential Care,Regular Respite Care,"1,988.10",AUTUMN HOUSE CARE LTD  [SB]
Revenue,Community Wellbeing & Social Care,5105654454,12.09.2012,REDACTED PERSONAL DATA,Order Settlement,"1,642.20",AUTUMN HOUSE CARE LTD  [SB]
Revenue,Community Wellbeing & Social Care,5105654454,12.09.2012,REDACTED PERSONAL DATA,Order Settlement,"1,930.32",AUTUMN HOUSE CARE LTD  [SB]
Revenue,Community Wellbeing & Social Care,5105654471,12.09.2012,Learning Disabilities Residential Care,Charges from Independent Providers,"1,757.00",REDACTED PERSONAL DATA
Revenue,Community Wellbeing & Social Care,5105654471,12.09.2012,Learning Disabilities Residential Care,Charges from Independent Providers,"1,757.00",REDACTED PERSONAL DATA
Revenue,Community Wellbeing & Social Care,5105654471,12.09.2012,Learning Disabilities Residential Care,Charges from Independent Providers,"2,545.76",REDACTED PERSONAL DATA
Revenue,Community Wellbeing & Social Care,5105653487,05.09.2012,Homelessness,Accommodation Costs - Leaseholder Payments,815.49,REDACTED PERSONAL DATA
Revenue,Community Wellbeing & Social Care,5105653494,05.09.2012,Homelessness,Accommodation Costs - Leaseholder Payments,799.50,REDACTED PERSONAL DATA
Revenue,Community Wellbeing & Social Care,5105653494,05.09.2012,Homelessness,Accommodation Costs - Leaseholder Payments,799.50,REDACTED PERSONAL DATA
Revenue,Community Wellbeing & Social Care,5105653494,05.09.2012,Homelessness,Accommodation Costs - Leaseholder Payments,866.67,REDACTED PERSONAL DATA
Revenue,Community Wellbeing & Social Care,5105653494,05.09.2012,Homelessness,Accommodation Costs - Leaseholder Payments,866.67,REDACTED PERSONAL DATA
Revenue,Community Wellbeing & Social Care,5105653494,05.09.2012,Homelessness,Accommodation Costs - Leaseholder Payments,888.33,REDACTED PERSONAL DATA
Revenue,Resources,5105657880,26.09.2012,"Bugle House,Newport",Building & Room Rent,"1,285.35",BAE SYSTEMS PENSION FUNDS TRUST.LTD
Revenue,Resources,5105657881,26.09.2012,"Bugle House,Newport",Building & Room Rent,"6,625.00",BAE SYSTEMS PENSION FUNDS TRUST.LTD
Revenue,Economy & Environment,5105658415,28.09.2012,Technical Support,Clothing & Laundry,"6,456.72",BALLYCLARE LTD
Revenue,"Chief Executive, Schools & Learning",5105657887,26.09.2012,School Reorganisation Consultation Costs,Vehicle Hire External,730.71,BARTLETTS SERVICE STATION
Revenue,"Chief Executive, Schools & Learning",5105657888,26.09.2012,School Reorganisation Consultation Costs,Vehicle Hire External,730.71,BARTLETTS SERVICE STATION
Revenue,"Chief Executive, Schools & Learning",5105654158,07.09.2012,School Reorganisation Consultation Costs,Vehicle Hire External,730.71,BARTLETTS SERVICE STATION
Revenue,Economy & Environment,5105658443,28.09.2012,IW Cycling Festival,Advertising & Publicity,540.00,BEACON MEDIA LIMITED
Revenue,Community Wellbeing & Social Care,5105654702,12.09.2012,Elderly Frail Nursing Mainland,Charges from Independent Providers,"2,257.92",BEAUMONT LODGE LTD [SB]
Revenue,Community Wellbeing & Social Care,5105657889,26.09.2012,Homelessness,Accommodation Costs - Bed & Breakfast,"1,386.00",BERTRAM LODGE
Revenue,Community Wellbeing & Social Care,5105657764,26.09.2012,Homelessness,Accommodation Costs - Bed & Breakfast,660.00,BERTRAM LODGE
Revenue,Community Wellbeing & Social Care,5105654071,26.09.2012,Adelaide Resource Centre,Consumable Cleaning Materials,556.32,BETA PAK
Revenue,Community Wellbeing & Social Care,5105656244,19.09.2012,Elderly Mental Ill Homecare,Charges from Independent Providers,612.50,BETTER AT HOME IOW LTD [SB]
Revenue,Community Wellbeing & Social Care,5105656249,19.09.2012,Physical Disability Homecare,Charges from Independent Providers,682.50,BETTER AT HOME IOW LTD [SB]
Revenue,Community Wellbeing & Social Care,5105656225,19.09.2012,Elderly Frail Homecare,Charges from Independent Providers,560.00,BETTER AT HOME IOW LTD [SB]
Revenue,Community Wellbeing & Social Care,5105656226,19.09.2012,Elderly Frail Homecare,Charges from Independent Providers,"1,190.00",BETTER AT HOME IOW LTD [SB]
Revenue,Community Wellbeing & Social Care,5105656227,19.09.2012,Elderly Frail Homecare,Charges from Independent Providers,"2,205.00",BETTER AT HOME IOW LTD [SB]
Revenue,Community Wellbeing & Social Care,5105656228,19.09.2012,Elderly Frail Homecare,Charges from Independent Providers,700.00,BETTER AT HOME IOW LTD [SB]
Revenue,Community Wellbeing & Social Care,5105656237,19.09.2012,Elderly Frail Homecare,Charges from Independent Providers,"1,960.00",BETTER AT HOME IOW LTD [SB]
Revenue,Community Wellbeing & Social Care,5105656245,19.09.2012,Elderly Frail Homecare,Charges from Independent Providers,532.00,BETTER AT HOME IOW LTD [SB]
Revenue,Community Wellbeing & Social Care,1700046072,19.09.2012,Physical Disability Homecare,Refund of Overpayments,-584.58,BETTER AT HOME IOW LTD [SB]
Revenue,"Chief Executive, Schools & Learning",5105658143,28.09.2012,Core Programmes,Training,750.00,BEVAN YOUNG ASSOCIATES
Revenue,"Chief Executive, Schools & Learning",5105658143,28.09.2012,Core Programmes,Training,750.00,BEVAN YOUNG ASSOCIATES
Revenue,"Chief Executive, Schools & Learning",5105654082,26.09.2012,Core Programmes,Training,750.00,BEVAN YOUNG ASSOCIATES
Revenue,Economy & Environment,5105654281,12.09.2012,Newport Harbour Account,"Refuse Collection, Disposal and Recycling Costs",566.28,BIFFA WASTE SERVICES LTD
Revenue,Community Wellbeing & Social Care,5105655898,19.09.2012,Adelaide Resource Centre,"Refuse Collection, Disposal and Recycling Costs","1,103.31",BIFFA WASTE SERVICES LTD
Revenue,Economy & Environment,5105654293,12.09.2012,Cowes Week,Professional Services,"1,725.28",BIFFA WASTE SERVICES LTD
Revenue,Community Wellbeing & Social Care,5105657890,26.09.2012,Agency Placements,Payments to Voluntary and Other Associations,"13,071.42",BIG BRIGHT HOLIDAYS
Revenue,Community Wellbeing & Social Care,5105657891,26.09.2012,Agency Placements,Payments to Voluntary and Other Associations,"13,071.42",BIG BRIGHT HOLIDAYS
Revenue,Corporate,1900568753,26.09.2012,Insurance Liabilities Fund,Provisions,"20,000.00",BISCOES SOLICITORS
Revenue,"Chief Executive, Schools & Learning",5105655907,19.09.2012,Admissions/Student Finance,Printing Costs,976.00,BISHOPS PRINTERS LTD
Revenue,"Chief Executive, Schools & Learning",5105655906,19.09.2012,Admissions/Student Finance,Printing Costs,722.00,BISHOPS PRINTERS LTD
Revenue,Resources,5105655278,12.09.2012,Litigation Costs,Legal Fees - Other Parties,"1,000.00",BLAKE LAPTHORN
Revenue,Community Wellbeing & Social Care,5105654991,12.09.2012,Elderly Frail Residential Care,Charges from Independent Providers,"1,818.88",BONDCARE NILERACE LIMITED[SB]
Revenue,Community Wellbeing & Social Care,5105656849,21.09.2012,Transforming Social Care,Licences,"6,149.00",BRACKNELL FOREST BOROUGH COUNCIL
Revenue,Community Wellbeing & Social Care,5105653517,05.09.2012,Homelessness,Accommodation Costs - Leaseholder Payments,746.81,BRAMBLE LETTINGS[HZ]
Revenue,Community Wellbeing & Social Care,5105653517,05.09.2012,Homelessness,Accommodation Costs - Leaseholder Payments,746.81,BRAMBLE LETTINGS[HZ]
Revenue,Community Wellbeing & Social Care,5105653517,05.09.2012,Homelessness,Accommodation Costs - Leaseholder Payments,746.81,BRAMBLE LETTINGS[HZ]
Revenue,Community Wellbeing & Social Care,5105653517,05.09.2012,Homelessness,Accommodation Costs - Leaseholder Payments,746.81,BRAMBLE LETTINGS[HZ]
Revenue,Community Wellbeing & Social Care,5105653517,05.09.2012,Homelessness,Accommodation Costs - Leaseholder Payments,746.81,BRAMBLE LETTINGS[HZ]
Revenue,Community Wellbeing & Social Care,5105653517,05.09.2012,Homelessness,Accommodation Costs - Leaseholder Payments,588.38,BRAMBLE LETTINGS[HZ]
Revenue,Community Wellbeing & Social Care,5105653517,05.09.2012,Homelessness,Accommodation Costs - Leaseholder Payments,588.38,BRAMBLE LETTINGS[HZ]
Revenue,Community Wellbeing & Social Care,5105653517,05.09.2012,Homelessness,Accommodation Costs - Leaseholder Payments,588.38,BRAMBLE LETTINGS[HZ]
Revenue,Community Wellbeing & Social Care,5105653517,05.09.2012,Homelessness,Accommodation Costs - Leaseholder Payments,588.38,BRAMBLE LETTINGS[HZ]
Revenue,Community Wellbeing & Social Care,5105653517,05.09.2012,Homelessness,Accommodation Costs - Leaseholder Payments,588.38,BRAMBLE LETTINGS[HZ]
Revenue,Community Wellbeing & Social Care,5105653517,05.09.2012,Homelessness,Accommodation Costs - Leaseholder Payments,746.81,BRAMBLE LETTINGS[HZ]
Revenue,Community Wellbeing & Social Care,5105653517,05.09.2012,Homelessness,Accommodation Costs - Leaseholder Payments,588.38,BRAMBLE LETTINGS[HZ]
Revenue,Community Wellbeing & Social Care,5105653517,05.09.2012,Homelessness,Accommodation Costs - Leaseholder Payments,746.81,BRAMBLE LETTINGS[HZ]
Revenue,Community Wellbeing & Social Care,5105653517,05.09.2012,Homelessness,Accommodation Costs - Leaseholder Payments,769.43,BRAMBLE LETTINGS[HZ]
Revenue,Community Wellbeing & Social Care,5105653517,05.09.2012,Homelessness,Accommodation Costs - Leaseholder Payments,746.81,BRAMBLE LETTINGS[HZ]
Revenue,Community Wellbeing & Social Care,5105653517,05.09.2012,Homelessness,Accommodation Costs - Leaseholder Payments,746.81,BRAMBLE LETTINGS[HZ]
Revenue,Community Wellbeing & Social Care,5105653517,05.09.2012,Homelessness,Accommodation Costs - Leaseholder Payments,746.81,BRAMBLE LETTINGS[HZ]
Revenue,Community Wellbeing & Social Care,5105653517,05.09.2012,Homelessness,Accommodation Costs - Leaseholder Payments,746.81,BRAMBLE LETTINGS[HZ]
Revenue,Community Wellbeing & Social Care,5105653517,05.09.2012,Homelessness,Accommodation Costs - Leaseholder Payments,746.81,BRAMBLE LETTINGS[HZ]
Revenue,Community Wellbeing & Social Care,5105653517,05.09.2012,Homelessness,Accommodation Costs - Leaseholder Payments,746.81,BRAMBLE LETTINGS[HZ]
Revenue,Community Wellbeing & Social Care,5105653517,05.09.2012,Homelessness,Accommodation Costs - Leaseholder Payments,746.81,BRAMBLE LETTINGS[HZ]
Revenue,Community Wellbeing & Social Care,5105653517,05.09.2012,Homelessness,Accommodation Costs - Leaseholder Payments,746.81,BRAMBLE LETTINGS[HZ]
Revenue,Community Wellbeing & Social Care,5105653130,05.09.2012,Physical Disability Residential Care,Regular Respite Care,"1,141.30",BRAMBLES RESPITE CARE
Revenue,Community Wellbeing & Social Care,5105654489,12.09.2012,Elderly Mental Ill Residential Care,Charges from Independent Providers,"1,642.20",BRIGHSTONE CARE LTD [SB]
Revenue,Community Wellbeing & Social Care,5105654489,12.09.2012,Elderly Mental Ill Residential Care,Charges from Independent Providers,"1,567.72",BRIGHSTONE CARE LTD [SB]
Revenue,Community Wellbeing & Social Care,5105657106,21.09.2012,Elderly Mental Ill Residential Care,Charges from Independent Providers,"1,524.90",BRIGHSTONE CARE LTD [SB]
Revenue,Community Wellbeing & Social Care,5105654489,12.09.2012,Elderly Frail Residential Care,Charges from Independent Providers,"1,567.72",BRIGHSTONE CARE LTD [SB]
Revenue,Community Wellbeing & Social Care,5105654489,12.09.2012,Elderly Frail Residential Care,Charges from Independent Providers,"1,930.32",BRIGHSTONE CARE LTD [SB]
Revenue,Community Wellbeing & Social Care,5105654489,12.09.2012,Elderly Frail Residential Care,Charges from Independent Providers,"1,930.32",BRIGHSTONE CARE LTD [SB]
Revenue,Community Wellbeing & Social Care,5105654489,12.09.2012,Elderly Frail Residential Care,Charges from Independent Providers,"1,567.72",BRIGHSTONE CARE LTD [SB]
Revenue,Community Wellbeing & Social Care,5105654489,12.09.2012,Elderly Frail Residential Care,Charges from Independent Providers,"1,567.72",BRIGHSTONE CARE LTD [SB]
Revenue,Community Wellbeing & Social Care,5105654489,12.09.2012,Elderly Frail Residential Care,Charges from Independent Providers,"1,567.72",BRIGHSTONE CARE LTD [SB]
Revenue,Community Wellbeing & Social Care,5105655324,14.09.2012,Elderly Frail Residential Care,Charges from Independent Providers,"1,567.72",BRIGHSTONE CARE LTD [SB]
Revenue,Community Wellbeing & Social Care,5105655580,14.09.2012,Elderly Frail Residential Care,Charges from Independent Providers,"1,567.72",BRIGHSTONE CARE LTD [SB]
Revenue,Community Wellbeing & Social Care,5105654489,12.09.2012,REDACTED PERSONAL DATA,Order Settlement,"1,642.20",BRIGHSTONE CARE LTD [SB]
Revenue,Community Wellbeing & Social Care,5105658693,28.09.2012,REDACTED PERSONAL DATA,Order Settlement,"1,973.16",BRIGHSTONE CARE LTD [SB]
Revenue,Community Wellbeing & Social Care,1700046102,21.09.2012,Elderly Mental Ill Residential Care,Refund of Overpayments,"-1,231.65",BRIGHSTONE CARE LTD [SB]
Revenue,"Chief Executive, Schools & Learning",1900567857,14.09.2012,Schools Supply Insurance Scheme,Order Settlement,"4,125.00",BRIGHSTONE CE PRIMARY SCHOOL
Revenue,Economy & Environment,5105654077,26.09.2012,Beach Cleaning,Payment to Private Contractors,622.00,BRIGHSTONE LANDSCAPING LTD
Revenue,Economy & Environment,5105654078,26.09.2012,Beach Cleaning,Payment to Private Contractors,"2,775.00",BRIGHSTONE LANDSCAPING LTD
Revenue,Economy & Environment,5105654079,26.09.2012,Beach Cleaning,Payment to Private Contractors,540.00,BRIGHSTONE LANDSCAPING LTD
Revenue,"Chief Executive, Schools & Learning",5105654131,28.09.2012,Grounds Maintenance - Delegated,Grounds Maintenance,"1,495.84",BRIGHSTONE LANDSCAPING LTD
Revenue,"Chief Executive, Schools & Learning",5105654132,28.09.2012,Grounds Maintenance - Delegated,Grounds Maintenance,"2,393.16",BRIGHSTONE LANDSCAPING LTD
Revenue,"Chief Executive, Schools & Learning",5105654134,07.09.2012,Grounds Maintenance - Delegated,Grounds Maintenance,"7,836.56",BRIGHSTONE LANDSCAPING LTD
Revenue,Economy & Environment,5105657972,26.09.2012,Beach Cleaning,Beach Cleansing Contractors,"5,890.67",BRIGHSTONE LANDSCAPING LTD
Revenue,Economy & Environment,5105657918,26.09.2012,Beach Cleaning,Beach Cleansing Contractors,"24,982.62",BRIGHSTONE LANDSCAPING LTD
Revenue,"Chief Executive, Schools & Learning",5105658127,28.09.2012,Grounds Maintenance - Non-Delegated,Grounds Maintenance,799.00,BRIGHSTONE LANDSCAPING LTD
Revenue,Economy & Environment,1900568000,19.09.2012,Economic Development,Professional Services,"1,161.70",BRIGHSTONE PARISH COUNCIL
Revenue,Resources,5105655745,14.09.2012,"County Hall,Newport",Electricity,"9,559.45",BRITISH GAS BUSINESS
Revenue,Resources,5105655746,14.09.2012,"Westridge, Ryde",Electricity,"2,195.73",BRITISH GAS BUSINESS
Revenue,Economy & Environment,1900548705,05.09.2012,Deputy Chief Fire Office,Gas,624.40,BRITISH GAS BUSINESS
Revenue,Resources,1900549418,05.09.2012,Ryde Town Hall,Gas,846.29,BRITISH GAS BUSINESS
Revenue,"Chief Executive, Schools & Learning",1700046042,07.09.2012,Residual Premises Costs,Gas,-729.31,BRITISH GAS BUSINESS
Revenue,Community Wellbeing & Social Care,1700046045,07.09.2012,Ventnor Botanic Gardens,Gas,"-1,277.32",BRITISH GAS BUSINESS
Revenue,Community Wellbeing & Social Care,1700046046,07.09.2012,Ventnor Botanic Gardens,Gas,-750.48,BRITISH GAS BUSINESS
Revenue,Resources,1700045930,05.09.2012,Ryde Town Hall,Gas,-570.96,BRITISH GAS BUSINESS
Revenue,Resources,1700045931,05.09.2012,Ryde Town Hall,Gas,-717.45,BRITISH GAS BUSINESS
Revenue,Resources,1700045932,05.09.2012,Ryde Town Hall,Gas,-740.02,BRITISH GAS BUSINESS
Revenue,Resources,1700045933,05.09.2012,Ryde Town Hall,Gas,-671.20,BRITISH GAS BUSINESS
Revenue,Resources,1700045934,05.09.2012,Ryde Town Hall,Gas,-580.33,BRITISH GAS BUSINESS
Revenue,"Chief Executive, Schools & Learning",1700045937,05.09.2012,Residual Premises Costs,Gas,-534.04,BRITISH GAS BUSINESS
Revenue,"Chief Executive, Schools & Learning",1900561344,05.09.2012,Residual Premises Costs,Gas,716.39,BRITISH GAS BUSINESS
Revenue,Community Wellbeing & Social Care,1900561345,05.09.2012,Gouldings Resource Centre,Gas,"1,117.43",BRITISH GAS BUSINESS
Revenue,Economy & Environment,1900561346,05.09.2012,Crematorium,Gas,"3,012.51",BRITISH GAS BUSINESS
Revenue,Community Wellbeing & Social Care,1900561577,07.09.2012,Ventnor Botanic Gardens,Gas,"2,562.10",BRITISH GAS BUSINESS
Revenue,Economy & Environment,1900561578,07.09.2012,The Heights,Gas,639.69,BRITISH GAS BUSINESS
Revenue,Economy & Environment,1900561579,07.09.2012,The Heights,Electricity,"1,632.11",BRITISH GAS BUSINESS
Revenue,Community Wellbeing & Social Care,1900561580,07.09.2012,Adelaide Resource Centre,Gas,"1,459.20",BRITISH GAS BUSINESS
Revenue,Community Wellbeing & Social Care,1900561581,07.09.2012,Dinosaur Isle Museum,Electricity,515.75,BRITISH GAS BUSINESS
Capital,Resources,5105657702,26.09.2012,Strategic Projects,Payment to Contractors - Capital,"20,049.48",BRITISH TELECOMMUNICATIONS PLC
Revenue,Community Wellbeing & Social Care,1900560996,14.09.2012,Library HQ,Mobile Telecoms,588.00,BRITISH TELECOMMUNICATIONS PLC
Revenue,Community Wellbeing & Social Care,1900562080,12.09.2012,CSDP PD,Fixed Telephones,547.50,BRITISH TELECOMMUNICATIONS PLC
Capital,Economy & Environment,1900561368,07.09.2012,Bus Infrastructure,Eligible Supplies and Services - Capital,"1,244.00",BRITISH TELECOMMUNICATIONS PLC
Revenue,Community Wellbeing & Social Care,5105654462,12.09.2012,Elderly Mental Ill Residential Care,Charges from Independent Providers,"1,642.20",BROADHURST RESIDENTIAL HOME [SB]
Revenue,Community Wellbeing & Social Care,5105654462,12.09.2012,Elderly Mental Ill Residential Care,Charges from Independent Providers,"1,642.20",BROADHURST RESIDENTIAL HOME [SB]
Revenue,Community Wellbeing & Social Care,5105654462,12.09.2012,Elderly Mental Ill Residential Care,Charges from Independent Providers,"1,642.20",BROADHURST RESIDENTIAL HOME [SB]
Revenue,Community Wellbeing & Social Care,5105654462,12.09.2012,Elderly Mental Ill Residential Care,Charges from Independent Providers,"1,930.32",BROADHURST RESIDENTIAL HOME [SB]
Revenue,Community Wellbeing & Social Care,5105654462,12.09.2012,Elderly Mental Ill Residential Care,Charges from Independent Providers,"1,930.32",BROADHURST RESIDENTIAL HOME [SB]
Revenue,Community Wellbeing & Social Care,5105654462,12.09.2012,Elderly Frail Residential Care,Charges from Independent Providers,"1,567.72",BROADHURST RESIDENTIAL HOME [SB]
Revenue,Community Wellbeing & Social Care,5105654462,12.09.2012,Elderly Frail Residential Care,Charges from Independent Providers,"1,567.72",BROADHURST RESIDENTIAL HOME [SB]
Revenue,Community Wellbeing & Social Care,5105654462,12.09.2012,Elderly Frail Residential Care,Charges from Independent Providers,"1,757.00",BROADHURST RESIDENTIAL HOME [SB]
Revenue,Community Wellbeing & Social Care,5105654462,12.09.2012,Elderly Frail Residential Care,Charges from Independent Providers,"1,757.00",BROADHURST RESIDENTIAL HOME [SB]
Revenue,Community Wellbeing & Social Care,5105654462,12.09.2012,Elderly Frail Residential Care,Charges from Independent Providers,"1,567.72",BROADHURST RESIDENTIAL HOME [SB]
Revenue,Community Wellbeing & Social Care,5105654462,12.09.2012,Elderly Frail Residential Care,Charges from Independent Providers,"1,273.72",BROADHURST RESIDENTIAL HOME [SB]
Revenue,Community Wellbeing & Social Care,5105654462,12.09.2012,REDACTED PERSONAL DATA,Order Settlement,"1,930.32",BROADHURST RESIDENTIAL HOME [SB]
Revenue,Community Wellbeing & Social Care,5105654462,12.09.2012,REDACTED PERSONAL DATA,Order Settlement,"1,930.32",BROADHURST RESIDENTIAL HOME [SB]
Revenue,Community Wellbeing & Social Care,1700046003,12.09.2012,Elderly Frail Residential Care,Refund of Overpayments,"-1,861.38",BROADHURST RESIDENTIAL HOME [SB]
Revenue,Community Wellbeing & Social Care,5105655288,19.09.2012,Drug Action Team Adults,Charges from Independent Providers,"1,294.31",BROADREACH HOUSE
Revenue,Community Wellbeing & Social Care,5105655207,19.09.2012,Drug Action Team Adults,Charges from Independent Providers,"1,038.11",BROADREACH HOUSE
Revenue,Community Wellbeing & Social Care,5105656800,19.09.2012,Drug Action Team Adults,Charges from Independent Providers,758.75,BROADREACH HOUSE
Revenue,Community Wellbeing & Social Care,5105658370,28.09.2012,Drug Action Team Adults,Charges from Independent Providers,692.04,BROADREACH HOUSE
Revenue,Community Wellbeing & Social Care,5105655288,19.09.2012,Other Adults Residential Care,Charges from Independent Providers,"1,999.26",BROADREACH HOUSE
Revenue,Community Wellbeing & Social Care,5105655275,19.09.2012,Other Adults Residential Care,Charges from Independent Providers,827.28,BROADREACH HOUSE
Revenue,Community Wellbeing & Social Care,5105655207,19.09.2012,Other Adults Residential Care,Charges from Independent Providers,620.46,BROADREACH HOUSE
Revenue,Community Wellbeing & Social Care,5105656800,19.09.2012,Other Adults Residential Care,Charges from Independent Providers,"1,723.50",BROADREACH HOUSE
Revenue,Community Wellbeing & Social Care,1700046067,11.09.2012,Elderly Frail Nursing Mainland,Charges from Independent Providers,"1,724.22",BRUNELCARE [SB]
Revenue,Community Wellbeing & Social Care,1700045863,11.09.2012,Elderly Frail Nursing Mainland,Charges from Independent Providers,"-1,724.22",BRUNELCARE [SB]
Revenue,Community Wellbeing & Social Care,5105654314,12.09.2012,Elderly Mental Ill Residential Care,Charges from Independent Providers,"1,642.20",BUCKLAND CARE [SB]
Revenue,Community Wellbeing & Social Care,5105654513,12.09.2012,Elderly Mental Ill Residential Care,Charges from Independent Providers,"1,642.20",BUCKLAND CARE [SB]
Revenue,Community Wellbeing & Social Care,5105654513,12.09.2012,Elderly Mental Ill Residential Care,Charges from Independent Providers,"1,930.32",BUCKLAND CARE [SB]
Revenue,Community Wellbeing & Social Care,5105654513,12.09.2012,Elderly Mental Ill Residential Care,Charges from Independent Providers,"1,642.20",BUCKLAND CARE [SB]
Revenue,Community Wellbeing & Social Care,5105657126,21.09.2012,Elderly Mental Ill Residential Care,Charges from Independent Providers,"1,642.20",BUCKLAND CARE [SB]
Revenue,Community Wellbeing & Social Care,5105657127,21.09.2012,Elderly Mental Ill Residential Care,Charges from Independent Providers,"2,521.95",BUCKLAND CARE [SB]
Revenue,Community Wellbeing & Social Care,5105654513,12.09.2012,Elderly Frail Residential Care,Charges from Independent Providers,"1,567.72",BUCKLAND CARE [SB]
Revenue,Community Wellbeing & Social Care,5105654513,12.09.2012,Elderly Frail Residential Care,Charges from Independent Providers,"1,930.32",BUCKLAND CARE [SB]
Revenue,Community Wellbeing & Social Care,5105654513,12.09.2012,Elderly Frail Residential Care,Charges from Independent Providers,"1,567.72",BUCKLAND CARE [SB]
Revenue,Community Wellbeing & Social Care,5105654513,12.09.2012,Elderly Frail Residential Care,Charges from Independent Providers,"1,930.32",BUCKLAND CARE [SB]
Revenue,Community Wellbeing & Social Care,5105654513,12.09.2012,Elderly Frail Residential Care,Charges from Independent Providers,"1,567.72",BUCKLAND CARE [SB]
Revenue,Community Wellbeing & Social Care,5105654513,12.09.2012,Elderly Frail Residential Care,Charges from Independent Providers,"1,567.72",BUCKLAND CARE [SB]
Revenue,Community Wellbeing & Social Care,5105654513,12.09.2012,Elderly Frail Residential Care,Charges from Independent Providers,"1,930.32",BUCKLAND CARE [SB]
Revenue,Community Wellbeing & Social Care,5105654513,12.09.2012,Elderly Frail Residential Care,Charges from Independent Providers,"1,930.32",BUCKLAND CARE [SB]
Revenue,Community Wellbeing & Social Care,5105654513,12.09.2012,Elderly Frail Residential Care,Charges from Independent Providers,"1,930.32",BUCKLAND CARE [SB]
Revenue,Community Wellbeing & Social Care,5105655257,12.09.2012,Elderly Frail Residential Care,Charges from Independent Providers,"1,567.72",BUCKLAND CARE [SB]
Revenue,Community Wellbeing & Social Care,5105655258,12.09.2012,Elderly Frail Residential Care,Charges from Independent Providers,"1,343.76",BUCKLAND CARE [SB]
Revenue,Community Wellbeing & Social Care,5105655818,21.09.2012,Elderly Frail Residential Care,Charges from Independent Providers,827.28,BUCKLAND CARE [SB]
Revenue,Community Wellbeing & Social Care,5105655819,21.09.2012,Elderly Frail Residential Care,Charges from Independent Providers,839.85,BUCKLAND CARE [SB]
Revenue,Community Wellbeing & Social Care,1700046087,21.09.2012,Elderly Frail Residential Care,Refund of Overpayments,"-2,412.90",BUCKLAND CARE [SB]
Revenue,Community Wellbeing & Social Care,5105654496,12.09.2012,Elderly Frail Nursing Island,Charges from Independent Providers,"2,598.12",BUCKLAND CARE LTD [SB]
Revenue,Community Wellbeing & Social Care,5105654496,12.09.2012,Elderly Frail Nursing Island,Charges from Independent Providers,"2,598.12",BUCKLAND CARE LTD [SB]
Revenue,Community Wellbeing & Social Care,5105654496,12.09.2012,Elderly Frail Nursing Island,Charges from Independent Providers,"2,598.12",BUCKLAND CARE LTD [SB]
Revenue,Community Wellbeing & Social Care,5105654496,12.09.2012,Elderly Frail Nursing Island,Charges from Independent Providers,"2,598.12",BUCKLAND CARE LTD [SB]
Revenue,Community Wellbeing & Social Care,5105654496,12.09.2012,Elderly Frail Nursing Island,Charges from Independent Providers,"2,598.12",BUCKLAND CARE LTD [SB]
Revenue,Community Wellbeing & Social Care,5105654496,12.09.2012,Elderly Frail Nursing Island,Charges from Independent Providers,"2,598.12",BUCKLAND CARE LTD [SB]
Revenue,Community Wellbeing & Social Care,5105654496,12.09.2012,Elderly Frail Nursing Island,Charges from Independent Providers,"2,598.12",BUCKLAND CARE LTD [SB]
Revenue,Community Wellbeing & Social Care,5105654496,12.09.2012,Elderly Mentally Ill Nursing Island,Charges from Independent Providers,"2,598.12",BUCKLAND CARE LTD [SB]
Revenue,Community Wellbeing & Social Care,5105654496,12.09.2012,Elderly Frail Nursing Island,Charges from Independent Providers,"2,598.12",BUCKLAND CARE LTD [SB]
Revenue,Community Wellbeing & Social Care,5105654496,12.09.2012,Elderly Frail Nursing Island,Charges from Independent Providers,"2,598.12",BUCKLAND CARE LTD [SB]
Revenue,Community Wellbeing & Social Care,5105654496,12.09.2012,Elderly Mentally Ill Nursing Island,Charges from Independent Providers,"2,598.12",BUCKLAND CARE LTD [SB]
Revenue,Community Wellbeing & Social Care,5105654496,12.09.2012,Elderly Frail Nursing Island,Charges from Independent Providers,"2,598.12",BUCKLAND CARE LTD [SB]
Revenue,Community Wellbeing & Social Care,5105657107,21.09.2012,Elderly Frail Nursing Island,Charges from Independent Providers,"2,598.12",BUCKLAND CARE LTD [SB]
Revenue,Community Wellbeing & Social Care,5105655798,19.09.2012,Elderly Frail Nursing Island,Charges from Independent Providers,742.32,BUCKLAND CARE LTD [SB]
Revenue,Community Wellbeing & Social Care,5105655799,19.09.2012,Elderly Frail Nursing Island,Charges from Independent Providers,"1,020.69",BUCKLAND CARE LTD [SB]
Revenue,Community Wellbeing & Social Care,5105655800,19.09.2012,Elderly Frail Nursing Island,Charges from Independent Providers,"2,598.12",BUCKLAND CARE LTD [SB]
Revenue,Community Wellbeing & Social Care,5105657741,26.09.2012,Elderly Frail Nursing Island,Charges from Independent Providers,"7,794.36",BUCKLAND CARE LTD [SB]
Revenue,Community Wellbeing & Social Care,5105654496,12.09.2012,REDACTED PERSONAL DATA,Order Settlement,"2,598.12",BUCKLAND CARE LTD [SB]
Revenue,Community Wellbeing & Social Care,5105654496,12.09.2012,REDACTED PERSONAL DATA,Order Settlement,929.88,BUCKLAND CARE LTD [SB]
Revenue,Community Wellbeing & Social Care,5105654496,12.09.2012,REDACTED PERSONAL DATA,Order Settlement,"2,598.12",BUCKLAND CARE LTD [SB]
Revenue,Community Wellbeing & Social Care,5105658355,28.09.2012,Elderly Mentally Ill Nursing Island,Regular Respite Care,"2,876.49",BUCKLAND CARE LTD [SB]
Revenue,Community Wellbeing & Social Care,1700046057,12.09.2012,Elderly Frail Nursing Income,Refund of Overpayments,"-1,206.27",BUCKLAND CARE LTD [SB]
Revenue,Community Wellbeing & Social Care,5105654864,12.09.2012,Elderly Frail Nursing Mainland,Charges from Independent Providers,"1,832.60",BUPA CARE HOME (BNH) LTD [SB]
Revenue,Resources,5105653552,05.09.2012,Properties-Oth Props,Grounds Maintenance,"1,295.00",C & J GROUND MAINTENANCE
Revenue,Economy & Environment,5105655868,19.09.2012,Public Seats  (incl.Dedicated Seats),Payment to Private Contractors,847.80,C N SERVICES
Revenue,Economy & Environment,5105655780,21.09.2012,Routine Repairs Other Roads,Highways Minor Works,580.00,C N SERVICES
Revenue,Economy & Environment,5105655865,19.09.2012,North Ground Maintenance Non-Horticultural,Payment to Private Contractors,710.00,C N SERVICES
Revenue,Community Wellbeing & Social Care,5105657308,21.09.2012,147 High Street,Building & Room Rent,"7,000.00",REDACTED PERSONAL DATA
Revenue,Community Wellbeing & Social Care,5105654447,12.09.2012,Learning Disabilities Residential Care,Charges from Independent Providers,"1,757.00",REDACTED PERSONAL DATA
Revenue,Economy & Environment,5105656394,19.09.2012,Medina Leisure Centre,Payment to Private Contractors,683.76,CANNON HYGIENE
Revenue,"Chief Executive, Schools & Learning",1900568746,28.09.2012,Print Unit,Photocopying Costs,912.73,CANON (UK) LTD
Revenue,"Chief Executive, Schools & Learning",1900568749,28.09.2012,Print Unit,Photocopying Costs,549.33,CANON (UK) LTD
Revenue,Community Wellbeing & Social Care,5105655264,12.09.2012,Head of Adults,Agency staff,"1,244.53",CAP MANAGEMENT SVCS LTD [SB]
Revenue,Community Wellbeing & Social Care,5105658057,26.09.2012,Head of Adults,Agency staff,"1,244.53",CAP MANAGEMENT SVCS LTD [SB]
Revenue,Community Wellbeing & Social Care,5105656253,19.09.2012,Head of Adults,Agency staff,"1,533.53",CAP MANAGEMENT SVCS LTD [SB]
Revenue,Community Wellbeing & Social Care,5105658074,26.09.2012,Public Lib Central,Office Equipment,"2,017.50",CAPITA BUSINESS SERVICES
Revenue,Community Wellbeing & Social Care,5105653622,05.09.2012,Public Lib Central,Computer Software & Consumables,"3,135.00",CAPITA BUSINESS SERVICES LTD
Revenue,"Chief Executive, Schools & Learning",5105658142,28.09.2012,Children's Services Strategic Management,Bought in Prof Services - Curriculum (Schools),900.00,CAPITA RESOURCING LTD
Revenue,Economy & Environment,5105654207,07.09.2012,Highways PFI Project,Premises Insurance,"1,521.42",CAPITA SYMONDS LTD
Revenue,Economy & Environment,5105655940,19.09.2012,Highways PFI Project,Building & Room Rent,"3,750.00",CAPITA SYMONDS LTD
Revenue,Community Wellbeing & Social Care,5105656677,19.09.2012,Physical Disability Homecare,Charges from Independent Providers,738.50,CARE FIRST IW LTD [SB]
Revenue,Community Wellbeing & Social Care,5105656680,19.09.2012,Physical Disability Homecare,Charges from Independent Providers,577.50,CARE FIRST IW LTD [SB]
Revenue,Community Wellbeing & Social Care,5105657189,21.09.2012,Elderly Mental Ill Homecare,Charges from Independent Providers,728.00,CARE FIRST IW LTD [SB]
Revenue,Community Wellbeing & Social Care,5105657192,21.09.2012,Physical Disability Homecare,Charges from Independent Providers,"2,618.00",CARE FIRST IW LTD [SB]
Revenue,Community Wellbeing & Social Care,5105657166,21.09.2012,Elderly Frail Homecare,Charges from Independent Providers,"1,141.00",CARE FIRST IW LTD [SB]
Revenue,Community Wellbeing & Social Care,5105657168,21.09.2012,Elderly Frail Homecare,Charges from Independent Providers,"1,347.50",CARE FIRST IW LTD [SB]
Revenue,Community Wellbeing & Social Care,5105657169,21.09.2012,Elderly Frail Homecare,Charges from Independent Providers,"2,450.00",CARE FIRST IW LTD [SB]
Revenue,Community Wellbeing & Social Care,5105657170,21.09.2012,Elderly Frail Homecare,Charges from Independent Providers,910.00,CARE FIRST IW LTD [SB]
Revenue,Community Wellbeing & Social Care,5105657171,21.09.2012,Elderly Frail Homecare,Charges from Independent Providers,"1,813.00",CARE FIRST IW LTD [SB]
Revenue,Community Wellbeing & Social Care,5105657173,21.09.2012,Elderly Frail Homecare,Charges from Independent Providers,"2,205.00",CARE FIRST IW LTD [SB]
Revenue,Community Wellbeing & Social Care,5105657174,21.09.2012,Elderly Frail Homecare,Charges from Independent Providers,857.50,CARE FIRST IW LTD [SB]
Revenue,Community Wellbeing & Social Care,5105657176,21.09.2012,Elderly Frail Homecare,Charges from Independent Providers,735.00,CARE FIRST IW LTD [SB]
Revenue,Community Wellbeing & Social Care,5105657180,21.09.2012,Elderly Frail Homecare,Charges from Independent Providers,612.50,CARE FIRST IW LTD [SB]
Revenue,Community Wellbeing & Social Care,5105657182,21.09.2012,Elderly Frail Homecare,Charges from Independent Providers,546.00,CARE FIRST IW LTD [SB]
Revenue,Community Wellbeing & Social Care,5105657187,21.09.2012,Elderly Frail Homecare,Charges from Independent Providers,735.00,CARE FIRST IW LTD [SB]
Revenue,Community Wellbeing & Social Care,5105656670,19.09.2012,Elderly Frail Homecare,Charges from Independent Providers,"1,953.00",CARE FIRST IW LTD [SB]
Revenue,Community Wellbeing & Social Care,5105656673,19.09.2012,Elderly Frail Homecare,Charges from Independent Providers,983.50,CARE FIRST IW LTD [SB]
Revenue,Community Wellbeing & Social Care,5105656682,19.09.2012,Elderly Frail Homecare,Charges from Independent Providers,735.00,CARE FIRST IW LTD [SB]
Revenue,Economy & Environment,1900561547,12.09.2012,Medina Theatre,Order Settlement,"2,112.50",CARE OF DESTITUTE CHILDREN IN INDIA
Revenue,Community Wellbeing & Social Care,5105656505,19.09.2012,Mental Health Homecare,Charges from Independent Providers,665.00,CAREWATCH (SOUTHAMPTON NF - [SB]
Revenue,Community Wellbeing & Social Care,5105656510,19.09.2012,Dementia Homecare,Charges from Independent Providers,"1,172.50",CAREWATCH (SOUTHAMPTON NF - [SB]
Revenue,Community Wellbeing & Social Care,5105656529,19.09.2012,Elderly Mental Ill Homecare,Charges from Independent Providers,612.50,CAREWATCH (SOUTHAMPTON NF - [SB]
Revenue,Community Wellbeing & Social Care,5105656534,19.09.2012,Physical Disability Homecare,Charges from Independent Providers,735.00,CAREWATCH (SOUTHAMPTON NF - [SB]
Revenue,Community Wellbeing & Social Care,5105656446,19.09.2012,Physical Disability Homecare,Charges from Independent Providers,"1,127.00",CAREWATCH (SOUTHAMPTON NF - [SB]
Revenue,Community Wellbeing & Social Care,5105656448,19.09.2012,Elderly Mental Ill Homecare,Charges from Independent Providers,735.00,CAREWATCH (SOUTHAMPTON NF - [SB]
Revenue,Community Wellbeing & Social Care,5105656460,19.09.2012,Elderly Mental Ill Homecare,Charges from Independent Providers,714.00,CAREWATCH (SOUTHAMPTON NF - [SB]
Revenue,Community Wellbeing & Social Care,5105656463,19.09.2012,Physical Disability Homecare,Charges from Independent Providers,938.00,CAREWATCH (SOUTHAMPTON NF - [SB]
Revenue,Community Wellbeing & Social Care,5105656478,19.09.2012,Dementia Homecare,Charges from Independent Providers,"1,106.00",CAREWATCH (SOUTHAMPTON NF - [SB]
Revenue,Community Wellbeing & Social Care,5105656479,19.09.2012,Dementia Homecare,Charges from Independent Providers,"2,198.00",CAREWATCH (SOUTHAMPTON NF - [SB]
Revenue,Community Wellbeing & Social Care,5105656484,19.09.2012,Physical Disability Homecare,Charges from Independent Providers,857.50,CAREWATCH (SOUTHAMPTON NF - [SB]
Revenue,Community Wellbeing & Social Care,5105657431,21.09.2012,Mental Health Homecare,Charges from Independent Providers,-665.00,CAREWATCH (SOUTHAMPTON NF - [SB]
Revenue,Community Wellbeing & Social Care,5105658604,28.09.2012,Dementia Homecare,Charges from Independent Providers,872.00,CAREWATCH (SOUTHAMPTON NF - [SB]
Revenue,Community Wellbeing & Social Care,5105657112,21.09.2012,Elderly Frail Homecare,Charges from Independent Providers,700.00,CAREWATCH (SOUTHAMPTON NF - [SB]
Revenue,Community Wellbeing & Social Care,5105657113,21.09.2012,Elderly Frail Homecare,Charges from Independent Providers,612.50,CAREWATCH (SOUTHAMPTON NF - [SB]
Revenue,Community Wellbeing & Social Care,5105656487,19.09.2012,Elderly Frail Homecare,Charges from Independent Providers,735.00,CAREWATCH (SOUTHAMPTON NF - [SB]
Revenue,Community Wellbeing & Social Care,5105656490,19.09.2012,Elderly Frail Homecare,Charges from Independent Providers,612.50,CAREWATCH (SOUTHAMPTON NF - [SB]
Revenue,Community Wellbeing & Social Care,5105656524,19.09.2012,Elderly Frail Homecare,Charges from Independent Providers,584.50,CAREWATCH (SOUTHAMPTON NF - [SB]
Revenue,Community Wellbeing & Social Care,5105656526,19.09.2012,Elderly Frail Homecare,Charges from Independent Providers,"1,102.50",CAREWATCH (SOUTHAMPTON NF - [SB]
Revenue,Community Wellbeing & Social Care,5105656528,19.09.2012,Elderly Frail Homecare,Charges from Independent Providers,"1,120.00",CAREWATCH (SOUTHAMPTON NF - [SB]
Revenue,Community Wellbeing & Social Care,5105656454,19.09.2012,Elderly Frail Homecare,Charges from Independent Providers,588.00,CAREWATCH (SOUTHAMPTON NF - [SB]
Revenue,Community Wellbeing & Social Care,5105656458,19.09.2012,Elderly Frail Homecare,Charges from Independent Providers,525.00,CAREWATCH (SOUTHAMPTON NF - [SB]
Revenue,Community Wellbeing & Social Care,5105656461,19.09.2012,Elderly Frail Homecare,Charges from Independent Providers,973.00,CAREWATCH (SOUTHAMPTON NF - [SB]
Revenue,Community Wellbeing & Social Care,5105656462,19.09.2012,Elderly Frail Homecare,Charges from Independent Providers,"1,012.50",CAREWATCH (SOUTHAMPTON NF - [SB]
Revenue,Community Wellbeing & Social Care,5105656464,19.09.2012,Elderly Frail Homecare,Charges from Independent Providers,"1,540.00",CAREWATCH (SOUTHAMPTON NF - [SB]
Revenue,Community Wellbeing & Social Care,5105656465,19.09.2012,Elderly Frail Homecare,Charges from Independent Providers,514.50,CAREWATCH (SOUTHAMPTON NF - [SB]
Revenue,Community Wellbeing & Social Care,5105656471,19.09.2012,Elderly Frail Homecare,Charges from Independent Providers,770.00,CAREWATCH (SOUTHAMPTON NF - [SB]
Revenue,Community Wellbeing & Social Care,5105656472,19.09.2012,Elderly Frail Homecare,Charges from Independent Providers,896.00,CAREWATCH (SOUTHAMPTON NF - [SB]
Revenue,Community Wellbeing & Social Care,5105656475,19.09.2012,Elderly Frail Homecare,Charges from Independent Providers,959.00,CAREWATCH (SOUTHAMPTON NF - [SB]
Revenue,Community Wellbeing & Social Care,5105656476,19.09.2012,Elderly Frail Homecare,Charges from Independent Providers,"1,960.00",CAREWATCH (SOUTHAMPTON NF - [SB]
Revenue,Community Wellbeing & Social Care,5105656477,19.09.2012,Elderly Frail Homecare,Charges from Independent Providers,"1,715.00",CAREWATCH (SOUTHAMPTON NF - [SB]
Revenue,Community Wellbeing & Social Care,5105656480,19.09.2012,Elderly Frail Homecare,Charges from Independent Providers,"1,470.00",CAREWATCH (SOUTHAMPTON NF - [SB]
Revenue,Community Wellbeing & Social Care,5105656492,19.09.2012,Elderly Frail Homecare,Charges from Independent Providers,647.50,CAREWATCH (SOUTHAMPTON NF - [SB]
Revenue,Community Wellbeing & Social Care,5105656501,19.09.2012,Elderly Frail Homecare,Charges from Independent Providers,584.50,CAREWATCH (SOUTHAMPTON NF - [SB]
Revenue,Community Wellbeing & Social Care,5105656504,19.09.2012,Elderly Frail Homecare,Charges from Independent Providers,612.50,CAREWATCH (SOUTHAMPTON NF - [SB]
Revenue,Community Wellbeing & Social Care,5105656507,19.09.2012,Elderly Frail Homecare,Charges from Independent Providers,595.00,CAREWATCH (SOUTHAMPTON NF - [SB]
Revenue,Community Wellbeing & Social Care,5105656509,19.09.2012,Elderly Frail Homecare,Charges from Independent Providers,682.50,CAREWATCH (SOUTHAMPTON NF - [SB]
Revenue,Community Wellbeing & Social Care,5105656516,19.09.2012,Elderly Frail Homecare,Charges from Independent Providers,735.00,CAREWATCH (SOUTHAMPTON NF - [SB]
Revenue,Community Wellbeing & Social Care,5105656518,19.09.2012,Elderly Frail Homecare,Charges from Independent Providers,980.00,CAREWATCH (SOUTHAMPTON NF - [SB]
Revenue,Community Wellbeing & Social Care,5105656520,19.09.2012,Elderly Frail Homecare,Charges from Independent Providers,735.00,CAREWATCH (SOUTHAMPTON NF - [SB]
Revenue,Community Wellbeing & Social Care,5105657430,21.09.2012,Elderly Frail Homecare,Charges from Independent Providers,665.00,CAREWATCH (SOUTHAMPTON NF - [SB]
Revenue,Community Wellbeing & Social Care,5105658045,26.09.2012,Elderly Frail Homecare,Charges from Independent Providers,644.00,CAREWATCH (SOUTHAMPTON NF - [SB]
Revenue,Community Wellbeing & Social Care,5105654313,12.09.2012,Agency Domicillary Care,Professional Services,"1,563.28",CAREWATCH (SOUTHAMPTON NF - [SB]
Revenue,Community Wellbeing & Social Care,1700046059,12.09.2012,Elderly Frail Homecare,Refund of Overpayments,"-1,176.00",CAREWATCH (SOUTHAMPTON NF - [SB]
Revenue,"Chief Executive, Schools & Learning",1900568551,21.09.2012,Graduate Leader,Grants to External Bodies,"5,000.00",CARISBROOKE CLEVER CLOGGS DAY CARE
Revenue,Community Wellbeing & Social Care,5105656815,19.09.2012,Short Term Units,Agency staff,"1,312.50",CARITAS RECRUITMENT LIMITED
Revenue,Community Wellbeing & Social Care,5105656818,19.09.2012,Short Term Units,Agency staff,"1,505.00",CARITAS RECRUITMENT LIMITED
Revenue,Community Wellbeing & Social Care,5105658453,28.09.2012,Short Term Units,Agency staff,"1,295.00",CARITAS RECRUITMENT LIMITED
Revenue,Resources,5105655927,19.09.2012,Electoral Registration Canvas,Printing Costs,"2,091.78",CFH TOTAL DOCUMENT MANAGEMENT
Revenue,Economy & Environment,1900561220,05.09.2012,Crematorium,Professional Services,620.00,REDACTED PERSONAL DATA
Revenue,Economy & Environment,5105657893,26.09.2012,Cemeteries - Northwood,Property Services - Building Maintenance,730.00,CHANT LOCK & SECURITY SERVICE
Revenue,Community Wellbeing & Social Care,5105653556,19.09.2012,Children Young Adults Disability units,Agency staff,"1,373.50",CHARLES HUNTER ASSOCIATES LIMITED
Revenue,Community Wellbeing & Social Care,5105651754,26.09.2012,Children Young Adults Disability units,Agency staff,"1,517.00",CHARLES HUNTER ASSOCIATES LIMITED
Revenue,Community Wellbeing & Social Care,5105654401,12.09.2012,Children Young Adults Disability units,Agency staff,"1,209.50",CHARLES HUNTER ASSOCIATES LIMITED
Revenue,Community Wellbeing & Social Care,5105656359,19.09.2012,Children Young Adults Disability units,Agency staff,"1,189.00",CHARLES HUNTER ASSOCIATES LIMITED
Revenue,Community Wellbeing & Social Care,5105656360,19.09.2012,Children Young Adults Disability units,Agency staff,"1,435.00",CHARLES HUNTER ASSOCIATES LIMITED
Revenue,Community Wellbeing & Social Care,5105656355,26.09.2012,Children Young Adults Disability units,Agency staff,"1,537.50",CHARLES HUNTER ASSOCIATES LIMITED
Revenue,Community Wellbeing & Social Care,5105658099,26.09.2012,Children Young Adults Disability units,Agency staff,"1,230.00",CHARLES HUNTER ASSOCIATES LIMITED
Revenue,"Chief Executive, Schools & Learning",1900568552,21.09.2012,Graduate Leader,Grants to External Bodies,"5,000.00",CHATTERBOX  NURSERY LTD[CC]
Revenue,Community Wellbeing & Social Care,1700046066,11.09.2012,Elderly Frail Nursing Mainland,Charges from Independent Providers,"2,736.75",CHEAM COTTAGE N/H [SB]
Revenue,Community Wellbeing & Social Care,1700045855,11.09.2012,Elderly Frail Nursing Mainland,Charges from Independent Providers,"-2,736.75",CHEAM COTTAGE N/H [SB]
Revenue,Community Wellbeing & Social Care,5105654453,12.09.2012,Elderly Mental Ill Residential Care,Charges from Independent Providers,"1,567.72",CHERRY TREES I.W. LTD [SB]
Revenue,Community Wellbeing & Social Care,5105655722,14.09.2012,Elderly Mental Ill Residential Care,Charges from Independent Providers,"2,287.35",CHERRY TREES I.W. LTD [SB]
Revenue,Community Wellbeing & Social Care,5105654453,12.09.2012,Elderly Frail Residential Care,Charges from Independent Providers,"1,567.72",CHERRY TREES I.W. LTD [SB]
Revenue,Community Wellbeing & Social Care,5105654453,12.09.2012,Elderly Frail Residential Care,Charges from Independent Providers,"1,567.72",CHERRY TREES I.W. LTD [SB]
Revenue,Community Wellbeing & Social Care,5105654453,12.09.2012,Elderly Frail Residential Care,Charges from Independent Providers,"1,567.72",CHERRY TREES I.W. LTD [SB]
Revenue,Community Wellbeing & Social Care,5105654453,12.09.2012,Elderly Frail Residential Care,Charges from Independent Providers,"1,567.72",CHERRY TREES I.W. LTD [SB]
Revenue,Community Wellbeing & Social Care,5105654453,12.09.2012,Elderly Frail Residential Care,Charges from Independent Providers,"1,567.72",CHERRY TREES I.W. LTD [SB]
Revenue,Community Wellbeing & Social Care,5105654453,12.09.2012,Elderly Frail Residential Care,Charges from Independent Providers,"1,567.72",CHERRY TREES I.W. LTD [SB]
Revenue,Community Wellbeing & Social Care,5105654453,12.09.2012,Elderly Frail Residential Care,Charges from Independent Providers,"1,567.72",CHERRY TREES I.W. LTD [SB]
Revenue,Community Wellbeing & Social Care,5105654453,12.09.2012,Elderly Frail Residential Care,Charges from Independent Providers,"1,567.72",CHERRY TREES I.W. LTD [SB]
Revenue,Community Wellbeing & Social Care,5105654453,12.09.2012,Elderly Frail Residential Care,Charges from Independent Providers,"1,567.72",CHERRY TREES I.W. LTD [SB]
Revenue,Community Wellbeing & Social Care,5105657727,26.09.2012,Elderly Frail Residential Care,Charges from Independent Providers,"1,007.82",CHERRY TREES I.W. LTD [SB]
Revenue,Community Wellbeing & Social Care,5105655845,19.09.2012,Mental Health Residential Care,Charges from Independent Providers,"3,208.50",CHOICE SUPPORT
Revenue,Community Wellbeing & Social Care,5105655846,19.09.2012,Mental Health Residential Care,Charges from Independent Providers,"3,208.50",CHOICE SUPPORT
Revenue,Corporate,1900568218,19.09.2012,Education Insurance Fund,Other Services Balance,531.00,CHRIST THE KING COLLEGE
Revenue,Community Wellbeing & Social Care,5105657249,21.09.2012,Adoption,Professional Subscriptions,800.00,CIPFA
Revenue,Community Wellbeing & Social Care,5105657249,21.09.2012,Long Term Intervention Management,Professional Subscriptions,600.00,CIPFA
Revenue,Community Wellbeing & Social Care,5105657650,26.09.2012,Head of Adults,Professional Subscriptions,"1,900.00",CIPFA BUSINESS LTD
Revenue,Economy & Environment,5105655305,21.09.2012,Economic Development,Consultants Fees,"3,000.00",CITY OF WESTMINSTER
Revenue,Economy & Environment,5105655303,14.09.2012,Economic Development,Consultants Fees,"3,000.00",CITY OF WESTMINSTER
Revenue,Economy & Environment,5105653701,26.09.2012,Leisure Access System,Payment to Private Contractors,"15,285.40",CLARITY RETAIL SYSTEMS LTD
Capital,"Chief Executive, Schools & Learning",1900573871,28.09.2012,Cowes One School Pathfinder,External Design and Supervision Fees,"10,780.00",CLARK BOND (SOUTH WEST & WALES) LTD
Revenue,Resources,5105654159,07.09.2012,Litigation Costs,Legal Fees - Other Parties,"3,500.00",CLARKE WILLMOTT LLP
Revenue,Resources,5105653611,05.09.2012,Litigation Costs,Legal Fees - Other Parties,"1,500.00",CLARKE WILLMOTT LLP
Revenue,Resources,5105655604,19.09.2012,Litigation Costs,Legal Fees - Other Parties,750.00,CLARKE WILLMOTT LLP
Revenue,Resources,5105655847,19.09.2012,Litigation Costs,Legal Fees - Other Parties,675.00,CLARKE WILLMOTT LLP
Revenue,"Chief Executive, Schools & Learning",5105654159,07.09.2012,School Reorganisation Consultation Costs,Legal Fees - Other Parties,950.00,CLARKE WILLMOTT LLP
Revenue,Resources,5105658097,26.09.2012,Legal Services,Payment to Private Contractors,"3,500.00",CLARKE WILLMOTT LLP
Capital,"Chief Executive, Schools & Learning",1900568234,21.09.2012,Schools Reorganisation,External Design and Supervision Fees,"19,348.75",CLARKE WILLMOTT LLP
Revenue,Economy & Environment,5105658426,28.09.2012,Crematorium,Maintenance of Operational Equipment,"2,300.00",CLEAR SKIES SOFTWARE
Capital,Economy & Environment,5105654135,07.09.2012,ROW Capital Programme,Payment to Contractors - Capital,920.00,CLIFFORD J. MATTHEWS LTD
Revenue,Community Wellbeing & Social Care,5105654515,12.09.2012,Elderly Mentally Ill Nursing Mainland,Charges from Independent Providers,"2,048.76",COLBURY HOUSE N/H [SB]
Revenue,Resources,5105654219,07.09.2012,ICT Management,Minor Works,"1,959.40",COLD SERVICE LTD
Revenue,Economy & Environment,5105655605,19.09.2012,Ferry Operation,Vehicle Maintenance Costs,"1,184.67",REDACTED PERSONAL DATA
Revenue,Community Wellbeing & Social Care,5105655606,19.09.2012,Ventnor Botanic Gardens,Vehicle Maintenance Costs,961.29,REDACTED PERSONAL DATA
Revenue,Economy & Environment,5105653561,05.09.2012,Fire Control,Fire Comms - Radio,"8,095.86",COMMUNITIES AND LOCAL GOVERNMENT
Revenue,Economy & Environment,5105653555,19.09.2012,Routine Repairs Other Roads,Payment to Private Contractors,600.00,CONTINENTAL LANDSCAPES LTD
Revenue,Economy & Environment,5105653560,19.09.2012,Routine Repairs Other Roads,Payment to Private Contractors,"1,978.00",CONTINENTAL LANDSCAPES LTD
Revenue,Community Wellbeing & Social Care,5105654504,12.09.2012,Elderly Mental Ill Residential Care,Charges from Independent Providers,"1,642.20",CORNELIA HEIGHTS CARE HOME [SB]
Revenue,Community Wellbeing & Social Care,5105654504,12.09.2012,Elderly Mental Ill Residential Care,Charges from Independent Providers,"1,930.32",CORNELIA HEIGHTS CARE HOME [SB]
Revenue,Community Wellbeing & Social Care,5105654504,12.09.2012,Elderly Mental Ill Residential Care,Charges from Independent Providers,"1,930.32",CORNELIA HEIGHTS CARE HOME [SB]
Revenue,Community Wellbeing & Social Care,5105654504,12.09.2012,Elderly Mental Ill Residential Care,Charges from Independent Providers,"1,642.20",CORNELIA HEIGHTS CARE HOME [SB]
Revenue,Community Wellbeing & Social Care,5105655806,19.09.2012,Elderly Mental Ill Residential Care,Charges from Independent Providers,"1,759.50",CORNELIA HEIGHTS CARE HOME [SB]
Revenue,Community Wellbeing & Social Care,5105655807,19.09.2012,Elderly Mental Ill Residential Care,Charges from Independent Providers,"1,759.50",CORNELIA HEIGHTS CARE HOME [SB]
Revenue,Community Wellbeing & Social Care,5105654194,07.09.2012,Elderly Frail Residential Care,Charges from Independent Providers,"7,997.04",CORNELIA HEIGHTS CARE HOME [SB]
Revenue,Community Wellbeing & Social Care,5105654504,12.09.2012,Elderly Frail Residential Care,Charges from Independent Providers,"1,567.72",CORNELIA HEIGHTS CARE HOME [SB]
Revenue,Community Wellbeing & Social Care,5105654504,12.09.2012,Elderly Frail Residential Care,Charges from Independent Providers,"1,567.72",CORNELIA HEIGHTS CARE HOME [SB]
Revenue,Community Wellbeing & Social Care,5105654504,12.09.2012,Elderly Frail Residential Care,Charges from Independent Providers,"1,930.32",CORNELIA HEIGHTS CARE HOME [SB]
Revenue,Community Wellbeing & Social Care,5105654504,12.09.2012,Elderly Frail Residential Care,Charges from Independent Providers,"1,930.32",CORNELIA HEIGHTS CARE HOME [SB]
Revenue,Community Wellbeing & Social Care,5105654504,12.09.2012,Elderly Frail Residential Care,Charges from Independent Providers,"1,930.32",CORNELIA HEIGHTS CARE HOME [SB]
Revenue,Community Wellbeing & Social Care,5105654504,12.09.2012,Elderly Frail Residential Care,Charges from Independent Providers,"1,930.32",CORNELIA HEIGHTS CARE HOME [SB]
Revenue,Community Wellbeing & Social Care,5105654504,12.09.2012,Elderly Frail Residential Care,Charges from Independent Providers,"1,930.32",CORNELIA HEIGHTS CARE HOME [SB]
Revenue,Community Wellbeing & Social Care,5105654504,12.09.2012,Elderly Frail Residential Care,Charges from Independent Providers,"1,567.72",CORNELIA HEIGHTS CARE HOME [SB]
Revenue,Community Wellbeing & Social Care,5105655808,19.09.2012,Elderly Frail Residential Care,Charges from Independent Providers,"1,679.70",CORNELIA HEIGHTS CARE HOME [SB]
Revenue,Community Wellbeing & Social Care,5105655814,19.09.2012,Elderly Frail Residential Care,Charges from Independent Providers,"2,550.78",CORNELIA HEIGHTS CARE HOME [SB]
Revenue,Community Wellbeing & Social Care,5105655809,19.09.2012,Elderly Frail Residential Care,Charges from Independent Providers,"1,119.80",CORNELIA HEIGHTS CARE HOME [SB]
Revenue,Community Wellbeing & Social Care,5105655810,19.09.2012,Elderly Frail Residential Care,Charges from Independent Providers,"2,351.58",CORNELIA HEIGHTS CARE HOME [SB]
Revenue,Community Wellbeing & Social Care,5105655811,19.09.2012,Elderly Frail Residential Care,Charges from Independent Providers,"4,756.86",CORNELIA HEIGHTS CARE HOME [SB]
Revenue,Community Wellbeing & Social Care,5105655812,19.09.2012,Elderly Frail Residential Care,Charges from Independent Providers,"6,411.42",CORNELIA HEIGHTS CARE HOME [SB]
Revenue,Community Wellbeing & Social Care,5105655813,19.09.2012,Elderly Frail Residential Care,Charges from Independent Providers,"3,863.31",CORNELIA HEIGHTS CARE HOME [SB]
Revenue,Community Wellbeing & Social Care,5105654504,12.09.2012,REDACTED PERSONAL DATA,Order Settlement,"1,567.72",CORNELIA HEIGHTS CARE HOME [SB]
Revenue,Community Wellbeing & Social Care,1700045991,07.09.2012,Elderly Frail Residential Care,Refund of Overpayments,"-2,068.20",CORNELIA HEIGHTS CARE HOME [SB]
Revenue,Community Wellbeing & Social Care,5105654502,12.09.2012,Elderly Mental Ill Residential Care,Charges from Independent Providers,"1,930.32",CORNELIA MANOR [SB]
Revenue,Community Wellbeing & Social Care,5105654502,12.09.2012,Elderly Mental Ill Residential Care,Charges from Independent Providers,"1,642.20",CORNELIA MANOR [SB]
Revenue,Community Wellbeing & Social Care,5105654502,12.09.2012,Elderly Mental Ill Residential Care,Charges from Independent Providers,"1,642.20",CORNELIA MANOR [SB]
Revenue,Community Wellbeing & Social Care,5105654502,12.09.2012,Elderly Mental Ill Residential Care,Charges from Independent Providers,"1,642.20",CORNELIA MANOR [SB]
Revenue,Community Wellbeing & Social Care,5105654502,12.09.2012,Elderly Mental Ill Residential Care,Charges from Independent Providers,"1,642.20",CORNELIA MANOR [SB]
Revenue,Community Wellbeing & Social Care,5105654502,12.09.2012,Elderly Mental Ill Residential Care,Charges from Independent Providers,"1,642.20",CORNELIA MANOR [SB]
Revenue,Community Wellbeing & Social Care,5105654502,12.09.2012,Elderly Mental Ill Residential Care,Charges from Independent Providers,"1,930.32",CORNELIA MANOR [SB]
Revenue,Community Wellbeing & Social Care,5105655254,12.09.2012,Elderly Mental Ill Residential Care,Charges from Independent Providers,"1,103.04",CORNELIA MANOR [SB]
Revenue,Community Wellbeing & Social Care,5105658694,28.09.2012,Elderly Mental Ill Residential Care,Charges from Independent Providers,"1,642.20",CORNELIA MANOR [SB]
Revenue,Community Wellbeing & Social Care,5105654502,12.09.2012,Elderly Frail Residential Care,Charges from Independent Providers,"1,567.72",CORNELIA MANOR [SB]
Revenue,Community Wellbeing & Social Care,5105654502,12.09.2012,Elderly Frail Residential Care,Charges from Independent Providers,"1,567.72",CORNELIA MANOR [SB]
Revenue,Community Wellbeing & Social Care,5105654502,12.09.2012,Elderly Frail Residential Care,Charges from Independent Providers,"1,567.72",CORNELIA MANOR [SB]
Revenue,Community Wellbeing & Social Care,5105654502,12.09.2012,Elderly Frail Residential Care,Charges from Independent Providers,"1,567.72",CORNELIA MANOR [SB]
Revenue,Community Wellbeing & Social Care,5105654502,12.09.2012,Elderly Frail Residential Care,Charges from Independent Providers,"1,567.72",CORNELIA MANOR [SB]
Revenue,Community Wellbeing & Social Care,5105654502,12.09.2012,Elderly Frail Residential Care,Charges from Independent Providers,"1,567.72",CORNELIA MANOR [SB]
Revenue,Community Wellbeing & Social Care,5105654502,12.09.2012,Elderly Frail Residential Care,Charges from Independent Providers,"1,567.72",CORNELIA MANOR [SB]
Revenue,Community Wellbeing & Social Care,5105654502,12.09.2012,Elderly Frail Residential Care,Charges from Independent Providers,"1,642.20",CORNELIA MANOR [SB]
Revenue,Community Wellbeing & Social Care,5105654502,12.09.2012,Elderly Frail Residential Care,Charges from Independent Providers,"1,930.32",CORNELIA MANOR [SB]
Revenue,Community Wellbeing & Social Care,5105654502,12.09.2012,REDACTED PERSONAL DATA,Order Settlement,"1,930.32",CORNELIA MANOR [SB]
Revenue,Community Wellbeing & Social Care,5105654502,12.09.2012,REDACTED PERSONAL DATA,Order Settlement,785.40,CORNELIA MANOR [SB]
Revenue,Community Wellbeing & Social Care,5105654502,12.09.2012,REDACTED PERSONAL DATA,Order Settlement,"1,930.32",CORNELIA MANOR [SB]
Revenue,Community Wellbeing & Social Care,5105654502,12.09.2012,REDACTED PERSONAL DATA,Order Settlement,"1,567.72",CORNELIA MANOR [SB]
Revenue,"Chief Executive, Schools & Learning",5105653267,14.09.2012,Branstone Farm,Teaching Materials,919.49,COUNTRYWIDE FARMERS PLC
Revenue,"Chief Executive, Schools & Learning",5105655760,14.09.2012,Branstone Farm,Teaching Materials,-919.49,COUNTRYWIDE FARMERS PLC
Revenue,Economy & Environment,5105657909,26.09.2012,Countryside Management,General Materials,629.50,COUNTY FENCING SUPPLIES
Capital,Economy & Environment,5105655283,12.09.2012,Cremator Replacement,External Design and Supervision Fees,-750.00,COWAN CONSULTANCY LTD
Capital,Economy & Environment,5105655284,12.09.2012,Cremator Replacement,External Design and Supervision Fees,750.00,COWAN CONSULTANCY LTD
Capital,Economy & Environment,5105655285,19.09.2012,Cremator Replacement,External Design and Supervision Fees,687.50,COWAN CONSULTANCY LTD
Capital,Economy & Environment,5105654155,07.09.2012,Highway Structures Capital,Payment to Contractors - Capital,"2,821.67",COWAN CONSULTANCY LTD
Revenue,"Chief Executive, Schools & Learning",1900573621,26.09.2012,Queens Visit,Hire of General Equipment,"1,107.55",COWES PRIMARY SCHOOL
Revenue,Community Wellbeing & Social Care,5105655787,19.09.2012,Fostering,Interview & recruitment expenses,572.00,CRIMINAL RECORDS BUREAU
Revenue,Resources,5105655787,19.09.2012,HR Support Team,Interview & recruitment expenses,"1,584.00",CRIMINAL RECORDS BUREAU
Revenue,Community Wellbeing & Social Care,5105658468,28.09.2012,SP Homelessness,Payment to Private Contractors,"5,657.14",CROSS KEYS SUPPORT GROUP [SP]
Revenue,Community Wellbeing & Social Care,5105653485,05.09.2012,Homelessness,Accommodation Costs - Leaseholder Payments,780.00,REDACTED PERSONAL DATA
Revenue,Community Wellbeing & Social Care,5105653485,05.09.2012,Homelessness,Accommodation Costs - Leaseholder Payments,750.01,REDACTED PERSONAL DATA
Revenue,Economy & Environment,5105651932,19.09.2012,North Ground Maintenance Non-Horticultural,Payment to Private Contractors,920.00,D A R E S LTD
Revenue,"Chief Executive, Schools & Learning",5105653712,05.09.2012,Non-Delegated Building Maintenance,Property Services - Planned Maintenance,"5,079.88",D A R E S LTD
Revenue,"Chief Executive, Schools & Learning",5105653712,05.09.2012,Non-Delegated Building Maintenance,Property Services - Planned Maintenance,"5,593.79",D A R E S LTD
Revenue,"Chief Executive, Schools & Learning",5105653748,05.09.2012,Non-Delegated Building Maintenance,Property Services - Planned Maintenance,"1,250.00",D A R E S LTD
Revenue,Economy & Environment,5105654402,12.09.2012,Public Conveniences - General,Property Services - Planned Maintenance,557.95,D A R E S LTD
Revenue,Economy & Environment,5105654406,12.09.2012,Public Conveniences - General,Property Services - Planned Maintenance,"3,471.38",D A R E S LTD
Revenue,"Chief Executive, Schools & Learning",5105653565,05.09.2012,Non-Delegated Building Maintenance,Property Services - Planned Maintenance,850.00,D A R E S LTD
Revenue,Community Wellbeing & Social Care,5105653493,05.09.2012,Homelessness,Accommodation Costs - Leaseholder Payments,859.95,REDACTED PERSONAL DATA
Revenue,Community Wellbeing & Social Care,5105654466,12.09.2012,Mental Health Residential Care,Charges from Independent Providers,"1,567.72",REDACTED PERSONAL DATA
Revenue,Community Wellbeing & Social Care,5105654466,12.09.2012,Mental Health Residential Care,Charges from Independent Providers,"1,567.72",REDACTED PERSONAL DATA
Revenue,Community Wellbeing & Social Care,5105654466,12.09.2012,Mental Health Residential Care,Charges from Independent Providers,"1,567.72",REDACTED PERSONAL DATA
Revenue,Community Wellbeing & Social Care,5105654466,12.09.2012,Mental Health Residential Care,Charges from Independent Providers,"1,567.72",REDACTED PERSONAL DATA
Revenue,Community Wellbeing & Social Care,5105654466,12.09.2012,Mental Health Residential Care,Charges from Independent Providers,"1,567.72",REDACTED PERSONAL DATA
Revenue,Community Wellbeing & Social Care,1900568021,19.09.2012,Homelessness,Accommodation Costs - Service Users,"1,050.00",REDACTED PERSONAL DATA
Revenue,Community Wellbeing & Social Care,1900573752,28.09.2012,Fostering services,Regular Respite Care,640.00,REDACTED PERSONAL DATA
Revenue,Community Wellbeing & Social Care,5105653496,05.09.2012,Homelessness,Accommodation Costs - Leaseholder Payments,788.67,REDACTED PERSONAL DATA
Revenue,Community Wellbeing & Social Care,5105653515,05.09.2012,Homelessness,Accommodation Costs - Leaseholder Payments,678.90,REDACTED PERSONAL DATA
Capital,Community Wellbeing & Social Care,5105657704,26.09.2012,Pan Neighbourhood Management,Property Services - Building Maintenance,"3,730.00",REDACTED PERSONAL DATA
Capital,Community Wellbeing & Social Care,1900561235,05.09.2012,Disabled Facility Grants,Capital Grants,"3,930.00",REDACTED PERSONAL DATA
Capital,Community Wellbeing & Social Care,1900561236,05.09.2012,Disabled Facility Grants,Capital Grants,"3,595.00",REDACTED PERSONAL DATA
Capital,Community Wellbeing & Social Care,1900561360,05.09.2012,Disabled Facility Grants,Capital Grants,"3,950.00",REDACTED PERSONAL DATA
Capital,Community Wellbeing & Social Care,1900569166,26.09.2012,Disabled Facility Grants,Capital Grants,"4,860.00",REDACTED PERSONAL DATA
Revenue,Community Wellbeing & Social Care,5105653495,05.09.2012,Homelessness,Accommodation Costs - Leaseholder Payments,888.33,REDACTED PERSONAL DATA
Revenue,Community Wellbeing & Social Care,5105653495,05.09.2012,Homelessness,Accommodation Costs - Leaseholder Payments,814.71,REDACTED PERSONAL DATA
Revenue,Community Wellbeing & Social Care,5105656006,19.09.2012,Dementia Homecare,Charges from Independent Providers,577.50,REDACTED PERSONAL DATA
Revenue,Community Wellbeing & Social Care,5105654479,12.09.2012,Elderly Frail Residential Care,Charges from Independent Providers,"1,567.72",REDACTED PERSONAL DATA
Revenue,Community Wellbeing & Social Care,5105654479,12.09.2012,Elderly Frail Residential Care,Charges from Independent Providers,"1,567.72",REDACTED PERSONAL DATA
Revenue,Community Wellbeing & Social Care,5105654479,12.09.2012,Elderly Frail Residential Care,Charges from Independent Providers,"1,567.72",REDACTED PERSONAL DATA
Revenue,Community Wellbeing & Social Care,5105655976,19.09.2012,Elderly Frail Homecare,Charges from Independent Providers,"1,102.50",REDACTED PERSONAL DATA
Revenue,Community Wellbeing & Social Care,5105655980,19.09.2012,Elderly Frail Homecare,Charges from Independent Providers,602.00,REDACTED PERSONAL DATA
Revenue,Community Wellbeing & Social Care,5105655982,19.09.2012,Elderly Frail Homecare,Charges from Independent Providers,"1,470.00",REDACTED PERSONAL DATA
Revenue,Community Wellbeing & Social Care,5105655983,19.09.2012,Elderly Frail Homecare,Charges from Independent Providers,980.00,REDACTED PERSONAL DATA
Revenue,Community Wellbeing & Social Care,5105655985,19.09.2012,Elderly Frail Homecare,Charges from Independent Providers,612.50,REDACTED PERSONAL DATA
Revenue,Community Wellbeing & Social Care,5105655986,19.09.2012,Elderly Frail Homecare,Charges from Independent Providers,595.00,REDACTED PERSONAL DATA
Revenue,Community Wellbeing & Social Care,5105655989,19.09.2012,Elderly Frail Homecare,Charges from Independent Providers,553.00,REDACTED PERSONAL DATA
Revenue,Community Wellbeing & Social Care,5105655992,19.09.2012,Elderly Frail Homecare,Charges from Independent Providers,612.50,REDACTED PERSONAL DATA
Revenue,Community Wellbeing & Social Care,5105655996,19.09.2012,Elderly Frail Homecare,Charges from Independent Providers,"1,225.00",REDACTED PERSONAL DATA
Revenue,Community Wellbeing & Social Care,5105655997,19.09.2012,Elderly Frail Homecare,Charges from Independent Providers,"1,225.00",REDACTED PERSONAL DATA
Revenue,Community Wellbeing & Social Care,5105655998,19.09.2012,Elderly Frail Homecare,Charges from Independent Providers,812.00,REDACTED PERSONAL DATA
Revenue,Community Wellbeing & Social Care,5105655999,19.09.2012,Elderly Frail Homecare,Charges from Independent Providers,"1,102.50",REDACTED PERSONAL DATA
Revenue,Community Wellbeing & Social Care,5105656000,19.09.2012,Elderly Frail Homecare,Charges from Independent Providers,"1,036.00",REDACTED PERSONAL DATA
Revenue,Community Wellbeing & Social Care,5105656001,19.09.2012,Elderly Frail Homecare,Charges from Independent Providers,"2,502.50",REDACTED PERSONAL DATA
Revenue,Community Wellbeing & Social Care,5105656002,19.09.2012,Elderly Frail Homecare,Charges from Independent Providers,"2,450.00",REDACTED PERSONAL DATA
Revenue,Community Wellbeing & Social Care,5105656003,19.09.2012,Elderly Frail Homecare,Charges from Independent Providers,"2,450.00",REDACTED PERSONAL DATA
Revenue,Community Wellbeing & Social Care,5105656004,19.09.2012,Elderly Frail Homecare,Charges from Independent Providers,612.50,REDACTED PERSONAL DATA
Revenue,Community Wellbeing & Social Care,5105656011,19.09.2012,Elderly Frail Homecare,Charges from Independent Providers,542.50,REDACTED PERSONAL DATA
Revenue,Community Wellbeing & Social Care,5105656012,19.09.2012,Elderly Frail Homecare,Charges from Independent Providers,875.00,REDACTED PERSONAL DATA
Revenue,Community Wellbeing & Social Care,5105656015,19.09.2012,Elderly Frail Homecare,Charges from Independent Providers,623.00,REDACTED PERSONAL DATA
Revenue,Community Wellbeing & Social Care,5105656019,19.09.2012,Elderly Frail Homecare,Charges from Independent Providers,"1,120.00",REDACTED PERSONAL DATA
Revenue,Community Wellbeing & Social Care,5105656020,19.09.2012,Elderly Frail Homecare,Charges from Independent Providers,532.00,REDACTED PERSONAL DATA
Revenue,Community Wellbeing & Social Care,5105656022,19.09.2012,Elderly Frail Homecare,Charges from Independent Providers,980.00,REDACTED PERSONAL DATA
Revenue,Community Wellbeing & Social Care,5105656023,19.09.2012,Elderly Frail Homecare,Charges from Independent Providers,665.00,REDACTED PERSONAL DATA
Revenue,Community Wellbeing & Social Care,5105656024,19.09.2012,Elderly Frail Homecare,Charges from Independent Providers,560.00,REDACTED PERSONAL DATA
Revenue,Community Wellbeing & Social Care,5105656027,19.09.2012,Elderly Frail Homecare,Charges from Independent Providers,980.00,REDACTED PERSONAL DATA
Revenue,Community Wellbeing & Social Care,5105656028,19.09.2012,Elderly Frail Homecare,Charges from Independent Providers,"2,450.00",REDACTED PERSONAL DATA
Revenue,Community Wellbeing & Social Care,5105656030,19.09.2012,Elderly Frail Homecare,Charges from Independent Providers,959.00,REDACTED PERSONAL DATA
Revenue,Community Wellbeing & Social Care,5105656031,19.09.2012,Elderly Frail Homecare,Charges from Independent Providers,556.50,REDACTED PERSONAL DATA
Revenue,Community Wellbeing & Social Care,5105656033,19.09.2012,Elderly Frail Homecare,Charges from Independent Providers,735.00,REDACTED PERSONAL DATA
Revenue,Community Wellbeing & Social Care,5105656431,19.09.2012,Elderly Frail Homecare,Charges from Independent Providers,693.00,REDACTED PERSONAL DATA
Revenue,Community Wellbeing & Social Care,5105657734,26.09.2012,Elderly Frail Homecare,Charges from Independent Providers,896.00,REDACTED PERSONAL DATA
Revenue,Community Wellbeing & Social Care,5105654479,12.09.2012,Dementia Residential care,Charges from Independent Providers,"1,930.32",REDACTED PERSONAL DATA
Revenue,Community Wellbeing & Social Care,5105654479,12.09.2012,REDACTED PERSONAL DATA,Order Settlement,"1,642.20",REDACTED PERSONAL DATA
Revenue,Community Wellbeing & Social Care,5105654479,12.09.2012,REDACTED PERSONAL DATA,Order Settlement,"1,567.72",REDACTED PERSONAL DATA
Revenue,Community Wellbeing & Social Care,1700045990,12.09.2012,Elderly Frail Residential Care,Refund of Overpayments,"-6,550.83",REDACTED PERSONAL DATA
Revenue,Community Wellbeing & Social Care,5105653481,05.09.2012,Homelessness,Accommodation Costs - Bed & Breakfast,"5,505.50",DALTON ENTERPRISES [HZ]
Revenue,Community Wellbeing & Social Care,5105653484,05.09.2012,Homelessness,Accommodation Costs - Leaseholder Payments,730.69,DALTON PROPERTY LTD [HZ]
Revenue,Community Wellbeing & Social Care,5105653484,05.09.2012,Homelessness,Accommodation Costs - Leaseholder Payments,579.89,DALTON PROPERTY LTD [HZ]
Revenue,Community Wellbeing & Social Care,5105653484,05.09.2012,Homelessness,Accommodation Costs - Leaseholder Payments,579.89,DALTON PROPERTY LTD [HZ]
Revenue,Community Wellbeing & Social Care,5105653484,05.09.2012,Homelessness,Accommodation Costs - Leaseholder Payments,672.66,DALTON PROPERTY LTD [HZ]
Revenue,Community Wellbeing & Social Care,5105653484,05.09.2012,Homelessness,Accommodation Costs - Leaseholder Payments,672.66,DALTON PROPERTY LTD [HZ]
Revenue,Community Wellbeing & Social Care,5105653484,05.09.2012,Homelessness,Accommodation Costs - Leaseholder Payments,765.48,DALTON PROPERTY LTD [HZ]
Revenue,Community Wellbeing & Social Care,5105653484,05.09.2012,Homelessness,Accommodation Costs - Leaseholder Payments,626.30,DALTON PROPERTY LTD [HZ]
Revenue,Community Wellbeing & Social Care,5105653484,05.09.2012,Homelessness,Accommodation Costs - Leaseholder Payments,672.66,DALTON PROPERTY LTD [HZ]
Capital,Resources,5105656827,26.09.2012,Capital Receipts,External Design and Supervision Fees,800.00,DANIELLS HARRISON CHART.SURVEYORS
Capital,Community Wellbeing & Social Care,1900567869,19.09.2012,Housing Renewal Assistance,Capital Grants,"4,500.00",DAREN PHILLIPS LTD
Revenue,Community Wellbeing & Social Care,5105653499,05.09.2012,Homelessness,Accommodation Costs - Leaseholder Payments,742.26,REDACTED PERSONAL DATA
Revenue,Resources,5105653635,05.09.2012,Director of Resources,Agency staff,"12,350.00",DAVE BURBAGE CONSULTING LTD[SB]
Capital,Community Wellbeing & Social Care,1900568713,26.09.2012,Disabled Facility Grants,Capital Grants,"3,262.74",DAVID LANGDON CHARTERED BUILDING CO
Revenue,Resources,1900567552,14.09.2012,County Hall Central Mail Room,Postage,"5,000.00",DD - NEOPOST LTD
Revenue,Resources,1900573866,28.09.2012,County Hall Central Mail Room,Postage,"5,000.00",DD - NEOPOST LTD
Revenue,Resources,1900573862,28.09.2012,Council Tax,Postage,503.70,DD-ROYAL MAIL WEST TERRITORIES
Revenue,Resources,1900561586,07.09.2012,Council Tax,Postage,598.01,DD-ROYAL MAIL WEST TERRITORIES
Revenue,Resources,1900561586,07.09.2012,Housing Benefit,Postage,543.76,DD-ROYAL MAIL WEST TERRITORIES
Revenue,Resources,1900568589,21.09.2012,Council Tax,Postage,840.67,DD-ROYAL MAIL WEST TERRITORIES
Revenue,Resources,1900568589,21.09.2012,Housing Benefit,Postage,762.51,DD-ROYAL MAIL WEST TERRITORIES
Revenue,Resources,1900567862,14.09.2012,Housing Benefit,Postage,548.26,DD-ROYAL MAIL WEST TERRITORIES
Revenue,Resources,1900562103,14.09.2012,Council Tax,Postage,692.46,DD-ROYAL MAIL WEST TERRITORIES
Revenue,Resources,1900562103,14.09.2012,Housing Benefit,Postage,621.96,DD-ROYAL MAIL WEST TERRITORIES
Revenue,Corporate,1900568051,21.09.2012,Motor Insurance Fund,Other Services Balance,"15,000.00",DD-ZURICH MUNICIPAL-ALL RISKS
Revenue,Community Wellbeing & Social Care,1900561700,07.09.2012,Leaving Care  Costs,Support for Looked After Children,"1,050.00",DERBY CITY COUNCIL
Revenue,Economy & Environment,5105655913,26.09.2012,Off-Street Parking Operations,Vehicle Maintenance Costs,881.92,DH PRICE MOTORS
Revenue,Economy & Environment,5105656338,19.09.2012,Carnivals/Regattas,Payment to Private Contractors,"7,105.75",DOCKLANDS TRAFFIC MANAGEMENT LTD
Revenue,"Chief Executive, Schools & Learning",5105656339,19.09.2012,Queens Visit,Payment to Private Contractors,"3,707.60",DOCKLANDS TRAFFIC MANAGEMENT LTD
Revenue,Community Wellbeing & Social Care,5105657444,21.09.2012,Elderly Frail Homecare,Charges from Independent Providers,735.00,DOLPHIN CARE (IOW) [SB]
Revenue,Community Wellbeing & Social Care,5105657445,21.09.2012,Elderly Frail Homecare,Charges from Independent Providers,560.00,DOLPHIN CARE (IOW) [SB]
Revenue,Community Wellbeing & Social Care,5105657447,21.09.2012,Elderly Frail Homecare,Charges from Independent Providers,892.50,DOLPHIN CARE (IOW) [SB]
Revenue,Community Wellbeing & Social Care,5105657449,21.09.2012,Elderly Frail Homecare,Charges from Independent Providers,577.50,DOLPHIN CARE (IOW) [SB]
Revenue,Community Wellbeing & Social Care,5105657450,21.09.2012,Elderly Frail Homecare,Charges from Independent Providers,"1,449.00",DOLPHIN CARE (IOW) [SB]
Revenue,Community Wellbeing & Social Care,5105657451,21.09.2012,Elderly Frail Homecare,Charges from Independent Providers,"1,715.00",DOLPHIN CARE (IOW) [SB]
Revenue,Community Wellbeing & Social Care,5105657452,21.09.2012,Elderly Frail Homecare,Charges from Independent Providers,"1,001.00",DOLPHIN CARE (IOW) [SB]
Revenue,Community Wellbeing & Social Care,5105657453,21.09.2012,Elderly Frail Homecare,Charges from Independent Providers,"2,205.00",DOLPHIN CARE (IOW) [SB]
Revenue,Community Wellbeing & Social Care,5105658053,26.09.2012,Elderly Frail Homecare,Charges from Independent Providers,"-1,225.00",DOLPHIN CARE (IOW) [SB]
Revenue,Community Wellbeing & Social Care,5105658054,26.09.2012,Elderly Frail Homecare,Charges from Independent Providers,"1,113.00",DOLPHIN CARE (IOW) [SB]
Revenue,Community Wellbeing & Social Care,5105654517,12.09.2012,Elderly Mental Ill Residential Care,Charges from Independent Providers,"1,930.32",DOWNSIDE HOUSE [SB]
Revenue,Community Wellbeing & Social Care,5105654517,12.09.2012,Elderly Mental Ill Residential Care,Charges from Independent Providers,"1,642.20",DOWNSIDE HOUSE [SB]
Revenue,Community Wellbeing & Social Care,5105656412,19.09.2012,Elderly Mental Ill Residential Care,Charges from Independent Providers,"1,930.32",DOWNSIDE HOUSE [SB]
Revenue,Community Wellbeing & Social Care,5105654517,12.09.2012,Elderly Frail Residential Care,Charges from Independent Providers,"1,567.72",DOWNSIDE HOUSE [SB]
Revenue,Community Wellbeing & Social Care,5105654517,12.09.2012,Elderly Frail Residential Care,Charges from Independent Providers,"1,567.72",DOWNSIDE HOUSE [SB]
Revenue,Community Wellbeing & Social Care,5105654517,12.09.2012,Elderly Frail Residential Care,Charges from Independent Providers,"1,930.32",DOWNSIDE HOUSE [SB]
Revenue,Community Wellbeing & Social Care,5105654517,12.09.2012,Elderly Frail Residential Care,Charges from Independent Providers,"1,567.72",DOWNSIDE HOUSE [SB]
Revenue,Community Wellbeing & Social Care,5105654517,12.09.2012,Elderly Frail Residential Care,Charges from Independent Providers,"1,930.32",DOWNSIDE HOUSE [SB]
Revenue,Community Wellbeing & Social Care,5105654517,12.09.2012,Elderly Frail Residential Care,Charges from Independent Providers,"1,930.32",DOWNSIDE HOUSE [SB]
Revenue,Community Wellbeing & Social Care,5105654517,12.09.2012,Elderly Frail Residential Care,Charges from Independent Providers,"1,567.72",DOWNSIDE HOUSE [SB]
Revenue,Community Wellbeing & Social Care,1700045995,12.09.2012,REDACTED PERSONAL DATA,Deferred Payments,-938.40,DOWNSIDE HOUSE [SB]
Revenue,Community Wellbeing & Social Care,1700046071,12.09.2012,Dementia Residential care,Refund of Overpayments,"-1,585.62",DOWNSIDE HOUSE [SB]
Revenue,Resources,5105654269,07.09.2012,Coroner,Post Mortem Fees,774.40,REDACTED PERSONAL DATA
Revenue,Resources,5105656397,19.09.2012,Coroner,Post Mortem Fees,945.00,REDACTED PERSONAL DATA
Revenue,Community Wellbeing & Social Care,5105654474,12.09.2012,Learning Disabilities Residential Care,Charges from Independent Providers,"1,757.00",REDACTED PERSONAL DATA
Revenue,Community Wellbeing & Social Care,5105654474,12.09.2012,Elderly Frail Residential Care,Charges from Independent Providers,"2,545.76",REDACTED PERSONAL DATA
Revenue,Community Wellbeing & Social Care,5105654474,12.09.2012,Elderly Frail Residential Care,Charges from Independent Providers,"1,757.00",REDACTED PERSONAL DATA
Revenue,Community Wellbeing & Social Care,5105647517,21.09.2012,Looked After Children Units 1-4,Agency staff,"1,312.50",EDEN BROWN LTD
Revenue,Community Wellbeing & Social Care,5105653454,07.09.2012,Looked After Children Units 1-4,Agency staff,"1,665.00",EDEN BROWN LTD
Revenue,Community Wellbeing & Social Care,5105655110,12.09.2012,Looked After Children Units 1-4,Agency staff,"1,312.50",EDEN BROWN LTD
Revenue,Community Wellbeing & Social Care,5105656802,19.09.2012,Looked After Children Units 1-4,Agency staff,"2,345.00",EDEN BROWN LTD
Revenue,Community Wellbeing & Social Care,5105655115,19.09.2012,Short Term Units,Agency staff,"1,350.00",EDEN BROWN LTD
Revenue,Community Wellbeing & Social Care,5105656788,19.09.2012,Short Term Units,Agency staff,"1,665.00",EDEN BROWN LTD
Revenue,Community Wellbeing & Social Care,5105657954,26.09.2012,Short Term Units,Agency staff,"1,665.00",EDEN BROWN LTD
Revenue,Community Wellbeing & Social Care,5105654063,07.09.2012,Elderly Mental Ill Residential Care,Charges from Independent Providers,620.46,EDEN HOUSE [SB]
Revenue,Community Wellbeing & Social Care,5105654501,12.09.2012,Elderly Mental Ill Residential Care,Charges from Independent Providers,"1,930.32",EDEN HOUSE [SB]
Revenue,Community Wellbeing & Social Care,5105654501,12.09.2012,Elderly Mental Ill Residential Care,Charges from Independent Providers,"1,930.32",EDEN HOUSE [SB]
Revenue,Community Wellbeing & Social Care,5105654501,12.09.2012,Elderly Frail Residential Care,Charges from Independent Providers,"1,930.32",EDEN HOUSE [SB]
Revenue,Community Wellbeing & Social Care,5105654501,12.09.2012,Elderly Frail Residential Care,Charges from Independent Providers,"1,930.32",EDEN HOUSE [SB]
Revenue,Community Wellbeing & Social Care,5105654501,12.09.2012,Elderly Frail Residential Care,Charges from Independent Providers,"1,930.32",EDEN HOUSE [SB]
Revenue,Community Wellbeing & Social Care,5105654501,12.09.2012,Elderly Frail Residential Care,Charges from Independent Providers,"1,930.32",EDEN HOUSE [SB]
Revenue,Community Wellbeing & Social Care,5105654501,12.09.2012,Elderly Frail Residential Care,Charges from Independent Providers,"1,930.32",EDEN HOUSE [SB]
Revenue,Community Wellbeing & Social Care,5105654501,12.09.2012,Dementia Residential care,Charges from Independent Providers,"1,930.32",EDEN HOUSE [SB]
Revenue,Community Wellbeing & Social Care,5105654501,12.09.2012,Dementia Residential care,Charges from Independent Providers,"1,930.32",EDEN HOUSE [SB]
Revenue,Community Wellbeing & Social Care,5105654501,12.09.2012,Dementia Residential care,Charges from Independent Providers,"1,642.20",EDEN HOUSE [SB]
Revenue,Community Wellbeing & Social Care,5105654501,12.09.2012,REDACTED PERSONAL DATA,Order Settlement,"1,930.32",EDEN HOUSE [SB]
Revenue,Community Wellbeing & Social Care,5105654501,12.09.2012,REDACTED PERSONAL DATA,Order Settlement,"1,567.72",EDEN HOUSE [SB]
Revenue,Community Wellbeing & Social Care,5105654501,12.09.2012,REDACTED PERSONAL DATA,Order Settlement,"1,642.20",EDEN HOUSE [SB]
Revenue,Community Wellbeing & Social Care,5105654501,12.09.2012,REDACTED PERSONAL DATA,Order Settlement,"1,567.72",EDEN HOUSE [SB]
Revenue,"Chief Executive, Schools & Learning",5105655108,12.09.2012,Tuition Centres,Licences,799.00,EDUCATION DEVELOPMENT INTERNAT PLC
Capital,"Chief Executive, Schools & Learning",5105656288,26.09.2012,Schools Reorganisation,Payment to Contractors - Capital,750.00,EMSCAR LTD
Revenue,"Chief Executive, Schools & Learning",5105657263,21.09.2012,WFD Early Years,Training,860.00,ENABLE CHILDREN GAIL DUBOCK LTD
Revenue,"Chief Executive, Schools & Learning",5105657281,21.09.2012,WFD Early Years,Training,"1,975.00",ENABLE CHILDREN GAIL DUBOCK LTD
Revenue,Economy & Environment,5105646937,07.09.2012,Energy Efficiency Management,Property Services - Building Maintenance,"1,290.00",ENVIRONMENTAL AGENCY
Capital,Resources,5105656848,21.09.2012,Identity Management,ICT Hardware & Software,"5,458.00",EQUANET
Capital,Economy & Environment,5105656291,19.09.2012,Through the Eye of the Needles,External Design and Supervision Fees,725.00,ERMC LTD
Capital,"Chief Executive, Schools & Learning",1700045756,05.09.2012,Cowes High - Devolved Capital,"Plant, Equipment & Furniture - Capital","-4,045.60",ESA MCINTOSH LTD
Capital,"Chief Executive, Schools & Learning",1700045979,05.09.2012,Cowes High - Devolved Capital,"Plant, Equipment & Furniture - Capital","4,045.60",ESA MCINTOSH LTD
Revenue,Community Wellbeing & Social Care,5105654505,12.09.2012,Learning Disabilities Residential Care,Charges from Independent Providers,"1,757.00",ESPLANADE HOUSE [SB]
Revenue,Community Wellbeing & Social Care,5105654505,12.09.2012,Learning Disabilities Residential Care,Charges from Independent Providers,"1,757.00",ESPLANADE HOUSE [SB]
Revenue,Community Wellbeing & Social Care,5105654505,12.09.2012,Learning Disabilities Residential Care,Charges from Independent Providers,"1,757.00",ESPLANADE HOUSE [SB]
Revenue,Community Wellbeing & Social Care,5105654505,12.09.2012,Learning Disabilities Residential Care,Charges from Independent Providers,"6,076.00",ESPLANADE HOUSE [SB]
Revenue,Community Wellbeing & Social Care,5105654505,12.09.2012,Learning Disabilities Residential Care,Charges from Independent Providers,"1,757.00",ESPLANADE HOUSE [SB]
Revenue,Community Wellbeing & Social Care,5105654505,12.09.2012,Learning Disabilities Residential Care,Charges from Independent Providers,"4,376.12",ESPLANADE HOUSE [SB]
Revenue,Community Wellbeing & Social Care,5105654505,12.09.2012,Learning Disabilities Residential Care,Charges from Independent Providers,"4,816.00",ESPLANADE HOUSE [SB]
Revenue,Community Wellbeing & Social Care,5105654505,12.09.2012,Learning Disabilities Residential Care,Charges from Independent Providers,"11,599.84",ESPLANADE HOUSE [SB]
Revenue,Community Wellbeing & Social Care,5105654505,12.09.2012,Learning Disabilities Residential Care,Charges from Independent Providers,"1,757.00",ESPLANADE HOUSE [SB]
Revenue,Community Wellbeing & Social Care,5105654505,12.09.2012,Learning Disabilities Residential Care,Charges from Independent Providers,"7,148.12",ESPLANADE HOUSE [SB]
Capital,Economy & Environment,5105656829,21.09.2012,Ryde Town Heritage Initiative,ICT Hardware & Software,"3,500.00",ESRI (UK) LTD
Capital,Economy & Environment,5105653719,05.09.2012,Bus Infrastructure,Payment to Contractors - Capital,"1,256.88",EUROSIGNS (UK) LTD
Capital,Economy & Environment,5105652526,05.09.2012,Bus Infrastructure,Payment to Contractors - Capital,"1,200.00",EUROSIGNS (UK) LTD
Capital,Economy & Environment,5105652820,19.09.2012,Bus Infrastructure,Payment to Contractors - Capital,549.16,EUROSIGNS (UK) LTD
Capital,"Chief Executive, Schools & Learning",5105658442,28.09.2012,Schools Reorganisation,Payment to Contractors - Capital,"8,938.66",EUROVIA SPECIALIST TREATMENTS LTD
Revenue,Community Wellbeing & Social Care,5105657203,21.09.2012,Physical Disability Homecare,Charges from Independent Providers,777.00,EVERYCARE (IOW AND SOLENT) LTD [SB]
Revenue,Community Wellbeing & Social Care,5105657204,21.09.2012,Physical Disability Homecare,Charges from Independent Providers,854.00,EVERYCARE (IOW AND SOLENT) LTD [SB]
Revenue,Community Wellbeing & Social Care,5105657207,21.09.2012,Physical Disability Homecare,Charges from Independent Providers,"1,743.44",EVERYCARE (IOW AND SOLENT) LTD [SB]
Revenue,Community Wellbeing & Social Care,5105657211,21.09.2012,Elderly Frail Homecare,Charges from Independent Providers,700.00,EVERYCARE (IOW AND SOLENT) LTD [SB]
Revenue,Community Wellbeing & Social Care,5105657215,21.09.2012,Elderly Frail Homecare,Charges from Independent Providers,871.50,EVERYCARE (IOW AND SOLENT) LTD [SB]
Revenue,Community Wellbeing & Social Care,5105657216,21.09.2012,Elderly Frail Homecare,Charges from Independent Providers,686.00,EVERYCARE (IOW AND SOLENT) LTD [SB]
Revenue,Community Wellbeing & Social Care,5105653504,05.09.2012,Homelessness,Accommodation Costs - Leaseholder Payments,579.89,REDACTED PERSONAL DATA
Revenue,Economy & Environment,5105653751,05.09.2012,Crematorium,General Materials,"1,328.83",F G MARSHALL LTD
Capital,Resources,5105654083,26.09.2012,Provision - essential & emergency works,Payment to Contractors - Capital,"8,364.80",F W MARSH (ELECT & MECH) LTD
Revenue,Community Wellbeing & Social Care,5105656793,21.09.2012,Adelaide Resource Centre,Property Services - Building Maintenance,"1,500.00",F W MARSH (ELECT & MECH) LTD
Revenue,Community Wellbeing & Social Care,5105656799,21.09.2012,Adelaide Resource Centre,Property Services - Building Maintenance,650.00,F W MARSH (ELECT & MECH) LTD
Revenue,Economy & Environment,5105654253,07.09.2012,Highway Maintenance Design/Supervision,Professional Services,"1,700.00",F W MARSH (ELECT & MECH) LTD
Revenue,Community Wellbeing & Social Care,5105655113,19.09.2012,Agency Placements,Payments to Voluntary and Other Associations,"11,855.20",FAIRWAYS CARE (UK) LTD
Revenue,Community Wellbeing & Social Care,5105657282,28.09.2012,Agency Placements,Payments to Voluntary and Other Associations,"11,855.20",FAIRWAYS CARE (UK) LTD
Revenue,Community Wellbeing & Social Care,5105654326,26.09.2012,Foster Other Agency,Payments to Voluntary and Other Associations,"2,516.18",FAIRWAYS CARE (UK) LTD
Revenue,Community Wellbeing & Social Care,5105651670,12.09.2012,Foster Other Agency,Payments to Voluntary and Other Associations,"2,970.60",FAIRWAYS CARE (UK) LTD
Revenue,Community Wellbeing & Social Care,5105653124,19.09.2012,Foster Other Agency,Payments to Voluntary and Other Associations,"2,516.18",FAIRWAYS CARE (UK) LTD
Revenue,Community Wellbeing & Social Care,5105657258,28.09.2012,Foster Other Agency,Payments to Voluntary and Other Associations,"2,516.18",FAIRWAYS CARE (UK) LTD
Revenue,Community Wellbeing & Social Care,5105654480,12.09.2012,Elderly Mental Ill Residential Care,Charges from Independent Providers,"1,642.20",FALLOWFIELD CARE HOME [SB]
Revenue,Community Wellbeing & Social Care,5105654480,12.09.2012,Elderly Mental Ill Residential Care,Charges from Independent Providers,"1,642.20",FALLOWFIELD CARE HOME [SB]
Revenue,Community Wellbeing & Social Care,5105654480,12.09.2012,Elderly Mental Ill Residential Care,Charges from Independent Providers,"1,642.20",FALLOWFIELD CARE HOME [SB]
Revenue,Community Wellbeing & Social Care,5105654480,12.09.2012,Elderly Frail Residential Care,Charges from Independent Providers,"1,567.72",FALLOWFIELD CARE HOME [SB]
Revenue,Community Wellbeing & Social Care,5105654480,12.09.2012,Elderly Frail Residential Care,Charges from Independent Providers,"1,567.72",FALLOWFIELD CARE HOME [SB]
Revenue,Community Wellbeing & Social Care,5105654480,12.09.2012,Elderly Frail Residential Care,Charges from Independent Providers,"1,567.72",FALLOWFIELD CARE HOME [SB]
Revenue,Community Wellbeing & Social Care,5105654480,12.09.2012,Elderly Frail Residential Care,Charges from Independent Providers,"1,567.72",FALLOWFIELD CARE HOME [SB]
Revenue,Community Wellbeing & Social Care,5105654480,12.09.2012,Elderly Frail Residential Care,Charges from Independent Providers,"1,930.32",FALLOWFIELD CARE HOME [SB]
Revenue,Community Wellbeing & Social Care,5105654480,12.09.2012,Elderly Frail Residential Care,Charges from Independent Providers,"1,567.72",FALLOWFIELD CARE HOME [SB]
Revenue,Community Wellbeing & Social Care,5105654480,12.09.2012,Dementia Residential care,Charges from Independent Providers,"1,930.32",FALLOWFIELD CARE HOME [SB]
Revenue,Community Wellbeing & Social Care,5105654480,12.09.2012,REDACTED PERSONAL DATA,Order Settlement,"1,567.72",FALLOWFIELD CARE HOME [SB]
Revenue,Community Wellbeing & Social Care,5105654478,12.09.2012,Elderly Mental Ill Residential Care,Charges from Independent Providers,"1,642.20",FIRBANK RES CARE HOME [SB]
Revenue,Community Wellbeing & Social Care,5105654478,12.09.2012,Elderly Mental Ill Residential Care,Charges from Independent Providers,"1,930.32",FIRBANK RES CARE HOME [SB]
Revenue,Community Wellbeing & Social Care,5105654478,12.09.2012,Elderly Mental Ill Residential Care,Charges from Independent Providers,"1,930.32",FIRBANK RES CARE HOME [SB]
Revenue,Community Wellbeing & Social Care,5105654478,12.09.2012,Elderly Mental Ill Residential Care,Charges from Independent Providers,"1,930.32",FIRBANK RES CARE HOME [SB]
Revenue,Community Wellbeing & Social Care,5105654478,12.09.2012,Elderly Mental Ill Residential Care,Charges from Independent Providers,"1,642.20",FIRBANK RES CARE HOME [SB]
Revenue,Community Wellbeing & Social Care,5105654478,12.09.2012,Elderly Frail Residential Care,Charges from Independent Providers,"1,567.72",FIRBANK RES CARE HOME [SB]
Revenue,Community Wellbeing & Social Care,5105654478,12.09.2012,Elderly Frail Residential Care,Charges from Independent Providers,"1,930.32",FIRBANK RES CARE HOME [SB]
Revenue,Community Wellbeing & Social Care,5105654478,12.09.2012,Elderly Frail Residential Care,Charges from Independent Providers,"1,567.72",FIRBANK RES CARE HOME [SB]
Revenue,Community Wellbeing & Social Care,5105656411,19.09.2012,Elderly Frail Residential Care,Charges from Independent Providers,"1,567.72",FIRBANK RES CARE HOME [SB]
Revenue,Community Wellbeing & Social Care,5105654478,12.09.2012,REDACTED PERSONAL DATA,Order Settlement,"1,567.72",FIRBANK RES CARE HOME [SB]
Revenue,Community Wellbeing & Social Care,5105654478,12.09.2012,REDACTED PERSONAL DATA,Order Settlement,"1,567.72",FIRBANK RES CARE HOME [SB]
Revenue,Community Wellbeing & Social Care,5105654478,12.09.2012,REDACTED PERSONAL DATA,Order Settlement,"1,642.20",FIRBANK RES CARE HOME [SB]
Revenue,Economy & Environment,5105655921,19.09.2012,Diversity & Workforce,Training,"-1,390.00",FIRE SERVICE COLLEGE
Revenue,Economy & Environment,5105655298,14.09.2012,Diversity & Workforce,Training,"1,390.00",FIRE SERVICE COLLEGE
Revenue,Economy & Environment,5105655145,14.09.2012,Diversity & Workforce,Training,"2,695.00",FIRE SERVICE COLLEGE
Revenue,Economy & Environment,5105656805,19.09.2012,Diversity & Workforce,Training,"1,190.00",FIRE SERVICE COLLEGE
Revenue,Community Wellbeing & Social Care,5105648966,07.09.2012,Foster Other Agency,Payments to Voluntary and Other Associations,"7,026.90",FIVE RIVERS CHILD CARE LTD
Revenue,Community Wellbeing & Social Care,5105656340,19.09.2012,Foster Other Agency,Payments to Voluntary and Other Associations,"7,261.13",FIVE RIVERS CHILD CARE LTD
Revenue,Economy & Environment,5105657614,21.09.2012,Newport Harbour Account,Payment to Private Contractors,"2,187.33",FOLLY VENTURES
Revenue,Economy & Environment,5105658690,28.09.2012,WW Lndscpe Partnrshp,Payment to Private Contractors,"2,050.00",FOOTPRINT TRUST
Revenue,Economy & Environment,5105658689,28.09.2012,WW Lndscpe Partnrshp,Payment to Private Contractors,853.32,FOOTPRINT TRUST
Revenue,"Chief Executive, Schools & Learning",5105658372,28.09.2012,Commissioning - Adult & Community Learning,Grants to External Bodies,"2,435.00",FOOTPRINT TRUST
Revenue,Community Wellbeing & Social Care,5105654328,12.09.2012,Foster Other Agency,Payments to Voluntary and Other Associations,994.50,FOSTER CARE ASSOCIATES LTD
Revenue,Community Wellbeing & Social Care,5105654329,12.09.2012,Foster Other Agency,Payments to Voluntary and Other Associations,"3,315.00",FOSTER CARE ASSOCIATES LTD
Revenue,Community Wellbeing & Social Care,5105654331,12.09.2012,Foster Other Agency,Payments to Voluntary and Other Associations,994.50,FOSTER CARE ASSOCIATES LTD
Revenue,Community Wellbeing & Social Care,5105654333,12.09.2012,Foster Other Agency,Payments to Voluntary and Other Associations,"3,315.00",FOSTER CARE ASSOCIATES LTD
Revenue,Community Wellbeing & Social Care,5105654335,12.09.2012,Foster Other Agency,Payments to Voluntary and Other Associations,"1,062.00",FOSTER CARE ASSOCIATES LTD
Revenue,Community Wellbeing & Social Care,5105654336,12.09.2012,Foster Other Agency,Payments to Voluntary and Other Associations,"3,540.00",FOSTER CARE ASSOCIATES LTD
Revenue,Community Wellbeing & Social Care,5105655749,14.09.2012,Foster Other Agency,Payments to Voluntary and Other Associations,"4,096.49",FOSTER CARE ASSOCIATES LTD
Revenue,Community Wellbeing & Social Care,5105655750,14.09.2012,Foster Other Agency,Payments to Voluntary and Other Associations,"3,425.50",FOSTER CARE ASSOCIATES LTD
Revenue,Community Wellbeing & Social Care,5105655751,14.09.2012,Foster Other Agency,Payments to Voluntary and Other Associations,"3,425.50",FOSTER CARE ASSOCIATES LTD
Revenue,Community Wellbeing & Social Care,5105655752,14.09.2012,Foster Other Agency,Payments to Voluntary and Other Associations,"3,658.00",FOSTER CARE ASSOCIATES LTD
Revenue,Community Wellbeing & Social Care,5105654088,26.09.2012,Foster Other Agency,Payments to Voluntary and Other Associations,"-1,261.26",FOSTERING SOLUTIONS
Revenue,Community Wellbeing & Social Care,5105653144,21.09.2012,Foster Other Agency,Payments to Voluntary and Other Associations,"3,554.46",FOSTERING SOLUTIONS
Revenue,Community Wellbeing & Social Care,1900568006,19.09.2012,2 Year Old Pilot,Payments to Voluntary and Other Associations,873.00,FRESHWATER EARLY YEARS CENTRE
Revenue,Economy & Environment,1900561234,05.09.2012,WW Lndscpe Partnrshp,Grants to External Bodies,971.50,FRESHWATER PARISH COUNCIL
Revenue,Economy & Environment,1900568220,19.09.2012,Economic Development,Professional Services,"3,159.55",FRESHWATER PARISH COUNCIL
Revenue,Community Wellbeing & Social Care,5105657684,26.09.2012,Reviewing Officer,Agency staff,"1,687.50",FRONTLINE STAFFING LTD
Revenue,Community Wellbeing & Social Care,5105655158,12.09.2012,Reviewing Officer,Agency staff,"1,541.25",FRONTLINE STAFFING LTD
Revenue,Community Wellbeing & Social Care,5105655161,12.09.2012,Reviewing Officer,Agency staff,"1,687.50",FRONTLINE STAFFING LTD
Revenue,Community Wellbeing & Social Care,5105656396,19.09.2012,Reviewing Officer,Agency staff,"1,248.75",FRONTLINE STAFFING LTD
Revenue,Economy & Environment,1900568216,19.09.2012,Leader 2009/13 Grant,Grants to External Bodies,"50,000.00",REDACTED PERSONAL DATA
Revenue,Community Wellbeing & Social Care,1900561233,05.09.2012,Homelessness,Accommodation Costs - Service Users,"1,100.00",REDACTED PERSONAL DATA
Revenue,Community Wellbeing & Social Care,5105653511,05.09.2012,Homelessness,Accommodation Costs - Leaseholder Payments,866.67,REDACTED PERSONAL DATA
Capital,"Chief Executive, Schools & Learning",1900567842,14.09.2012,Schools Reorganisation,ICT Hardware & Software,"29,794.80",GAIA TECHNOLOGIES PLC
Capital,"Chief Executive, Schools & Learning",1900567842,14.09.2012,Schools Reorganisation,ICT Hardware & Software,"59,589.60",GAIA TECHNOLOGIES PLC
Capital,"Chief Executive, Schools & Learning",5105655761,19.09.2012,Schools Reorganisation,External Design and Supervision Fees,"1,945.80",GARDINER AND THEOBALD LLP
Revenue,Resources,5105657686,26.09.2012,Business Intelligence,Computer Software Licencing,553.50,GEOWISE LIMITED
Revenue,"Chief Executive, Schools & Learning",5105653749,05.09.2012,SEN Transport,Transport of Clients,"10,987.35",GO SOUTH COAST LTD
Revenue,"Chief Executive, Schools & Learning",5105653749,05.09.2012,SEN Transport,Transport of Clients,549.37,GO SOUTH COAST LTD
Revenue,Economy & Environment,5105635007,05.09.2012,Subsidised Buses,Transport of Clients,"3,677.00",GO SOUTH COAST LTD
Revenue,Economy & Environment,5105644801,21.09.2012,Subsidised Buses,Transport of Clients,"3,677.00",GO SOUTH COAST LTD
Revenue,Economy & Environment,5105653681,05.09.2012,Subsidised Buses,Public Transport Subsidy,"7,692.00",GO SOUTH COAST LTD
Revenue,Economy & Environment,5105653682,05.09.2012,Subsidised Buses,Public Transport Subsidy,"1,900.00",GO SOUTH COAST LTD
Revenue,Economy & Environment,5105653685,05.09.2012,Subsidised Buses,Public Transport Subsidy,"19,769.00",GO SOUTH COAST LTD
Revenue,Economy & Environment,5105653679,05.09.2012,Subsidised Buses,Transport of Clients,"3,677.00",GO SOUTH COAST LTD
Revenue,Economy & Environment,5105655276,19.09.2012,Subsidised Buses,Public Transport Subsidy,"2,000.00",GO SOUTH COAST LTD
Revenue,Economy & Environment,5105656343,21.09.2012,Subsidised Buses,Transport of Clients,"3,677.00",GO SOUTH COAST LTD
Revenue,Economy & Environment,5105656344,19.09.2012,Subsidised Buses,Public Transport Subsidy,"7,692.00",GO SOUTH COAST LTD
Revenue,Economy & Environment,5105656345,19.09.2012,Subsidised Buses,Public Transport Subsidy,"19,769.00",GO SOUTH COAST LTD
Revenue,Economy & Environment,5105657257,21.09.2012,Concessionary Fares- Over 60s,Concessionary Fares,"352,050.42",GO SOUTH COAST LTD
Revenue,Economy & Environment,5105653744,05.09.2012,Concessionary Fares- Over 60s,Concessionary Fares,"351,595.23",GO SOUTH COAST LTD
Revenue,Community Wellbeing & Social Care,5105653746,05.09.2012,CAF Project,Payment to Contractors - Capital,"2,795.00",GOLDEN PEAR LTD
Revenue,Economy & Environment,5105655916,25.09.2012,Coast Protection,Payment to Private Contractors,"5,925.00",GRAHAM ATTRILL CIVIL ENGINEERING LD
Revenue,Economy & Environment,5105657965,26.09.2012,Coast Protection,Payment to Private Contractors,"1,288.26",GRAHAM ATTRILL CIVIL ENGINEERING LD
Revenue,Economy & Environment,5105657961,26.09.2012,Coast Protection,Payment to Private Contractors,941.69,GRAHAM ATTRILL CIVIL ENGINEERING LD
Revenue,Economy & Environment,5105657962,25.09.2012,Coast Protection,Payment to Private Contractors,"-5,925.00",GRAHAM ATTRILL CIVIL ENGINEERING LD
Revenue,Economy & Environment,5105657298,21.09.2012,Coast Protection,Payment to Private Contractors,"3,875.00",GRAHAM ATTRILL CIVIL ENGINEERING LD
Capital,Economy & Environment,5105655142,12.09.2012,Coastal Capital,Payment to Contractors - Capital,"6,850.00",GRAHAM ATTRILL CIVIL ENGINEERING LD
Revenue,Community Wellbeing & Social Care,5105656699,19.09.2012,Physical Disability Homecare,Charges from Independent Providers,875.00,GREENCOTE LTD T/A BLUEBIRD [SB]
Revenue,Community Wellbeing & Social Care,5105656701,19.09.2012,Physical Disability Homecare,Charges from Independent Providers,735.00,GREENCOTE LTD T/A BLUEBIRD [SB]
Revenue,Community Wellbeing & Social Care,5105656698,19.09.2012,Physical Disability Homecare,Charges from Independent Providers,"1,207.50",GREENCOTE LTD T/A BLUEBIRD [SB]
Revenue,Community Wellbeing & Social Care,5105658616,28.09.2012,Physical Disability Homecare,Charges from Independent Providers,882.00,GREENCOTE LTD T/A BLUEBIRD [SB]
Revenue,Community Wellbeing & Social Care,5105656685,19.09.2012,Elderly Frail Homecare,Charges from Independent Providers,980.00,GREENCOTE LTD T/A BLUEBIRD [SB]
Revenue,Community Wellbeing & Social Care,5105656686,19.09.2012,Elderly Frail Homecare,Charges from Independent Providers,997.50,GREENCOTE LTD T/A BLUEBIRD [SB]
Revenue,Community Wellbeing & Social Care,5105656690,19.09.2012,Elderly Frail Homecare,Charges from Independent Providers,630.00,GREENCOTE LTD T/A BLUEBIRD [SB]
Revenue,Community Wellbeing & Social Care,5105656691,19.09.2012,Elderly Frail Homecare,Charges from Independent Providers,661.50,GREENCOTE LTD T/A BLUEBIRD [SB]
Revenue,Community Wellbeing & Social Care,5105656693,19.09.2012,Elderly Frail Homecare,Charges from Independent Providers,630.00,GREENCOTE LTD T/A BLUEBIRD [SB]
Revenue,Community Wellbeing & Social Care,5105656697,19.09.2012,Elderly Frail Homecare,Charges from Independent Providers,507.50,GREENCOTE LTD T/A BLUEBIRD [SB]
Revenue,Community Wellbeing & Social Care,5105656702,19.09.2012,Elderly Frail Homecare,Charges from Independent Providers,612.50,GREENCOTE LTD T/A BLUEBIRD [SB]
Revenue,Community Wellbeing & Social Care,5105656707,19.09.2012,Elderly Frail Homecare,Charges from Independent Providers,735.00,GREENCOTE LTD T/A BLUEBIRD [SB]
Revenue,Community Wellbeing & Social Care,5105656711,19.09.2012,Elderly Frail Homecare,Charges from Independent Providers,"2,380.00",GREENCOTE LTD T/A BLUEBIRD [SB]
Revenue,Community Wellbeing & Social Care,5105656712,19.09.2012,Elderly Frail Homecare,Charges from Independent Providers,"2,450.00",GREENCOTE LTD T/A BLUEBIRD [SB]
Revenue,Community Wellbeing & Social Care,5105656713,19.09.2012,Elderly Frail Homecare,Charges from Independent Providers,"2,450.00",GREENCOTE LTD T/A BLUEBIRD [SB]
Revenue,Community Wellbeing & Social Care,5105656715,19.09.2012,Elderly Frail Homecare,Charges from Independent Providers,682.50,GREENCOTE LTD T/A BLUEBIRD [SB]
Revenue,Community Wellbeing & Social Care,5105656720,19.09.2012,Elderly Frail Homecare,Charges from Independent Providers,560.00,GREENCOTE LTD T/A BLUEBIRD [SB]
Revenue,Community Wellbeing & Social Care,5105654750,12.09.2012,Elderly Frail Residential Care,Charges from Independent Providers,"1,545.88",GREENVIEW RES CARE HOME [SB]
Revenue,Community Wellbeing & Social Care,5105654457,12.09.2012,Elderly Mental Ill Residential Care,Charges from Independent Providers,"1,567.72",GREYFRIARS [SB]
Revenue,Community Wellbeing & Social Care,5105654457,12.09.2012,Elderly Mental Ill Residential Care,Charges from Independent Providers,"1,930.32",GREYFRIARS [SB]
Revenue,Community Wellbeing & Social Care,5105654457,12.09.2012,Elderly Frail Residential Care,Charges from Independent Providers,"1,567.72",GREYFRIARS [SB]
Revenue,Community Wellbeing & Social Care,5105654457,12.09.2012,Dementia Residential care,Charges from Independent Providers,"1,567.72",GREYFRIARS [SB]
Revenue,Community Wellbeing & Social Care,5105654457,12.09.2012,Mental Health Residential Care,Charges from Independent Providers,"1,567.72",GREYFRIARS [SB]
Revenue,Economy & Environment,5105657711,26.09.2012,Public Realm contract,Highways Minor Works,"6,343.68",GRISTWOOD & TOMS LTD
Revenue,Economy & Environment,5105655269,14.09.2012,Brighstone Grounds Mtce,Payment to Private Contractors,"1,100.00",GROUNDSELL CONTRACTING LTD
Revenue,Economy & Environment,5105653602,05.09.2012,Brighstone Grounds Mtce,Payment to Private Contractors,560.00,GROUNDSELL CONTRACTING LTD
Revenue,Economy & Environment,5105653564,05.09.2012,Rights of Way Operations,Payment to Private Contractors,"2,057.14",GROUNDSELL CONTRACTING LTD
Revenue,Economy & Environment,5105653604,05.09.2012,Rights of Way Operations,Payment to Private Contractors,"4,114.28",GROUNDSELL CONTRACTING LTD
Revenue,Economy & Environment,5105655268,14.09.2012,Environmental Maintenance Other Roads,Highways Minor Works,"1,400.00",GROUNDSELL CONTRACTING LTD
Capital,"Chief Executive, Schools & Learning",1900568624,26.09.2012,Binstead Primary Devolved Capital,Payment to Contractors - Capital,"1,880.00",GTI GLAZING SYSTEMS LTD
Capital,"Chief Executive, Schools & Learning",5105654299,12.09.2012,Schools Reorganisation,External Design and Supervision Fees,850.00,GULLY HOWARD LTD [RE]
Revenue,Community Wellbeing & Social Care,5105654519,12.09.2012,Elderly Mental Ill Residential Care,Charges from Independent Providers,"1,930.32",H & W COASTAL ****0103 [SB]
Revenue,Community Wellbeing & Social Care,5105654519,12.09.2012,Elderly Mental Ill Residential Care,Charges from Independent Providers,"1,642.20",H & W COASTAL ****0103 [SB]
Revenue,Community Wellbeing & Social Care,5105655732,14.09.2012,Elderly Mental Ill Residential Care,Charges from Independent Providers,"1,818.15",H & W COASTAL ****0103 [SB]
Revenue,Community Wellbeing & Social Care,5105654519,12.09.2012,Elderly Frail Residential Care,Charges from Independent Providers,"1,567.72",H & W COASTAL ****0103 [SB]
Revenue,Community Wellbeing & Social Care,5105654519,12.09.2012,Elderly Frail Residential Care,Charges from Independent Providers,"1,642.20",H & W COASTAL ****0103 [SB]
Revenue,Community Wellbeing & Social Care,5105655733,14.09.2012,Elderly Frail Residential Care,Charges from Independent Providers,"1,455.74",H & W COASTAL ****0103 [SB]
Revenue,Community Wellbeing & Social Care,5105655734,14.09.2012,Elderly Frail Residential Care,Charges from Independent Providers,"1,735.69",H & W COASTAL ****0103 [SB]
Revenue,Community Wellbeing & Social Care,5105657457,21.09.2012,Elderly Frail Residential Care,Charges from Independent Providers,"1,818.15",H & W COASTAL ****0103 [SB]
Revenue,Community Wellbeing & Social Care,5105657456,21.09.2012,Elderly Frail Residential Care,Charges from Independent Providers,895.84,H & W COASTAL ****0103 [SB]
Revenue,Community Wellbeing & Social Care,5105654519,12.09.2012,Dementia Residential care,Charges from Independent Providers,"1,642.20",H & W COASTAL ****0103 [SB]
Revenue,Community Wellbeing & Social Care,5105655823,19.09.2012,Elderly Mental Ill Residential Care,Regular Respite Care,"1,759.50",H & W COASTAL ****0103 [SB]
Revenue,Community Wellbeing & Social Care,5105654519,12.09.2012,REDACTED PERSONAL DATA,Order Settlement,"1,567.72",H & W COASTAL ****0103 [SB]
Revenue,Community Wellbeing & Social Care,1700046024,12.09.2012,Elderly Mental Ill Residential Care,Refund of Overpayments,-946.12,H & W COASTAL ****0103 [SB]
Revenue,Community Wellbeing & Social Care,5105654606,12.09.2012,Elderly Mental Ill Residential Care,Charges from Independent Providers,"1,642.20",H & W COASTAL LTD ****0006  [SB]
Revenue,Community Wellbeing & Social Care,5105654606,12.09.2012,Elderly Mental Ill Residential Care,Charges from Independent Providers,"1,642.20",H & W COASTAL LTD ****0006  [SB]
Revenue,Community Wellbeing & Social Care,5105654606,12.09.2012,Elderly Mental Ill Residential Care,Charges from Independent Providers,"1,642.20",H & W COASTAL LTD ****0006  [SB]
Revenue,Community Wellbeing & Social Care,5105654606,12.09.2012,Elderly Mental Ill Residential Care,Charges from Independent Providers,"1,930.32",H & W COASTAL LTD ****0006  [SB]
Revenue,Community Wellbeing & Social Care,5105654606,12.09.2012,Elderly Mental Ill Residential Care,Charges from Independent Providers,"1,642.20",H & W COASTAL LTD ****0006  [SB]
Revenue,Community Wellbeing & Social Care,5105656224,19.09.2012,Elderly Mental Ill Daycare,Charges from Independent Providers,508.00,H & W COASTAL LTD ****0006  [SB]
Revenue,Community Wellbeing & Social Care,5105654606,12.09.2012,Elderly Frail Residential Care,Charges from Independent Providers,"1,567.72",H & W COASTAL LTD ****0006  [SB]
Revenue,Community Wellbeing & Social Care,5105654606,12.09.2012,Elderly Frail Residential Care,Charges from Independent Providers,"1,567.72",H & W COASTAL LTD ****0006  [SB]
Revenue,Community Wellbeing & Social Care,5105654606,12.09.2012,Elderly Frail Residential Care,Charges from Independent Providers,"1,567.72",H & W COASTAL LTD ****0006  [SB]
Revenue,Community Wellbeing & Social Care,5105654606,12.09.2012,Dementia Residential care,Charges from Independent Providers,"1,642.20",H & W COASTAL LTD ****0006  [SB]
Revenue,Community Wellbeing & Social Care,5105654606,12.09.2012,Dementia Residential care,Charges from Independent Providers,"1,642.20",H & W COASTAL LTD ****0006  [SB]
Revenue,Community Wellbeing & Social Care,5105654606,12.09.2012,Dementia Residential care,Charges from Independent Providers,"1,642.20",H & W COASTAL LTD ****0006  [SB]
Revenue,Community Wellbeing & Social Care,5105655827,19.09.2012,Elderly Mental Ill Residential Care,Regular Respite Care,"1,759.50",H & W COASTAL LTD ****0006  [SB]
Revenue,Community Wellbeing & Social Care,5105654606,12.09.2012,REDACTED PERSONAL DATA,Order Settlement,"1,642.20",H & W COASTAL LTD ****0006  [SB]
Revenue,"Chief Executive, Schools & Learning",1900573631,28.09.2012,SPECIAL SECTOR SEN Central Administration,Transport of Clients,732.60,REDACTED PERSONAL DATA
Revenue,Community Wellbeing & Social Care,5105653508,05.09.2012,Homelessness,Accommodation Costs - Leaseholder Payments,799.50,REDACTED PERSONAL DATA
Revenue,Community Wellbeing & Social Care,5105658688,28.09.2012,Youth & Community Service,Operational Equipment,"3,900.00",HALLAM'S BLINDS & SOFT FURNISHINGS
Revenue,Corporate,5105656764,19.09.2012,Miscellaneous Grants,Grants to External Bodies,"7,145.00",HAMPSHIRE COUNTY COUNCIL
Revenue,Community Wellbeing & Social Care,5105654506,12.09.2012,Learning Disabilities Residential Care,Charges from Independent Providers,"2,837.80",HAMPSHIRE DEAF ASSOCIATION [SP]
Revenue,Community Wellbeing & Social Care,5105654506,12.09.2012,Elderly Frail Residential Care,Charges from Independent Providers,"2,087.68",HAMPSHIRE DEAF ASSOCIATION [SP]
Revenue,Resources,5105655942,19.09.2012,Coroner,Post Mortem Fees,"1,100.00",HAMPSHIRE HOSPITALS NHSFT
Revenue,Economy & Environment,5105648390,28.09.2012,Cowes Week,Professional Services,"11,991.56",HAMPSHIRE POLICE AUTHORITY
Revenue,Community Wellbeing & Social Care,5105654477,12.09.2012,Learning Disabilities Residential Care,Charges from Independent Providers,"1,757.00",HARRISON CARE ENTERPRISES [SB]
Revenue,Community Wellbeing & Social Care,5105654477,12.09.2012,Learning Disabilities Residential Care,Charges from Independent Providers,"1,757.00",HARRISON CARE ENTERPRISES [SB]
Revenue,Community Wellbeing & Social Care,5105654477,12.09.2012,Learning Disabilities Residential Care,Charges from Independent Providers,"2,545.76",HARRISON CARE ENTERPRISES [SB]
Revenue,Community Wellbeing & Social Care,5105654477,12.09.2012,Learning Disabilities Residential Care,Charges from Independent Providers,"1,757.00",HARRISON CARE ENTERPRISES [SB]
Revenue,Community Wellbeing & Social Care,5105654477,12.09.2012,Learning Disabilities Residential Care,Charges from Independent Providers,"3,916.08",HARRISON CARE ENTERPRISES [SB]
Revenue,Community Wellbeing & Social Care,5105654477,12.09.2012,Elderly Frail Residential Care,Charges from Independent Providers,"2,545.76",HARRISON CARE ENTERPRISES [SB]
Revenue,Community Wellbeing & Social Care,5105654477,12.09.2012,Elderly Frail Residential Care,Charges from Independent Providers,"1,757.00",HARRISON CARE ENTERPRISES [SB]
Revenue,Community Wellbeing & Social Care,5105654477,12.09.2012,Elderly Frail Residential Care,Charges from Independent Providers,"1,757.00",HARRISON CARE ENTERPRISES [SB]
Revenue,Community Wellbeing & Social Care,5105654477,12.09.2012,Mental Health Residential Care,Charges from Independent Providers,"1,567.72",HARRISON CARE ENTERPRISES [SB]
Revenue,Community Wellbeing & Social Care,5105654477,12.09.2012,Mental Health Residential Care,Charges from Independent Providers,"1,567.72",HARRISON CARE ENTERPRISES [SB]
Revenue,Community Wellbeing & Social Care,5105654477,12.09.2012,Mental Health Residential Care,Charges from Independent Providers,"1,567.72",HARRISON CARE ENTERPRISES [SB]
Revenue,Community Wellbeing & Social Care,5105654477,12.09.2012,Mental Health Residential Care,Charges from Independent Providers,"1,567.72",HARRISON CARE ENTERPRISES [SB]
Revenue,Community Wellbeing & Social Care,5105654477,12.09.2012,Mental Health Residential Care,Charges from Independent Providers,"1,567.72",HARRISON CARE ENTERPRISES [SB]
Revenue,Community Wellbeing & Social Care,5105654477,12.09.2012,Mental Health Residential Care,Charges from Independent Providers,"1,567.72",HARRISON CARE ENTERPRISES [SB]
Revenue,Community Wellbeing & Social Care,5105649391,05.09.2012,Child Protection,Agency staff,"1,295.00",HCL SOCIAL CARE
Revenue,Community Wellbeing & Social Care,5105649394,05.09.2012,Child Protection,Agency staff,"1,295.00",HCL SOCIAL CARE
Revenue,Community Wellbeing & Social Care,5105654206,07.09.2012,Children Young Adults Disability units,Agency staff,944.00,HCL SOCIAL CARE
Revenue,Community Wellbeing & Social Care,5105655287,19.09.2012,Children Young Adults Disability units,Agency staff,"1,221.00",HCL SOCIAL CARE
Revenue,Community Wellbeing & Social Care,5105657267,21.09.2012,Children Young Adults Disability units,Agency staff,"1,221.00",HCL SOCIAL CARE
Revenue,Community Wellbeing & Social Care,5105650816,21.09.2012,Looked After Children Units 5-7,Agency staff,710.77,HCL SOCIAL CARE
Revenue,Community Wellbeing & Social Care,5105651648,12.09.2012,Looked After Children Units 5-7,Agency staff,"1,421.54",HCL SOCIAL CARE
Revenue,Community Wellbeing & Social Care,5105651649,12.09.2012,Looked After Children Units 5-7,Agency staff,"1,421.54",HCL SOCIAL CARE
Revenue,Community Wellbeing & Social Care,5105651650,12.09.2012,Looked After Children Units 5-7,Agency staff,"1,421.54",HCL SOCIAL CARE
Revenue,Community Wellbeing & Social Care,5105653278,19.09.2012,Looked After Children Units 5-7,Agency staff,"1,421.54",HCL SOCIAL CARE
Revenue,Community Wellbeing & Social Care,5105653284,12.09.2012,Looked After Children Units 5-7,Agency staff,"1,421.54",HCL SOCIAL CARE
Revenue,Community Wellbeing & Social Care,5105653286,12.09.2012,Looked After Children Units 5-7,Agency staff,"1,421.54",HCL SOCIAL CARE
Revenue,Community Wellbeing & Social Care,5105653287,12.09.2012,Looked After Children Units 5-7,Agency staff,"1,421.54",HCL SOCIAL CARE
Revenue,Community Wellbeing & Social Care,5105653222,07.09.2012,Looked After Children Units 5-7,Agency staff,"1,421.54",HCL SOCIAL CARE
Capital,"Chief Executive, Schools & Learning",1900573863,28.09.2012,Schools Reorganisation,External Fees for Purchase of Land,"30,000.00",HM REVENUE AND CUSTOMS
Revenue,Community Wellbeing & Social Care,5105654497,12.09.2012,Elderly Mental Ill Residential Care,Charges from Independent Providers,"1,642.20",HOLMDALE HOUSE LTD [SB]
Revenue,Community Wellbeing & Social Care,5105654497,12.09.2012,Elderly Mental Ill Residential Care,Charges from Independent Providers,"1,642.20",HOLMDALE HOUSE LTD [SB]
Revenue,Community Wellbeing & Social Care,5105654497,12.09.2012,Elderly Mental Ill Residential Care,Charges from Independent Providers,"1,930.32",HOLMDALE HOUSE LTD [SB]
Revenue,Community Wellbeing & Social Care,5105654497,12.09.2012,Elderly Mental Ill Residential Care,Charges from Independent Providers,"1,642.20",HOLMDALE HOUSE LTD [SB]
Revenue,Community Wellbeing & Social Care,5105654497,12.09.2012,Elderly Mental Ill Residential Care,Charges from Independent Providers,"1,930.32",HOLMDALE HOUSE LTD [SB]
Revenue,Community Wellbeing & Social Care,5105654497,12.09.2012,Elderly Frail Residential Care,Charges from Independent Providers,"1,567.72",HOLMDALE HOUSE LTD [SB]
Revenue,Community Wellbeing & Social Care,5105654497,12.09.2012,Elderly Frail Residential Care,Charges from Independent Providers,"1,567.72",HOLMDALE HOUSE LTD [SB]
Revenue,Community Wellbeing & Social Care,5105654497,12.09.2012,Elderly Frail Residential Care,Charges from Independent Providers,"1,567.72",HOLMDALE HOUSE LTD [SB]
Revenue,Community Wellbeing & Social Care,5105654497,12.09.2012,Elderly Frail Residential Care,Charges from Independent Providers,"1,567.72",HOLMDALE HOUSE LTD [SB]
Revenue,Community Wellbeing & Social Care,5105654497,12.09.2012,Elderly Frail Residential Care,Charges from Independent Providers,"1,930.32",HOLMDALE HOUSE LTD [SB]
Revenue,Community Wellbeing & Social Care,5105654497,12.09.2012,Elderly Frail Residential Care,Charges from Independent Providers,"1,567.72",HOLMDALE HOUSE LTD [SB]
Revenue,Community Wellbeing & Social Care,5105658579,28.09.2012,Elderly Frail Residential Care,Charges from Independent Providers,"4,343.22",HOLMDALE HOUSE LTD [SB]
Revenue,Community Wellbeing & Social Care,5105654497,12.09.2012,Dementia Residential care,Charges from Independent Providers,"1,642.20",HOLMDALE HOUSE LTD [SB]
Revenue,Community Wellbeing & Social Care,5105654497,12.09.2012,REDACTED PERSONAL DATA,Order Settlement,"1,930.32",HOLMDALE HOUSE LTD [SB]
Revenue,Community Wellbeing & Social Care,5105658665,28.09.2012,Children Centres,Payment to Private Contractors,"8,673.32",HOMESTART IOW
Revenue,Economy & Environment,5105656830,21.09.2012,Parks and Gardens Misc. Equipment & Works,Operational Equipment,550.00,HUCK NETS (UK) LTD
Revenue,Community Wellbeing & Social Care,5105653483,05.09.2012,Homelessness,Accommodation Costs - Leaseholder Payments,881.44,HUNNYHILL PROPERTIES LTD [HZ]
Revenue,Community Wellbeing & Social Care,5105653483,05.09.2012,Homelessness,Accommodation Costs - Leaseholder Payments,695.89,HUNNYHILL PROPERTIES LTD [HZ]
Revenue,Community Wellbeing & Social Care,1900561352,07.09.2012,Elderly Mental Ill Residential Care,Charges from Independent Providers,711.85,REDACTED PERSONAL DATA
Revenue,Economy & Environment,5105657691,26.09.2012,Technical Support,Operational Equipment,637.97,I T S TOOLS LTD
Revenue,Community Wellbeing & Social Care,5105655165,12.09.2012,Learning Disabilities Other Care,Payments to Voluntary and Other Associations,520.00,I W ADVOCACY TRUST
Revenue,Community Wellbeing & Social Care,5105657905,26.09.2012,Dinosaur Isle Museum,Marketing Costs,502.74,I W CHAMBER OF COMMERCE LIMITED
Revenue,Community Wellbeing & Social Care,5105657906,26.09.2012,Dinosaur Isle Museum,Marketing Costs,"2,722.93",I W CHAMBER OF COMMERCE LIMITED
Capital,Resources,5105654280,07.09.2012,Server Farm,ICT Hardware & Software,"6,391.52",IBM UK FINANCIAL SERVICES
Revenue,Economy & Environment,5105658682,28.09.2012,Play Development,Operational Equipment,-742.50,ICON DISPLAY LIMITED
Revenue,Economy & Environment,5105658683,28.09.2012,Play Development,Operational Equipment,742.50,ICON DISPLAY LIMITED
Revenue,Economy & Environment,5105658678,28.09.2012,Play Development,Operational Equipment,742.50,ICON DISPLAY LIMITED
Revenue,Economy & Environment,5105653599,21.09.2012,Coast Protection,Payment to Private Contractors,756.00,IMPHOUSE LTD
Capital,Economy & Environment,5105655272,12.09.2012,Coastal Capital,Payment to Contractors - Capital,"26,274.42",IMPHOUSE LTD
Capital,"Chief Executive, Schools & Learning",1900568625,26.09.2012,Chillerton Prim Devolved Capital,Payment to Contractors - Capital,"10,047.23",IMPHOUSE LTD
Capital,Resources,5105654375,12.09.2012,Inf Assurance Projct,ICT Hardware & Software,"10,153.00",INSIGHT DIRECT (UK) LTD
Revenue,Resources,5105654375,12.09.2012,ICT Contracts,Computer Maintenance,"1,846.00",INSIGHT DIRECT (UK) LTD
Revenue,Economy & Environment,5105649002,05.09.2012,Licensing Services,Training,"1,000.00",INSTITUTE OF LICENSING EVENTS LTD
Capital,Community Wellbeing & Social Care,5105655894,19.09.2012,Leisure Facility Improvement,ICT Hardware & Software,"16,550.00",INTELLIDENT LIMITED
Revenue,Community Wellbeing & Social Care,5105650373,05.09.2012,Public Lib Central,Computer Software & Consumables,"1,000.00",INTELLIDENT LIMITED
Revenue,Community Wellbeing & Social Care,5105650375,05.09.2012,Public Lib Central,Computer Software & Consumables,"1,000.00",INTELLIDENT LIMITED
Revenue,Community Wellbeing & Social Care,5105654113,28.09.2012,Public Lib Central,Computer Maintenance,"4,771.20",INTELLIDENT LIMITED
Revenue,Community Wellbeing & Social Care,5105655203,12.09.2012,Integrated Community Equipment Service,Operational Equipment,774.69,INVACARE LTD
Revenue,Community Wellbeing & Social Care,5105654486,12.09.2012,Elderly Mental Ill Residential Care,Charges from Independent Providers,"1,642.20",IOW CARE LTD [SB]
Revenue,Community Wellbeing & Social Care,5105654486,12.09.2012,Elderly Frail Residential Care,Charges from Independent Providers,"1,642.20",IOW CARE LTD [SB]
Revenue,Community Wellbeing & Social Care,5105654486,12.09.2012,Elderly Frail Residential Care,Charges from Independent Providers,"1,567.72",IOW CARE LTD [SB]
Revenue,Community Wellbeing & Social Care,5105654486,12.09.2012,Elderly Frail Residential Care,Charges from Independent Providers,"1,567.72",IOW CARE LTD [SB]
Revenue,Community Wellbeing & Social Care,5105654486,12.09.2012,Elderly Frail Residential Care,Charges from Independent Providers,"1,567.72",IOW CARE LTD [SB]
Revenue,Community Wellbeing & Social Care,5105654486,12.09.2012,Elderly Frail Residential Care,Charges from Independent Providers,"1,930.32",IOW CARE LTD [SB]
Revenue,Community Wellbeing & Social Care,5105654486,12.09.2012,Mental Health Residential Care,Charges from Independent Providers,"1,567.72",IOW CARE LTD [SB]
Revenue,Community Wellbeing & Social Care,5105654486,12.09.2012,Mental Health Residential Care,Charges from Independent Providers,"1,930.32",IOW CARE LTD [SB]
Revenue,Community Wellbeing & Social Care,5105654486,12.09.2012,Mental Health Residential Care,Charges from Independent Providers,"1,567.72",IOW CARE LTD [SB]
Revenue,Community Wellbeing & Social Care,5105654486,12.09.2012,Mental Health Residential Care,Charges from Independent Providers,"1,567.72",IOW CARE LTD [SB]
Revenue,Community Wellbeing & Social Care,1900561702,07.09.2012,Elderly Mental Ill Residential Care,Refund of Overpayments,878.54,IOW CARE LTD [SB]
Revenue,Community Wellbeing & Social Care,5105654484,12.09.2012,Physical Disability Residential Care,Charges from Independent Providers,"1,567.72",IOW CARE LTD B ACCOUNT [SB]
Revenue,Community Wellbeing & Social Care,5105654484,12.09.2012,Elderly Frail Residential Care,Charges from Independent Providers,"1,567.72",IOW CARE LTD B ACCOUNT [SB]
Revenue,Community Wellbeing & Social Care,5105654484,12.09.2012,Elderly Frail Residential Care,Charges from Independent Providers,"1,567.72",IOW CARE LTD B ACCOUNT [SB]
Revenue,Community Wellbeing & Social Care,5105654484,12.09.2012,Physical Disability Residential Care,Charges from Independent Providers,"1,567.72",IOW CARE LTD B ACCOUNT [SB]
Revenue,Community Wellbeing & Social Care,5105654484,12.09.2012,Elderly Frail Residential Care,Charges from Independent Providers,"1,567.72",IOW CARE LTD B ACCOUNT [SB]
Revenue,Community Wellbeing & Social Care,5105654484,12.09.2012,Mental Health Residential Care,Charges from Independent Providers,"1,567.72",IOW CARE LTD B ACCOUNT [SB]
Revenue,Community Wellbeing & Social Care,5105654325,12.09.2012,Agency Placements,Payments to Voluntary and Other Associations,"8,414.28",ISLAND CHOICES
Revenue,Community Wellbeing & Social Care,5105658374,28.09.2012,Occupational Therapy,Vehicle Maintenance Costs,772.50,ISLAND COACHWORKS AND COATINGS
Revenue,Economy & Environment,5105658378,28.09.2012,7724 BU05 EVC Carisbrooke School,Vehicle Maintenance Costs,720.00,ISLAND COACHWORKS AND COATINGS
Revenue,Economy & Environment,5105655614,26.09.2012,Off-Street Parking Operations,Vehicle Maintenance Costs,"1,106.00",ISLAND COACHWORKS AND COATINGS
Revenue,Community Wellbeing & Social Care,5105652872,19.09.2012,IWHC Community Home - Beaulieu,Vehicle Maintenance Costs,620.00,ISLAND COACHWORKS AND COATINGS
Revenue,Economy & Environment,5105655617,26.09.2012,Cemeteries Admin,Vehicle Maintenance Costs,833.59,ISLAND COACHWORKS AND COATINGS
Revenue,Community Wellbeing & Social Care,5105658375,28.09.2012,Pool Cars,Vehicle Maintenance Costs,610.00,ISLAND COACHWORKS AND COATINGS
Revenue,Community Wellbeing & Social Care,5105655182,12.09.2012,Short Breaks,Payments to Voluntary and Other Associations,744.00,ISLAND CREATIONS
Revenue,Community Wellbeing & Social Care,5105653664,05.09.2012,Elderly Mental Ill Residential Care,Charges from Independent Providers,"1,930.32",ISLAND HEALTHCARE [SB] ****5494
Revenue,Community Wellbeing & Social Care,5105654491,12.09.2012,Elderly Mental Ill Residential Care,Charges from Independent Providers,"1,642.20",ISLAND HEALTHCARE [SB] ****5494
Revenue,Community Wellbeing & Social Care,5105654491,12.09.2012,Elderly Mental Ill Residential Care,Charges from Independent Providers,"1,930.32",ISLAND HEALTHCARE [SB] ****5494
Revenue,Community Wellbeing & Social Care,5105654491,12.09.2012,Elderly Mental Ill Residential Care,Charges from Independent Providers,"1,930.32",ISLAND HEALTHCARE [SB] ****5494
Revenue,Community Wellbeing & Social Care,5105654491,12.09.2012,Elderly Mental Ill Residential Care,Charges from Independent Providers,"1,642.20",ISLAND HEALTHCARE [SB] ****5494
Revenue,Community Wellbeing & Social Care,5105655796,19.09.2012,Elderly Mental Ill Residential Care,Charges from Independent Providers,"1,930.32",ISLAND HEALTHCARE [SB] ****5494
Revenue,Community Wellbeing & Social Care,5105657389,21.09.2012,Elderly Mental Ill Residential Care,Charges from Independent Providers,"5,308.38",ISLAND HEALTHCARE [SB] ****5494
Revenue,Community Wellbeing & Social Care,5105654491,12.09.2012,Elderly Frail Residential Care,Charges from Independent Providers,"1,930.32",ISLAND HEALTHCARE [SB] ****5494
Revenue,Community Wellbeing & Social Care,5105654491,12.09.2012,Elderly Frail Residential Care,Charges from Independent Providers,"1,930.32",ISLAND HEALTHCARE [SB] ****5494
Revenue,Community Wellbeing & Social Care,5105654491,12.09.2012,Elderly Frail Residential Care,Charges from Independent Providers,"1,930.32",ISLAND HEALTHCARE [SB] ****5494
Revenue,Community Wellbeing & Social Care,5105655249,12.09.2012,Elderly Frail Residential Care,Charges from Independent Providers,965.16,ISLAND HEALTHCARE [SB] ****5494
Revenue,Community Wellbeing & Social Care,5105655250,12.09.2012,Elderly Frail Residential Care,Charges from Independent Providers,"1,103.04",ISLAND HEALTHCARE [SB] ****5494
Revenue,Community Wellbeing & Social Care,5105654491,12.09.2012,REDACTED PERSONAL DATA,Order Settlement,"1,930.32",ISLAND HEALTHCARE [SB] ****5494
Revenue,Community Wellbeing & Social Care,5105654491,12.09.2012,REDACTED PERSONAL DATA,Order Settlement,"1,930.32",ISLAND HEALTHCARE [SB] ****5494
Revenue,Community Wellbeing & Social Care,5105654491,12.09.2012,REDACTED PERSONAL DATA,Order Settlement,"1,642.20",ISLAND HEALTHCARE [SB] ****5494
Revenue,Community Wellbeing & Social Care,5105653654,05.09.2012,Elderly Mental Ill Residential Care,Charges from Independent Providers,879.75,ISLAND HEALTHCARE LTD [SB]
Revenue,Community Wellbeing & Social Care,5105654467,12.09.2012,Elderly Mental Ill Residential Care,Charges from Independent Providers,"1,930.32",ISLAND HEALTHCARE LTD [SB]
Revenue,Community Wellbeing & Social Care,5105654467,12.09.2012,Elderly Mental Ill Residential Care,Charges from Independent Providers,"1,642.20",ISLAND HEALTHCARE LTD [SB]
Revenue,Community Wellbeing & Social Care,5105654467,12.09.2012,Elderly Mental Ill Residential Care,Charges from Independent Providers,"2,800.00",ISLAND HEALTHCARE LTD [SB]
Revenue,Community Wellbeing & Social Care,5105654467,12.09.2012,Elderly Mental Ill Residential Care,Charges from Independent Providers,"1,642.20",ISLAND HEALTHCARE LTD [SB]
Revenue,Community Wellbeing & Social Care,5105655791,19.09.2012,Elderly Mental Ill Residential Care,Charges from Independent Providers,"1,231.65",ISLAND HEALTHCARE LTD [SB]
Revenue,Community Wellbeing & Social Care,5105658577,28.09.2012,Elderly Mental Ill Residential Care,Charges from Independent Providers,"1,193.64",ISLAND HEALTHCARE LTD [SB]
Revenue,Community Wellbeing & Social Care,5105658578,28.09.2012,Elderly Mental Ill Residential Care,Charges from Independent Providers,"1,524.90",ISLAND HEALTHCARE LTD [SB]
Revenue,Community Wellbeing & Social Care,5105654467,12.09.2012,Elderly Frail Residential Care,Charges from Independent Providers,"1,930.32",ISLAND HEALTHCARE LTD [SB]
Revenue,Community Wellbeing & Social Care,5105654467,12.09.2012,Elderly Frail Residential Care,Charges from Independent Providers,"1,930.32",ISLAND HEALTHCARE LTD [SB]
Revenue,Community Wellbeing & Social Care,5105654467,12.09.2012,Dementia Residential care,Charges from Independent Providers,"1,930.32",ISLAND HEALTHCARE LTD [SB]
Revenue,Community Wellbeing & Social Care,5105654467,12.09.2012,Dementia Residential care,Charges from Independent Providers,"1,930.32",ISLAND HEALTHCARE LTD [SB]
Revenue,Community Wellbeing & Social Care,5105656428,19.09.2012,Elderly Frail Daycare,Charges from Independent Providers,647.60,ISLAND HEALTHCARE LTD [SB]
Revenue,Community Wellbeing & Social Care,5105658346,28.09.2012,Elderly Mental Ill Residential Care,Regular Respite Care,"1,818.15",ISLAND HEALTHCARE LTD [SB]
Revenue,Community Wellbeing & Social Care,5105654467,12.09.2012,REDACTED PERSONAL DATA,Order Settlement,"1,642.20",ISLAND HEALTHCARE LTD [SB]
Revenue,Community Wellbeing & Social Care,5105654472,12.09.2012,Elderly Mental Ill Residential Care,Charges from Independent Providers,"1,930.32",ISLAND HEALTHCARE LTD [SB]
Revenue,Community Wellbeing & Social Care,5105654472,12.09.2012,Elderly Mental Ill Residential Care,Charges from Independent Providers,"1,930.32",ISLAND HEALTHCARE LTD [SB]
Revenue,Community Wellbeing & Social Care,5105654472,12.09.2012,Elderly Mental Ill Residential Care,Charges from Independent Providers,"1,642.20",ISLAND HEALTHCARE LTD [SB]
Revenue,Community Wellbeing & Social Care,5105654472,12.09.2012,Elderly Mental Ill Residential Care,Charges from Independent Providers,"1,930.32",ISLAND HEALTHCARE LTD [SB]
Revenue,Community Wellbeing & Social Care,5105654472,12.09.2012,Elderly Mental Ill Residential Care,Charges from Independent Providers,"1,930.32",ISLAND HEALTHCARE LTD [SB]
Revenue,Community Wellbeing & Social Care,5105655323,14.09.2012,Elderly Mental Ill Residential Care,Charges from Independent Providers,"1,930.32",ISLAND HEALTHCARE LTD [SB]
Revenue,Community Wellbeing & Social Care,5105654472,12.09.2012,Elderly Frail Nursing Island,Charges from Independent Providers,"2,598.12",ISLAND HEALTHCARE LTD [SB]
Revenue,Community Wellbeing & Social Care,5105654472,12.09.2012,Elderly Frail Nursing Island,Charges from Independent Providers,"2,598.12",ISLAND HEALTHCARE LTD [SB]
Revenue,Community Wellbeing & Social Care,5105654472,12.09.2012,Physical Disability Nursing Island,Charges from Independent Providers,"2,598.12",ISLAND HEALTHCARE LTD [SB]
Revenue,Community Wellbeing & Social Care,5105654472,12.09.2012,Elderly Frail Nursing Island,Charges from Independent Providers,"2,598.12",ISLAND HEALTHCARE LTD [SB]
Revenue,Community Wellbeing & Social Care,5105654472,12.09.2012,Elderly Frail Nursing Island,Charges from Independent Providers,"2,598.12",ISLAND HEALTHCARE LTD [SB]
Revenue,Community Wellbeing & Social Care,5105654472,12.09.2012,Elderly Mentally Ill Nursing Island,Charges from Independent Providers,"2,598.12",ISLAND HEALTHCARE LTD [SB]
Revenue,Community Wellbeing & Social Care,5105654472,12.09.2012,Elderly Mentally Ill Nursing Island,Charges from Independent Providers,"2,598.12",ISLAND HEALTHCARE LTD [SB]
Revenue,Community Wellbeing & Social Care,5105654472,12.09.2012,Elderly Frail Nursing Island,Charges from Independent Providers,"2,598.12",ISLAND HEALTHCARE LTD [SB]
Revenue,Community Wellbeing & Social Care,5105654472,12.09.2012,Elderly Frail Nursing Island,Charges from Independent Providers,"2,598.12",ISLAND HEALTHCARE LTD [SB]
Revenue,Community Wellbeing & Social Care,5105654472,12.09.2012,Elderly Frail Nursing Island,Charges from Independent Providers,"2,598.12",ISLAND HEALTHCARE LTD [SB]
Revenue,Community Wellbeing & Social Care,5105654472,12.09.2012,Elderly Frail Nursing Island,Charges from Independent Providers,"2,598.12",ISLAND HEALTHCARE LTD [SB]
Revenue,Community Wellbeing & Social Care,5105654472,12.09.2012,Elderly Frail Nursing Island,Charges from Independent Providers,"2,598.12",ISLAND HEALTHCARE LTD [SB]
Revenue,Community Wellbeing & Social Care,5105654472,12.09.2012,Elderly Frail Residential Care,Charges from Independent Providers,"3,050.32",ISLAND HEALTHCARE LTD [SB]
Revenue,Community Wellbeing & Social Care,5105658347,28.09.2012,Elderly Frail Nursing Island,Charges from Independent Providers,"5,196.24",ISLAND HEALTHCARE LTD [SB]
Revenue,Community Wellbeing & Social Care,5105654472,12.09.2012,Dementia Residential care,Charges from Independent Providers,"1,930.32",ISLAND HEALTHCARE LTD [SB]
Revenue,Community Wellbeing & Social Care,5105654472,12.09.2012,Dementia Residential care,Charges from Independent Providers,"1,642.20",ISLAND HEALTHCARE LTD [SB]
Revenue,Community Wellbeing & Social Care,5105654472,12.09.2012,Dementia Residential care,Charges from Independent Providers,"1,930.32",ISLAND HEALTHCARE LTD [SB]
Revenue,Community Wellbeing & Social Care,5105654472,12.09.2012,REDACTED PERSONAL DATA,Order Settlement,"2,598.12",ISLAND HEALTHCARE LTD [SB]
Revenue,Community Wellbeing & Social Care,5105654472,12.09.2012,REDACTED PERSONAL DATA,Order Settlement,"2,598.12",ISLAND HEALTHCARE LTD [SB]
Revenue,Community Wellbeing & Social Care,5105654472,12.09.2012,REDACTED PERSONAL DATA,Order Settlement,"2,598.12",ISLAND HEALTHCARE LTD [SB]
Revenue,Community Wellbeing & Social Care,5105654472,12.09.2012,REDACTED PERSONAL DATA,Order Settlement,504.68,ISLAND HEALTHCARE LTD [SB]
Revenue,Community Wellbeing & Social Care,5105654472,12.09.2012,REDACTED PERSONAL DATA,Order Settlement,"1,642.20",ISLAND HEALTHCARE LTD [SB]
Revenue,Community Wellbeing & Social Care,5105654503,12.09.2012,Elderly Mental Ill Residential Care,Charges from Independent Providers,"1,930.32",ISLAND HEALTHCARE LTD [SB]
Revenue,Community Wellbeing & Social Care,5105654503,12.09.2012,Learning Disabilities Residential Care,Charges from Independent Providers,"2,545.76",ISLAND HEALTHCARE LTD [SB]
Revenue,Community Wellbeing & Social Care,5105654503,12.09.2012,Elderly Mental Ill Residential Care,Charges from Independent Providers,"1,930.32",ISLAND HEALTHCARE LTD [SB]
Revenue,Community Wellbeing & Social Care,5105654503,12.09.2012,Elderly Mental Ill Residential Care,Charges from Independent Providers,"1,930.32",ISLAND HEALTHCARE LTD [SB]
Revenue,Community Wellbeing & Social Care,5105654503,12.09.2012,Elderly Mental Ill Residential Care,Charges from Independent Providers,"1,930.32",ISLAND HEALTHCARE LTD [SB]
Revenue,Community Wellbeing & Social Care,5105654503,12.09.2012,Elderly Mental Ill Residential Care,Charges from Independent Providers,"1,642.20",ISLAND HEALTHCARE LTD [SB]
Revenue,Community Wellbeing & Social Care,5105654503,12.09.2012,Elderly Mental Ill Residential Care,Charges from Independent Providers,"1,642.20",ISLAND HEALTHCARE LTD [SB]
Revenue,Community Wellbeing & Social Care,5105654503,12.09.2012,Elderly Mental Ill Residential Care,Charges from Independent Providers,"1,642.20",ISLAND HEALTHCARE LTD [SB]
Revenue,Community Wellbeing & Social Care,5105654503,12.09.2012,Learning Disabilities Residential Care,Charges from Independent Providers,"2,545.76",ISLAND HEALTHCARE LTD [SB]
Revenue,Community Wellbeing & Social Care,5105654503,12.09.2012,Elderly Mental Ill Residential Care,Charges from Independent Providers,"1,930.32",ISLAND HEALTHCARE LTD [SB]
Revenue,Community Wellbeing & Social Care,5105654503,12.09.2012,Elderly Mental Ill Residential Care,Charges from Independent Providers,"1,642.20",ISLAND HEALTHCARE LTD [SB]
Revenue,Community Wellbeing & Social Care,5105654503,12.09.2012,Elderly Mental Ill Residential Care,Charges from Independent Providers,"1,930.32",ISLAND HEALTHCARE LTD [SB]
Revenue,Community Wellbeing & Social Care,5105654503,12.09.2012,Elderly Mental Ill Residential Care,Charges from Independent Providers,"1,930.32",ISLAND HEALTHCARE LTD [SB]
Revenue,Community Wellbeing & Social Care,5105657390,21.09.2012,Elderly Mental Ill Residential Care,Charges from Independent Providers,"1,034.10",ISLAND HEALTHCARE LTD [SB]
Revenue,Community Wellbeing & Social Care,5105657391,21.09.2012,Elderly Mental Ill Residential Care,Charges from Independent Providers,896.22,ISLAND HEALTHCARE LTD [SB]
Revenue,Community Wellbeing & Social Care,5105654503,12.09.2012,Elderly Frail Residential Care,Charges from Independent Providers,"1,642.20",ISLAND HEALTHCARE LTD [SB]
Revenue,Community Wellbeing & Social Care,5105655804,19.09.2012,Elderly Frail Residential Care,Charges from Independent Providers,821.10,ISLAND HEALTHCARE LTD [SB]
Revenue,Community Wellbeing & Social Care,5105655805,19.09.2012,Elderly Frail Residential Care,Charges from Independent Providers,"3,284.40",ISLAND HEALTHCARE LTD [SB]
Revenue,Community Wellbeing & Social Care,5105653668,05.09.2012,Mental Health Residential Care,Charges from Independent Providers,"1,930.32",ISLAND HEALTHCARE LTD [SB]
Revenue,Community Wellbeing & Social Care,5105654503,12.09.2012,Dementia Residential care,Charges from Independent Providers,"1,642.20",ISLAND HEALTHCARE LTD [SB]
Revenue,Community Wellbeing & Social Care,5105654503,12.09.2012,Dementia Residential care,Charges from Independent Providers,"1,642.20",ISLAND HEALTHCARE LTD [SB]
Revenue,Community Wellbeing & Social Care,5105654503,12.09.2012,Dementia Residential care,Charges from Independent Providers,"1,642.20",ISLAND HEALTHCARE LTD [SB]
Revenue,Community Wellbeing & Social Care,5105655325,14.09.2012,Mental Health Residential Care,Charges from Independent Providers,"1,930.32",ISLAND HEALTHCARE LTD [SB]
Revenue,Community Wellbeing & Social Care,5105654503,12.09.2012,REDACTED PERSONAL DATA,Order Settlement,"1,930.32",ISLAND HEALTHCARE LTD [SB]
Revenue,Community Wellbeing & Social Care,5105654503,12.09.2012,REDACTED PERSONAL DATA,Order Settlement,"1,642.20",ISLAND HEALTHCARE LTD [SB]
Revenue,Community Wellbeing & Social Care,5105658357,28.09.2012,Elderly Mental Ill Residential Care,Regular Respite Care,"1,818.15",ISLAND HEALTHCARE LTD [SB]
Revenue,Community Wellbeing & Social Care,5105654503,12.09.2012,REDACTED PERSONAL DATA,Order Settlement,"1,642.20",ISLAND HEALTHCARE LTD [SB]
Revenue,Community Wellbeing & Social Care,5105654503,12.09.2012,REDACTED PERSONAL DATA,Order Settlement,"1,930.32",ISLAND HEALTHCARE LTD [SB]
Revenue,Community Wellbeing & Social Care,1700046013,12.09.2012,Full Nursing Care Island,Charges from Independent Providers,-823.09,ISLAND HEALTHCARE LTD [SB]
Revenue,Community Wellbeing & Social Care,1700046020,12.09.2012,Elderly Mental Ill Residential Care,Refund of Overpayments,"-1,440.60",ISLAND HEALTHCARE LTD [SB]
Revenue,Community Wellbeing & Social Care,1900567988,19.09.2012,Full Nursing Care Island,Charges from Independent Providers,"1,646.18",ISLAND HEALTHCARE LTD [SB]
Revenue,Community Wellbeing & Social Care,1700046070,12.09.2012,Elderly Mental Ill Residential Care,Refund of Overpayments,-827.28,ISLAND HEALTHCARE LTD [SB]
Revenue,Community Wellbeing & Social Care,5105653516,05.09.2012,Homelessness,Accommodation Costs - Leaseholder Payments,780.00,ISLAND LETTINGS LTD [HZ]
Revenue,Community Wellbeing & Social Care,5105653516,05.09.2012,Homelessness,Accommodation Costs - Leaseholder Payments,888.33,ISLAND LETTINGS LTD [HZ]
Capital,Community Wellbeing & Social Care,1900561942,12.09.2012,Disabled Facility Grants,Capital Grants,"5,250.00",ISLAND MOBILITY
Capital,Community Wellbeing & Social Care,1900567867,19.09.2012,Disabled Facility Grants,Capital Grants,"1,025.00",ISLAND MOBILITY
Revenue,Community Wellbeing & Social Care,5105657907,26.09.2012,Elderly Frail Other Care,Charges from Independent Providers,"1,480.00",ISLAND PEST CONTROL LIMITED
Revenue,Community Wellbeing & Social Care,1900561924,12.09.2012,Homelessness Prevention,Accommodation Costs - Service Users,600.00,ISLAND PROPERTIES RES. LETTINGS
Capital,Community Wellbeing & Social Care,1900561878,12.09.2012,Disabled Facility Grants,Capital Grants,"1,005.50",ISLAND SUPPORT & DESIGN
Capital,Community Wellbeing & Social Care,1900561697,07.09.2012,Disabled Facility Grants,Capital Grants,"1,682.80",ISLAND SUPPORT & DESIGN
Capital,Resources,5105655747,14.09.2012,Capital Receipts,Payment to Contractors - Capital,825.00,ISLAND SURVEY SYSTEMS LTD
Revenue,Economy & Environment,5105653798,12.09.2012,Island Waste Landfill Tax,Payment to Private Contractors,"54,978.56",ISLAND WASTE SERVICES
Revenue,Economy & Environment,5105653806,12.09.2012,Island Waste Refuse Collection Contract,Payment to Private Contractors,"7,443.75",ISLAND WASTE SERVICES
Revenue,Economy & Environment,5105653745,05.09.2012,Island Waste Landfill Tax,Payment to Private Contractors,"42,016.00",ISLAND WASTE SERVICES
Revenue,Economy & Environment,5105658060,26.09.2012,Island Waste Landfill Tax,Payment to Private Contractors,"46,594.56",ISLAND WASTE SERVICES
Revenue,Economy & Environment,5105658061,26.09.2012,Island Waste Landfill Tax,Payment to Private Contractors,"38,209.28",ISLAND WASTE SERVICES
Revenue,Economy & Environment,5105655598,14.09.2012,Island Waste Refuse Collection Contract,Payment to Private Contractors,"2,009.00",ISLAND WASTE SERVICES
Revenue,Economy & Environment,5105655597,14.09.2012,Island Waste Refuse Collection Contract,Payment to Private Contractors,537.00,ISLAND WASTE SERVICES
Revenue,Economy & Environment,5105655928,19.09.2012,Island Waste Refuse Collection Contract,Waste Contractors,"264,070.55",ISLAND WASTE SERVICES
Revenue,Economy & Environment,5105655928,19.09.2012,Island Waste Refuse Disposal Contract,Waste Contractors,"215,269.01",ISLAND WASTE SERVICES
Revenue,Economy & Environment,5105655928,19.09.2012,Island Waste Recycling Contract,Waste Contractors,"62,899.76",ISLAND WASTE SERVICES
Revenue,"Chief Executive, Schools & Learning",5105656831,21.09.2012,Tuition Centres,Schools Learning Resources (not ICT),540.00,ISLAND YOUTH WATER ACT.CTR(IW)LTD
Revenue,Community Wellbeing & Social Care,5105647639,19.09.2012,Positive Activities,Payments to Voluntary and Other Associations,756.00,ISLAND YOUTH WATER ACT.CTR(IW)LTD
Revenue,Community Wellbeing & Social Care,5105654451,12.09.2012,Elderly Mental Ill Residential Care,Charges from Independent Providers,"1,567.72",ISLANDCARE LTD [SB]
Revenue,Community Wellbeing & Social Care,5105654451,12.09.2012,Elderly Frail Residential Care,Charges from Independent Providers,"1,567.72",ISLANDCARE LTD [SB]
Revenue,Community Wellbeing & Social Care,5105654451,12.09.2012,Elderly Frail Residential Care,Charges from Independent Providers,"1,567.72",ISLANDCARE LTD [SB]
Revenue,Community Wellbeing & Social Care,5105654451,12.09.2012,Elderly Frail Residential Care,Charges from Independent Providers,"1,930.32",ISLANDCARE LTD [SB]
Revenue,Community Wellbeing & Social Care,5105654451,12.09.2012,Elderly Frail Residential Care,Charges from Independent Providers,"1,930.32",ISLANDCARE LTD [SB]
Revenue,Community Wellbeing & Social Care,5105654451,12.09.2012,Elderly Frail Residential Care,Charges from Independent Providers,"1,567.72",ISLANDCARE LTD [SB]
Revenue,Community Wellbeing & Social Care,5105654451,12.09.2012,Elderly Frail Residential Care,Charges from Independent Providers,"1,567.72",ISLANDCARE LTD [SB]
Revenue,Community Wellbeing & Social Care,5105654451,12.09.2012,Elderly Frail Residential Care,Charges from Independent Providers,"1,757.00",ISLANDCARE LTD [SB]
Revenue,Community Wellbeing & Social Care,5105654451,12.09.2012,Elderly Frail Residential Care,Charges from Independent Providers,"1,567.72",ISLANDCARE LTD [SB]
Revenue,Community Wellbeing & Social Care,5105658026,26.09.2012,Elderly Frail Residential Care,Charges from Independent Providers,"1,567.72",ISLANDCARE LTD [SB]
Revenue,Community Wellbeing & Social Care,5105658027,26.09.2012,Elderly Frail Residential Care,Charges from Independent Providers,"1,287.77",ISLANDCARE LTD [SB]
Revenue,Community Wellbeing & Social Care,5105658028,26.09.2012,Elderly Frail Residential Care,Charges from Independent Providers,"1,309.86",ISLANDCARE LTD [SB]
Revenue,Community Wellbeing & Social Care,5105654451,12.09.2012,REDACTED PERSONAL DATA,Order Settlement,"1,567.72",ISLANDCARE LTD [SB]
Revenue,Community Wellbeing & Social Care,5105654451,12.09.2012,REDACTED PERSONAL DATA,Order Settlement,"1,567.72",ISLANDCARE LTD [SB]
Capital,"Chief Executive, Schools & Learning",5105655785,21.09.2012,Schools Reorganisation,Payment to Contractors - Capital,"1,895.00",ISLANDWIDE GROUNDS MAINTENANCE LTD
Capital,"Chief Executive, Schools & Learning",5105655937,19.09.2012,Schools Reorganisation,Payment to Contractors - Capital,"19,065.54",ISLANDWIDE GROUNDS MAINTENANCE LTD
Capital,"Chief Executive, Schools & Learning",5105655903,19.09.2012,Schools Reorganisation,Payment to Contractors - Capital,"3,460.40",ISLANDWIDE GROUNDS MAINTENANCE LTD
Capital,"Chief Executive, Schools & Learning",5105655905,19.09.2012,Schools Reorganisation,Payment to Contractors - Capital,"2,419.15",ISLANDWIDE GROUNDS MAINTENANCE LTD
Revenue,"Chief Executive, Schools & Learning",5105653735,05.09.2012,Grounds Maintenance - Delegated,Grounds Maintenance,"2,511.31",ISLANDWIDE GROUNDS MAINTENANCE LTD
Revenue,"Chief Executive, Schools & Learning",5105655901,19.09.2012,Grounds Maintenance - Non-Delegated,Grounds Maintenance,"2,387.93",ISLANDWIDE GROUNDS MAINTENANCE LTD
Revenue,"Chief Executive, Schools & Learning",5105655297,14.09.2012,Grounds Maintenance - Non-Delegated,Grounds Maintenance,"8,076.00",ISLANDWIDE GROUNDS MAINTENANCE LTD
Revenue,"Chief Executive, Schools & Learning",5105656832,21.09.2012,Tuition Centres,Schools Learning Resources (not ICT),588.00,ISLE OF WIGHT COLLEGE
Revenue,Community Wellbeing & Social Care,5105657689,21.09.2012,Hospital Team,Agency staff,"1,961.00",ISLE OF WIGHT PROFESSIONAL SUPPORT
Revenue,Economy & Environment,5105657259,26.09.2012,A.O.N.B.,Hire of facilities,560.00,ISLE OF WIGHT RAILWAY TRADING LTD
Revenue,Community Wellbeing & Social Care,5105657984,26.09.2012,Vol Sector OP,Payments to Voluntary and Other Associations,"34,000.00",IW CITIZENS ADVICE BUREAU [SG]
Revenue,Economy & Environment,5105654352,19.09.2012,IW Cycling Festival,Advertising & Publicity,"2,000.00",IW COUNTY PRESS LTD
Revenue,Economy & Environment,5105655180,14.09.2012,Traffic Management,Advertising & Publicity,742.00,IW COUNTY PRESS LTD
Revenue,"Chief Executive, Schools & Learning",5105657261,21.09.2012,Adult Community Learning,Advertising & Publicity,829.08,IW COUNTY PRESS LTD
Revenue,Economy & Environment,5105657288,21.09.2012,Traffic Management,Advertising & Publicity,636.00,IW COUNTY PRESS LTD
Revenue,Community Wellbeing & Social Care,5105658471,28.09.2012,SP Homelessness,Payment to Private Contractors,"11,481.99",IW LAW CENTRE LTD [SP]
Revenue,Community Wellbeing & Social Care,5105658472,28.09.2012,SP Risk of Offending,Payment to Private Contractors,831.43,IW LAW CENTRE LTD [SP]
Revenue,Community Wellbeing & Social Care,5105657914,26.09.2012,Drugs / Alcohol,Payment to Private Contractors,"4,963.75",IW NHS PRIMARY CARE TRUST
Revenue,"Chief Executive, Schools & Learning",5105657289,21.09.2012,Social Worker Improvement Fund,Training,"2,910.00",IW NHS PRIMARY CARE TRUST
Revenue,Community Wellbeing & Social Care,5105651908,19.09.2012,Drug Action Team Adults,Payments to Health Authorities,"70,238.00",IW NHS PRIMARY CARE TRUST
Revenue,Community Wellbeing & Social Care,5105653571,05.09.2012,Drug Action Team Adults,Payments to Health Authorities,"63,919.00",IW NHS PRIMARY CARE TRUST
Revenue,Community Wellbeing & Social Care,5105655622,19.09.2012,Improve Info Sharing,Payments to Health Authorities,"10,000.00",IW NHS PRIMARY CARE TRUST
Revenue,Community Wellbeing & Social Care,5105651908,19.09.2012,Independent Domestic Abuse Services (NHS Trust),Payments to Health Authorities,"149,354.17",IW NHS PRIMARY CARE TRUST
Revenue,Community Wellbeing & Social Care,5105653571,05.09.2012,Independent Domestic Abuse Services (NHS Trust),Payments to Health Authorities,"153,284.00",IW NHS PRIMARY CARE TRUST
Revenue,Resources,5105657789,26.09.2012,"29,High St,Newport",Building & Room Rent,"11,000.00",IWCP RENT ACCOUNT [RE]
Revenue,Community Wellbeing & Social Care,5105658592,28.09.2012,SP Domestic Violence,Payment to Private Contractors,"4,570.71",IWR
Revenue,Community Wellbeing & Social Care,5105658614,28.09.2012,SP Domestic Violence,Payment to Private Contractors,"4,643.58",IWR
Revenue,Economy & Environment,5105653981,07.09.2012,Environmental Maintenance Other Roads,Highways Minor Works,"1,432.45",J A DEMPSEY CIVIL ENG [SB] NON CIS
Revenue,Economy & Environment,5105655951,19.09.2012,Environmental Maintenance Other Roads,Highways Minor Works,574.29,J A DEMPSEY CIVIL ENG [SB] NON CIS
Revenue,Community Wellbeing & Social Care,5105654520,12.09.2012,Learning Disabilities Residential Care,Charges from Independent Providers,"1,757.00",REDACTED PERSONAL DATA
Revenue,Community Wellbeing & Social Care,5105654520,12.09.2012,Learning Disabilities Residential Care,Charges from Independent Providers,"2,545.76",REDACTED PERSONAL DATA
Revenue,Community Wellbeing & Social Care,5105654520,12.09.2012,Learning Disabilities Residential Care,Charges from Independent Providers,"1,757.00",REDACTED PERSONAL DATA
Revenue,Community Wellbeing & Social Care,5105654520,12.09.2012,Learning Disabilities Residential Care,Charges from Independent Providers,"1,757.00",REDACTED PERSONAL DATA
Revenue,Community Wellbeing & Social Care,5105654520,12.09.2012,Learning Disabilities Residential Care,Charges from Independent Providers,"1,757.00",REDACTED PERSONAL DATA
Revenue,Community Wellbeing & Social Care,5105654520,12.09.2012,Learning Disabilities Residential Care,Charges from Independent Providers,"1,757.00",REDACTED PERSONAL DATA
Revenue,Community Wellbeing & Social Care,5105654520,12.09.2012,Learning Disabilities Residential Care,Charges from Independent Providers,"1,757.00",REDACTED PERSONAL DATA
Revenue,Community Wellbeing & Social Care,5105654520,12.09.2012,Learning Disabilities Residential Care,Charges from Independent Providers,"2,545.76",REDACTED PERSONAL DATA
Revenue,Community Wellbeing & Social Care,5105654520,12.09.2012,Learning Disabilities Residential Care,Charges from Independent Providers,"1,757.00",REDACTED PERSONAL DATA
Revenue,Community Wellbeing & Social Care,5105653482,05.09.2012,Homelessness,Accommodation Costs - Bed & Breakfast,"5,115.00",REDACTED PERSONAL DATA
Revenue,Community Wellbeing & Social Care,5105653482,05.09.2012,Homelessness,Accommodation Costs - Bed & Breakfast,511.50,REDACTED PERSONAL DATA
Capital,Economy & Environment,5105656410,19.09.2012,Cremator Replacement,"Plant, Equipment & Furniture - Capital","105,075.00",J G SHELTON & CO. LTD
Revenue,Community Wellbeing & Social Care,1900561701,07.09.2012,Leaving Care  Costs,Support for Looked After Children,"1,000.00",REDACTED PERSONAL DATA
Revenue,"Chief Executive, Schools & Learning",1900568557,21.09.2012,Graduate Leader,Grants to External Bodies,"5,000.00",REDACTED PERSONAL DATA
Capital,Economy & Environment,5105654014,07.09.2012,ROW Capital Programme,Payment to Contractors - Capital,"11,979.00",JA DEMPSEY CIVIL ENG LTD [SB]
Revenue,Economy & Environment,5105654016,07.09.2012,Structural Maintenance Principle Roads,Highways Minor Works,"1,262.63",JA DEMPSEY CIVIL ENG LTD [SB]
Revenue,Economy & Environment,5105658500,28.09.2012,Structural Maintenance Principle Roads,Highways Minor Works,535.86,JA DEMPSEY CIVIL ENG LTD [SB]
Revenue,Economy & Environment,5105657055,21.09.2012,Public Realm contract,Highways Minor Works,506.74,JA DEMPSEY CIVIL ENG LTD [SB]
Revenue,Economy & Environment,5105654026,07.09.2012,Safety Maintenance Other Roads,Highways Minor Works,950.00,JA DEMPSEY CIVIL ENG LTD [SB]
Revenue,Economy & Environment,5105654031,07.09.2012,Safety Maintenance Other Roads,Highways Minor Works,516.28,JA DEMPSEY CIVIL ENG LTD [SB]
Revenue,Economy & Environment,5105654004,07.09.2012,Parking Maintenance Off Street,Highways Minor Works,761.45,JA DEMPSEY CIVIL ENG LTD [SB]
Revenue,Economy & Environment,5105657994,26.09.2012,Parking Maintenance Off Street,Highways Minor Works,"1,280.00",JA DEMPSEY CIVIL ENG LTD [SB]
Revenue,Economy & Environment,5105653999,07.09.2012,Structural Maintenance Other Roads,Highways Minor Works,"1,190.81",JA DEMPSEY CIVIL ENG LTD [SB]
Revenue,Economy & Environment,5105654002,07.09.2012,Structural Maintenance Other Roads,Highways Minor Works,726.14,JA DEMPSEY CIVIL ENG LTD [SB]
Revenue,Economy & Environment,5105654019,07.09.2012,Structural Maintenance Other Roads,Highways Minor Works,"1,801.71",JA DEMPSEY CIVIL ENG LTD [SB]
Revenue,Economy & Environment,5105654024,07.09.2012,Structural Maintenance Other Roads,Highways Minor Works,"1,325.59",JA DEMPSEY CIVIL ENG LTD [SB]
Revenue,Economy & Environment,5105654027,07.09.2012,Structural Maintenance Other Roads,Highways Minor Works,527.69,JA DEMPSEY CIVIL ENG LTD [SB]
Revenue,Economy & Environment,5105654029,07.09.2012,Structural Maintenance Other Roads,Highways Minor Works,608.09,JA DEMPSEY CIVIL ENG LTD [SB]
Revenue,Economy & Environment,5105653996,07.09.2012,Structural Maintenance Other Roads,Highways Minor Works,"2,854.59",JA DEMPSEY CIVIL ENG LTD [SB]
Revenue,Economy & Environment,5105655240,12.09.2012,Structural Maintenance Other Roads,Highways Minor Works,500.93,JA DEMPSEY CIVIL ENG LTD [SB]
Revenue,Economy & Environment,5105657061,21.09.2012,Structural Maintenance Other Roads,Highways Minor Works,914.83,JA DEMPSEY CIVIL ENG LTD [SB]
Revenue,Economy & Environment,5105656414,19.09.2012,Structural Maintenance Other Roads,Highways Minor Works,857.28,JA DEMPSEY CIVIL ENG LTD [SB]
Revenue,Economy & Environment,5105656415,19.09.2012,Structural Maintenance Other Roads,Highways Minor Works,724.18,JA DEMPSEY CIVIL ENG LTD [SB]
Revenue,Economy & Environment,5105655960,19.09.2012,Structural Maintenance Other Roads,Highways Minor Works,"1,221.87",JA DEMPSEY CIVIL ENG LTD [SB]
Revenue,Economy & Environment,5105655961,19.09.2012,Structural Maintenance Other Roads,Highways Minor Works,"2,682.90",JA DEMPSEY CIVIL ENG LTD [SB]
Capital,Economy & Environment,5105655962,19.09.2012,Bus Infrastructure,Payment to Contractors - Capital,"2,080.05",JA DEMPSEY CIVIL ENG LTD [SB]
Revenue,Economy & Environment,5105655963,19.09.2012,Structural Maintenance Other Roads,Highways Minor Works,"1,656.69",JA DEMPSEY CIVIL ENG LTD [SB]
Revenue,Economy & Environment,5105658510,28.09.2012,Structural Maintenance Other Roads,Highways Minor Works,937.00,JA DEMPSEY CIVIL ENG LTD [SB]
Capital,Economy & Environment,5105658511,28.09.2012,Bus Infrastructure,Payment to Contractors - Capital,661.39,JA DEMPSEY CIVIL ENG LTD [SB]
Revenue,Economy & Environment,5105658514,28.09.2012,Structural Maintenance Other Roads,Highways Minor Works,578.21,JA DEMPSEY CIVIL ENG LTD [SB]
Revenue,Economy & Environment,5105657722,26.09.2012,Structural Maintenance Other Roads,Highways Minor Works,706.53,JA DEMPSEY CIVIL ENG LTD [SB]
Revenue,Economy & Environment,5105657993,26.09.2012,Structural Maintenance Other Roads,Highways Minor Works,"3,414.72",JA DEMPSEY CIVIL ENG LTD [SB]
Revenue,Economy & Environment,5105657339,21.09.2012,Structural Maintenance Other Roads,Highways Minor Works,"1,362.39",JA DEMPSEY CIVIL ENG LTD [SB]
Revenue,Economy & Environment,5105657332,21.09.2012,Structural Maintenance Other Roads,Highways Minor Works,539.58,JA DEMPSEY CIVIL ENG LTD [SB]
Revenue,Economy & Environment,5105657335,21.09.2012,Structural Maintenance Other Roads,Highways Minor Works,526.63,JA DEMPSEY CIVIL ENG LTD [SB]
Revenue,Economy & Environment,5105657336,21.09.2012,Structural Maintenance Other Roads,Highways Minor Works,"1,026.31",JA DEMPSEY CIVIL ENG LTD [SB]
Revenue,Economy & Environment,5105657338,21.09.2012,Structural Maintenance Other Roads,Highways Minor Works,"1,540.91",JA DEMPSEY CIVIL ENG LTD [SB]
Revenue,Economy & Environment,5105657327,21.09.2012,Structural Maintenance Other Roads,Highways Minor Works,"3,786.80",JA DEMPSEY CIVIL ENG LTD [SB]
Revenue,Economy & Environment,5105657041,21.09.2012,Structural Maintenance Other Roads,Highways Minor Works,"1,116.38",JA DEMPSEY CIVIL ENG LTD [SB]
Revenue,Economy & Environment,5105657046,21.09.2012,Structural Maintenance Other Roads,Highways Minor Works,869.86,JA DEMPSEY CIVIL ENG LTD [SB]
Revenue,Economy & Environment,5105657052,21.09.2012,Structural Maintenance Other Roads,Highways Minor Works,815.39,JA DEMPSEY CIVIL ENG LTD [SB]
Revenue,Economy & Environment,5105657058,21.09.2012,Structural Maintenance Other Roads,Highways Minor Works,726.55,JA DEMPSEY CIVIL ENG LTD [SB]
Revenue,Economy & Environment,5105658517,28.09.2012,Structural Maintenance Other Roads,Highways Minor Works,963.52,JA DEMPSEY CIVIL ENG LTD [SB]
Revenue,Economy & Environment,5105658518,28.09.2012,Structural Maintenance Other Roads,Highways Minor Works,578.64,JA DEMPSEY CIVIL ENG LTD [SB]
Revenue,Economy & Environment,5105658492,28.09.2012,Structural Maintenance Other Roads,Highways Minor Works,"1,716.03",JA DEMPSEY CIVIL ENG LTD [SB]
Revenue,Economy & Environment,5105658493,28.09.2012,Structural Maintenance Other Roads,Highways Minor Works,974.12,JA DEMPSEY CIVIL ENG LTD [SB]
Revenue,Economy & Environment,5105658499,28.09.2012,Structural Maintenance Other Roads,Highways Minor Works,714.33,JA DEMPSEY CIVIL ENG LTD [SB]
Revenue,Economy & Environment,5105658501,28.09.2012,Structural Maintenance Other Roads,Highways Minor Works,635.08,JA DEMPSEY CIVIL ENG LTD [SB]
Revenue,Economy & Environment,5105658504,28.09.2012,Structural Maintenance Other Roads,Highways Minor Works,"1,216.57",JA DEMPSEY CIVIL ENG LTD [SB]
Capital,Economy & Environment,5105655656,14.09.2012,Bus Infrastructure,Payment to Contractors - Capital,"6,510.59",JA DEMPSEY CIVIL ENG LTD [SB]
Revenue,Economy & Environment,5105655658,14.09.2012,Structural Maintenance Other Roads,Highways Minor Works,747.67,JA DEMPSEY CIVIL ENG LTD [SB]
Revenue,Economy & Environment,5105655660,14.09.2012,Structural Maintenance Other Roads,Highways Minor Works,626.82,JA DEMPSEY CIVIL ENG LTD [SB]
Revenue,Economy & Environment,5105655650,14.09.2012,Structural Maintenance Other Roads,Highways Minor Works,"1,734.93",JA DEMPSEY CIVIL ENG LTD [SB]
Revenue,Economy & Environment,5105655650,14.09.2012,Structural Maintenance Other Roads,Highways Minor Works,"1,701.00",JA DEMPSEY CIVIL ENG LTD [SB]
Revenue,Economy & Environment,5105655650,14.09.2012,Structural Maintenance Other Roads,Highways Minor Works,"1,740.41",JA DEMPSEY CIVIL ENG LTD [SB]
Revenue,Economy & Environment,5105655650,14.09.2012,Structural Maintenance Other Roads,Highways Minor Works,"1,691.87",JA DEMPSEY CIVIL ENG LTD [SB]
Revenue,Economy & Environment,5105655651,14.09.2012,Structural Maintenance Other Roads,Highways Minor Works,606.24,JA DEMPSEY CIVIL ENG LTD [SB]
Revenue,Community Wellbeing & Social Care,5105654887,12.09.2012,Elderly Mental Ill Residential Care,Charges from Independent Providers,"1,458.80",JAH-JIREH CHARITY HOMES [SB]
Revenue,Community Wellbeing & Social Care,1900568626,26.09.2012,Elderly Frail Non-Residential Income,Client Contributions,"2,700.00",REDACTED PERSONAL DATA
Revenue,Resources,5105656404,19.09.2012,Litigation Costs,Legal Fees - Other Parties,"1,150.00",REDACTED PERSONAL DATA
Revenue,Community Wellbeing & Social Care,5105654442,12.09.2012,Mental Health Residential Care,Charges from Independent Providers,"2,570.96",JEWISH CARE [SB]
Revenue,Resources,5105655635,14.09.2012,Shared Services Manager,Professional Services,"1,080.00",JMC AG LTD
Capital,Community Wellbeing & Social Care,1900561698,07.09.2012,Disabled Facility Grants,Capital Grants,"3,848.63",JOHN NICHOLSON LTD
Revenue,Economy & Environment,5105656346,19.09.2012,Brighstone Grounds Mtce,Payment to Private Contractors,"6,460.82",JOHN O CONNER GROUNDS
Revenue,Economy & Environment,5105657770,26.09.2012,Brighstone Grounds Mtce,Payment to Private Contractors,"6,372.68",JOHN O CONNER GROUNDS
Revenue,Economy & Environment,5105657768,26.09.2012,Brighstone Grounds Mtce,Payment to Private Contractors,"32,238.72",JOHN O CONNER GROUNDS
Revenue,Economy & Environment,5105657769,26.09.2012,Environmental Maintenance Other Roads,Payment to Private Contractors,"19,222.00",JOHN O CONNER GROUNDS
Revenue,Economy & Environment,5105657769,26.09.2012,Environmental Maintenance Principal Roads,Payment to Private Contractors,"4,805.50",JOHN O CONNER GROUNDS
Revenue,Economy & Environment,5105654118,28.09.2012,Cemeteries Admin,Grounds Maintenance,"15,737.96",JOHN O CONNER GROUNDS
Revenue,Economy & Environment,5105654115,28.09.2012,Cemeteries Admin,Grounds Maintenance,"2,085.48",JOHN O CONNER GROUNDS
Revenue,Economy & Environment,5105653568,05.09.2012,A.O.N.B. Projects,Consultants Fees,800.00,JONATHAN COX ASSOCIATES LTD
Revenue,"Chief Executive, Schools & Learning",5105653603,05.09.2012,Grounds Maintenance - Non-Delegated,Grounds Maintenance,880.00,JRR FENCING LTD
Revenue,Community Wellbeing & Social Care,5105653513,05.09.2012,Homelessness,Accommodation Costs - Leaseholder Payments,780.00,REDACTED PERSONAL DATA
Revenue,"Chief Executive, Schools & Learning",1900568633,26.09.2012,Graduate Leader,Training,860.00,REDACTED PERSONAL DATA
Capital,Community Wellbeing & Social Care,1900567952,19.09.2012,Disabled Facility Grants,Capital Grants,"2,993.24",REDACTED PERSONAL DATA
Revenue,Community Wellbeing & Social Care,5105654493,12.09.2012,Learning Disabilities Residential Care,Charges from Independent Providers,"1,757.00",REDACTED PERSONAL DATA
Revenue,Community Wellbeing & Social Care,5105654493,12.09.2012,Mental Health Residential Care,Charges from Independent Providers,"1,567.72",REDACTED PERSONAL DATA
Revenue,Community Wellbeing & Social Care,5105654493,12.09.2012,Mental Health Residential Care,Charges from Independent Providers,"1,567.72",REDACTED PERSONAL DATA
Revenue,Community Wellbeing & Social Care,5105654493,12.09.2012,Mental Health Residential Care,Charges from Independent Providers,"1,567.72",REDACTED PERSONAL DATA
Revenue,Community Wellbeing & Social Care,5105654493,12.09.2012,Mental Health Residential Care,Charges from Independent Providers,"1,567.72",REDACTED PERSONAL DATA
Revenue,Community Wellbeing & Social Care,5105654493,12.09.2012,Mental Health Residential Care,Charges from Independent Providers,"1,567.72",REDACTED PERSONAL DATA
Revenue,Community Wellbeing & Social Care,5105654493,12.09.2012,Mental Health Residential Care,Charges from Independent Providers,"1,567.72",REDACTED PERSONAL DATA
Revenue,Community Wellbeing & Social Care,5105654493,12.09.2012,Mental Health Residential Care,Charges from Independent Providers,"1,567.72",REDACTED PERSONAL DATA
Revenue,Community Wellbeing & Social Care,5105654493,12.09.2012,Mental Health Residential Care,Charges from Independent Providers,"1,567.72",REDACTED PERSONAL DATA
Revenue,Community Wellbeing & Social Care,5105653510,05.09.2012,Homelessness,Accommodation Costs - Leaseholder Payments,780.00,REDACTED PERSONAL DATA
Revenue,Community Wellbeing & Social Care,5105653510,05.09.2012,Homelessness,Accommodation Costs - Leaseholder Payments,780.00,REDACTED PERSONAL DATA
Revenue,Community Wellbeing & Social Care,5105653510,05.09.2012,Homelessness,Accommodation Costs - Leaseholder Payments,780.00,REDACTED PERSONAL DATA
Revenue,Community Wellbeing & Social Care,5105653510,05.09.2012,Homelessness,Accommodation Costs - Leaseholder Payments,742.26,REDACTED PERSONAL DATA
Revenue,Community Wellbeing & Social Care,5105653510,05.09.2012,Homelessness,Accommodation Costs - Leaseholder Payments,769.43,REDACTED PERSONAL DATA
Revenue,Community Wellbeing & Social Care,5105654495,12.09.2012,Elderly Mental Ill Residential Care,Charges from Independent Providers,"1,930.32",REDACTED PERSONAL DATA
Revenue,Community Wellbeing & Social Care,5105654495,12.09.2012,Elderly Mental Ill Residential Care,Charges from Independent Providers,"1,930.32",REDACTED PERSONAL DATA
Revenue,Community Wellbeing & Social Care,5105654495,12.09.2012,Elderly Mental Ill Residential Care,Charges from Independent Providers,"1,930.32",REDACTED PERSONAL DATA
Revenue,Community Wellbeing & Social Care,5105654495,12.09.2012,Elderly Mental Ill Residential Care,Charges from Independent Providers,"1,930.32",REDACTED PERSONAL DATA
Revenue,Community Wellbeing & Social Care,5105654495,12.09.2012,Elderly Mental Ill Residential Care,Charges from Independent Providers,"1,930.32",REDACTED PERSONAL DATA
Revenue,Community Wellbeing & Social Care,5105654495,12.09.2012,Elderly Mental Ill Residential Care,Charges from Independent Providers,"1,930.32",REDACTED PERSONAL DATA
Revenue,Community Wellbeing & Social Care,5105654495,12.09.2012,Elderly Mental Ill Residential Care,Charges from Independent Providers,"1,930.32",REDACTED PERSONAL DATA
Revenue,Community Wellbeing & Social Care,5105654495,12.09.2012,Elderly Mental Ill Residential Care,Charges from Independent Providers,"1,930.32",REDACTED PERSONAL DATA
Revenue,Community Wellbeing & Social Care,5105654495,12.09.2012,Elderly Frail Residential Care,Charges from Independent Providers,"1,930.32",REDACTED PERSONAL DATA
Revenue,Community Wellbeing & Social Care,5105654495,12.09.2012,Dementia Residential care,Charges from Independent Providers,"1,930.32",REDACTED PERSONAL DATA
Revenue,Community Wellbeing & Social Care,5105654495,12.09.2012,Dementia Residential care,Charges from Independent Providers,"1,930.32",REDACTED PERSONAL DATA
Revenue,Community Wellbeing & Social Care,5105654495,12.09.2012,Dementia Residential care,Charges from Independent Providers,"1,930.32",REDACTED PERSONAL DATA
Revenue,Community Wellbeing & Social Care,5105654495,12.09.2012,Dementia Residential care,Charges from Independent Providers,"1,642.20",REDACTED PERSONAL DATA
Revenue,Community Wellbeing & Social Care,5105654459,12.09.2012,Elderly Frail Residential Care,Charges from Independent Providers,"1,757.00",REDACTED PERSONAL DATA
Revenue,Community Wellbeing & Social Care,5105654459,12.09.2012,Mental Health Residential Care,Charges from Independent Providers,"1,930.32",REDACTED PERSONAL DATA
Revenue,Community Wellbeing & Social Care,5105654459,12.09.2012,Mental Health Residential Care,Charges from Independent Providers,"1,567.72",REDACTED PERSONAL DATA
Revenue,Community Wellbeing & Social Care,5105654459,12.09.2012,Mental Health Residential Care,Charges from Independent Providers,"1,567.72",REDACTED PERSONAL DATA
Revenue,Community Wellbeing & Social Care,5105654459,12.09.2012,Mental Health Residential Care,Charges from Independent Providers,"1,567.72",REDACTED PERSONAL DATA
Revenue,Community Wellbeing & Social Care,5105654459,12.09.2012,Mental Health Residential Care,Charges from Independent Providers,"1,567.72",REDACTED PERSONAL DATA
Revenue,Community Wellbeing & Social Care,5105654459,12.09.2012,Mental Health Residential Care,Charges from Independent Providers,"1,567.72",REDACTED PERSONAL DATA
Revenue,Community Wellbeing & Social Care,5105654459,12.09.2012,Mental Health Residential Care,Charges from Independent Providers,"1,567.72",REDACTED PERSONAL DATA
Revenue,"Chief Executive, Schools & Learning",1900568632,26.09.2012,Graduate Leader,Training,860.00,REDACTED PERSONAL DATA
Revenue,Community Wellbeing & Social Care,5105653488,05.09.2012,Homelessness,Accommodation Costs - Leaseholder Payments,780.00,K&D ISLAND PROPERTY MANAGEMENT [HZ]
Revenue,Economy & Environment,5105657306,21.09.2012,"CP Victoria St, Ryde",Building & Room Rent,"1,421.25",KELLETT ROAD TRADING ESTATE [RE]
Revenue,"Chief Executive, Schools & Learning",5105653757,05.09.2012,School Reorganisation Consultation Costs,Professional Services,525.00,KEN BLOOMFIELD REMOVALS
Revenue,Economy & Environment,5105657291,21.09.2012,St Lighting - Energy,Street Lighting - Energy Contractors,"1,618.23",KENT COUNTY COUNCIL
Revenue,Economy & Environment,5105657262,21.09.2012,St Lighting - Energy,Street Lighting - Energy Contractors,"50,763.52",KENT COUNTY COUNCIL
Revenue,Community Wellbeing & Social Care,5105654475,12.09.2012,Mental Health Nursing Mainland,Charges from Independent Providers,"3,590.72",KINGSWOOD HOUSE NURSING HOME [SB]
Revenue,Community Wellbeing & Social Care,5105654448,12.09.2012,Elderly Frail Nursing Island,Charges from Independent Providers,"2,598.12",KITE HILL NURSING HOME [SB]
Revenue,Community Wellbeing & Social Care,5105654448,12.09.2012,Elderly Frail Nursing Island,Charges from Independent Providers,"2,598.12",KITE HILL NURSING HOME [SB]
Revenue,Community Wellbeing & Social Care,5105654448,12.09.2012,Elderly Frail Nursing Island,Charges from Independent Providers,"2,598.12",KITE HILL NURSING HOME [SB]
Revenue,Community Wellbeing & Social Care,5105654448,12.09.2012,Elderly Frail Nursing Island,Charges from Independent Providers,"2,598.12",KITE HILL NURSING HOME [SB]
Revenue,Community Wellbeing & Social Care,5105654310,12.09.2012,Elderly Frail Nursing Island,Charges from Independent Providers,"2,319.75",KITE HILL NURSING HOME [SB]
Revenue,Community Wellbeing & Social Care,5105654311,12.09.2012,Elderly Frail Nursing Island,Charges from Independent Providers,742.32,KITE HILL NURSING HOME [SB]
Revenue,Community Wellbeing & Social Care,5105654448,12.09.2012,Elderly Frail Nursing Island,Charges from Independent Providers,"2,598.12",KITE HILL NURSING HOME [SB]
Revenue,Community Wellbeing & Social Care,5105654448,12.09.2012,Elderly Frail Nursing Island,Charges from Independent Providers,"2,598.12",KITE HILL NURSING HOME [SB]
Revenue,Community Wellbeing & Social Care,5105654448,12.09.2012,Elderly Frail Nursing Island,Charges from Independent Providers,"2,598.12",KITE HILL NURSING HOME [SB]
Revenue,Community Wellbeing & Social Care,5105654448,12.09.2012,Elderly Frail Nursing Island,Charges from Independent Providers,"2,598.12",KITE HILL NURSING HOME [SB]
Revenue,Community Wellbeing & Social Care,5105654448,12.09.2012,Elderly Frail Nursing Island,Charges from Independent Providers,"2,598.12",KITE HILL NURSING HOME [SB]
Revenue,Community Wellbeing & Social Care,5105655571,14.09.2012,Elderly Frail Nursing Island,Charges from Independent Providers,"4,917.87",KITE HILL NURSING HOME [SB]
Revenue,Community Wellbeing & Social Care,5105655322,14.09.2012,Elderly Frail Nursing Island,Charges from Independent Providers,"7,794.36",KITE HILL NURSING HOME [SB]
Revenue,Community Wellbeing & Social Care,5105657726,26.09.2012,Elderly Frail Nursing Island,Charges from Independent Providers,"4,453.92",KITE HILL NURSING HOME [SB]
Revenue,Community Wellbeing & Social Care,5105657725,26.09.2012,Elderly Frail Nursing Island,Charges from Independent Providers,"2,598.12",KITE HILL NURSING HOME [SB]
Revenue,Community Wellbeing & Social Care,1700046128,26.09.2012,Elderly Frail Nursing Island,Refund of Overpayments,"-3,062.07",KITE HILL NURSING HOME [SB]
Revenue,Community Wellbeing & Social Care,1700046060,12.09.2012,REDACTED PERSONAL DATA,Order Settlement,"-2,783.70",KITE HILL NURSING HOME [SB]
Revenue,Community Wellbeing & Social Care,1700046021,05.09.2012,Elderly Mentally Ill Nursing Island,Refund of Overpayments,-835.11,KITE HILL NURSING HOME [SB]
Capital,Community Wellbeing & Social Care,1900569165,26.09.2012,Housing Renewal Assistance,Capital Grants,"4,560.00",KLS DEVELOPMENTS (IW) LTD
Revenue,"Chief Executive, Schools & Learning",1900555883,14.09.2012,Nursery Education,Payment to Private Contractors,"17,897.45",KNL CHILDCARE LTD [CC]
Revenue,"Chief Executive, Schools & Learning",1900555883,14.09.2012,Nursery Education,Payment to Private Contractors,"14,430.72",KNL CHILDCARE LTD [CC]
Revenue,"Chief Executive, Schools & Learning",1900555883,14.09.2012,Nursery Education,Payment to Private Contractors,"11,549.80",KNL CHILDCARE LTD [CC]
Revenue,"Chief Executive, Schools & Learning",1900568556,21.09.2012,Graduate Leader,Grants to External Bodies,"5,000.00",KNL CHILDCARE LTD [CC]
Revenue,Economy & Environment,1700046152,25.09.2012,IW Cycling Festival,Advertising & Publicity,-921.43,KOOZIES EUROPE
Revenue,Economy & Environment,1900561856,07.09.2012,IW Cycling Festival,Advertising & Publicity,921.43,KOOZIES EUROPE
Revenue,Economy & Environment,1900568575,21.09.2012,IW Cycling Festival,Advertising & Publicity,921.43,KOOZIES EUROPE
Revenue,Community Wellbeing & Social Care,5105653512,05.09.2012,Homelessness,Accommodation Costs - Leaseholder Payments,780.00,REDACTED PERSONAL DATA
Revenue,Community Wellbeing & Social Care,5105653512,05.09.2012,Homelessness,Accommodation Costs - Leaseholder Payments,780.00,REDACTED PERSONAL DATA
Revenue,Community Wellbeing & Social Care,5105654455,12.09.2012,Mental Health Residential Care,Charges from Independent Providers,"1,567.72",REDACTED PERSONAL DATA
Revenue,Community Wellbeing & Social Care,5105654455,12.09.2012,Mental Health Residential Care,Charges from Independent Providers,"1,567.72",REDACTED PERSONAL DATA
Revenue,Community Wellbeing & Social Care,5105654455,12.09.2012,Mental Health Residential Care,Charges from Independent Providers,"1,567.72",REDACTED PERSONAL DATA
Revenue,"Chief Executive, Schools & Learning",5105653770,05.09.2012,Children's Services Strategic Management,Bought in Prof Services - Curriculum (Schools),"5,400.00",REDACTED PERSONAL DATA
Revenue,"Chief Executive, Schools & Learning",5105653770,05.09.2012,Children's Services Strategic Management,Bought in Prof Services - Curriculum (Schools),700.00,REDACTED PERSONAL DATA
Revenue,Community Wellbeing & Social Care,5105653509,05.09.2012,Homelessness,Accommodation Costs - Leaseholder Payments,799.50,REDACTED PERSONAL DATA
Revenue,Economy & Environment,5105655862,19.09.2012,Cleansing Pavilions,Payment to Private Contractors,564.39,LAKE CLEANING & CATERING SUPPLIES
Revenue,Community Wellbeing & Social Care,5105657307,21.09.2012,Youth Offending Team,Building & Room Rent,"4,500.00",LAMBOURNES CHARTERED SURV [RE]
Revenue,Community Wellbeing & Social Care,5105654760,12.09.2012,Elderly Mental Ill Residential Care,Charges from Independent Providers,"1,660.12",LAUDCARE LTD [SB]
Revenue,Economy & Environment,5105655638,21.09.2012,Image Campaign,Advertising & Publicity,"7,399.25",LAWTON COMMUNICATIONS GROUP LTD
Revenue,Economy & Environment,5105655637,21.09.2012,Image Campaign,Advertising & Publicity,"7,399.25",LAWTON COMMUNICATIONS GROUP LTD
Revenue,Economy & Environment,5105655874,21.09.2012,Image Campaign,Advertising & Publicity,"1,954.17",LAWTON COMMUNICATIONS GROUP LTD
Revenue,Economy & Environment,5105658104,26.09.2012,Image Campaign,Advertising & Publicity,"6,146.00",LAWTON COMMUNICATIONS GROUP LTD
Revenue,Community Wellbeing & Social Care,5105658612,28.09.2012,SP PD,Payment to Private Contractors,"1,815.00",LEONARD CHESHIRE DISABILITY [SB]
Revenue,Community Wellbeing & Social Care,5105656067,19.09.2012,Mental Health Homecare,Charges from Independent Providers,"1,043.00",LEONARD CHESHIRE DISABILITY [SB]
Revenue,Community Wellbeing & Social Care,5105656068,19.09.2012,Elderly Mental Ill Homecare,Charges from Independent Providers,"1,855.00",LEONARD CHESHIRE DISABILITY [SB]
Revenue,Community Wellbeing & Social Care,5105656069,19.09.2012,Physical Disability Homecare,Charges from Independent Providers,784.00,LEONARD CHESHIRE DISABILITY [SB]
Revenue,Community Wellbeing & Social Care,5105656076,19.09.2012,Physical Disability Homecare,Charges from Independent Providers,"4,900.00",LEONARD CHESHIRE DISABILITY [SB]
Revenue,Community Wellbeing & Social Care,5105657458,21.09.2012,Physical Disability Homecare,Charges from Independent Providers,665.00,LEONARD CHESHIRE DISABILITY [SB]
Revenue,Community Wellbeing & Social Care,5105657458,21.09.2012,Physical Disability Homecare,Charges from Independent Providers,"1,590.00",LEONARD CHESHIRE DISABILITY [SB]
Revenue,Community Wellbeing & Social Care,5105654521,12.09.2012,Physical Disability Residential Care,Charges from Independent Providers,"4,287.08",LEONARD CHESHIRE DISABILITY [SB]
Revenue,Community Wellbeing & Social Care,5105654521,12.09.2012,Physical Disability Residential Care,Charges from Independent Providers,"4,219.04",LEONARD CHESHIRE DISABILITY [SB]
Revenue,Community Wellbeing & Social Care,5105654521,12.09.2012,Physical Disability Residential Care,Charges from Independent Providers,"4,271.96",LEONARD CHESHIRE DISABILITY [SB]
Revenue,Community Wellbeing & Social Care,5105654521,12.09.2012,Physical Disability Residential Care,Charges from Independent Providers,"3,860.36",LEONARD CHESHIRE DISABILITY [SB]
Revenue,Community Wellbeing & Social Care,5105654521,12.09.2012,Physical Disability Residential Care,Charges from Independent Providers,"3,599.96",LEONARD CHESHIRE DISABILITY [SB]
Revenue,Community Wellbeing & Social Care,5105654521,12.09.2012,Physical Disability Residential Care,Charges from Independent Providers,"3,599.96",LEONARD CHESHIRE DISABILITY [SB]
Revenue,Community Wellbeing & Social Care,5105654521,12.09.2012,Physical Disability Residential Care,Charges from Independent Providers,"3,332.84",LEONARD CHESHIRE DISABILITY [SB]
Revenue,Community Wellbeing & Social Care,5105654521,12.09.2012,Physical Disability Residential Care,Charges from Independent Providers,"4,206.44",LEONARD CHESHIRE DISABILITY [SB]
Revenue,Community Wellbeing & Social Care,5105654521,12.09.2012,Elderly Frail Residential Care,Charges from Independent Providers,"4,284.00",LEONARD CHESHIRE DISABILITY [SB]
Revenue,Community Wellbeing & Social Care,5105654315,12.09.2012,Agency Domicillary Care,Payments to Voluntary and Other Associations,945.00,LEONARD CHESHIRE DISABILITY [SB]
Revenue,Community Wellbeing & Social Care,5105655824,19.09.2012,Physical Disability Residential Care,Regular Respite Care,"3,983.40",LEONARD CHESHIRE DISABILITY [SB]
Revenue,Community Wellbeing & Social Care,5105654247,07.09.2012,Childrens Centre Maintenance,Minor Works,648.00,LIFELINE ALARM SYSTEMS LTD
Revenue,"Chief Executive, Schools & Learning",5105656335,19.09.2012,Commissioning - Adult & Community Learning,Grants to External Bodies,"7,000.00",REDACTED PERSONAL DATA
Revenue,"Chief Executive, Schools & Learning",1900568555,21.09.2012,Graduate Leader,Grants to External Bodies,"5,000.00",LITTLE EXPLORERS [CC]
Revenue,Community Wellbeing & Social Care,5105653656,05.09.2012,Elderly Mental Ill Residential Care,Charges from Independent Providers,"1,231.65",LITTLE HAYES REST HOME [SB]
Revenue,Community Wellbeing & Social Care,5105654470,12.09.2012,Elderly Mental Ill Residential Care,Charges from Independent Providers,"1,930.32",LITTLE HAYES REST HOME [SB]
Revenue,Community Wellbeing & Social Care,5105654470,12.09.2012,Elderly Mental Ill Residential Care,Charges from Independent Providers,"1,930.32",LITTLE HAYES REST HOME [SB]
Revenue,Community Wellbeing & Social Care,5105654470,12.09.2012,Elderly Frail Residential Care,Charges from Independent Providers,"1,567.72",LITTLE HAYES REST HOME [SB]
Revenue,Community Wellbeing & Social Care,5105654470,12.09.2012,Elderly Frail Residential Care,Charges from Independent Providers,"1,567.72",LITTLE HAYES REST HOME [SB]
Revenue,Community Wellbeing & Social Care,5105654470,12.09.2012,Elderly Frail Residential Care,Charges from Independent Providers,"1,567.72",LITTLE HAYES REST HOME [SB]
Revenue,Community Wellbeing & Social Care,5105654470,12.09.2012,Elderly Frail Residential Care,Charges from Independent Providers,"1,567.72",LITTLE HAYES REST HOME [SB]
Revenue,Community Wellbeing & Social Care,5105654470,12.09.2012,Elderly Frail Residential Care,Charges from Independent Providers,"1,567.72",LITTLE HAYES REST HOME [SB]
Revenue,Community Wellbeing & Social Care,5105654470,12.09.2012,Elderly Frail Residential Care,Charges from Independent Providers,"1,930.32",LITTLE HAYES REST HOME [SB]
Revenue,Community Wellbeing & Social Care,5105654470,12.09.2012,Elderly Frail Residential Care,Charges from Independent Providers,"1,567.72",LITTLE HAYES REST HOME [SB]
Revenue,Community Wellbeing & Social Care,5105655792,19.09.2012,Elderly Frail Residential Care,Charges from Independent Providers,"1,287.77",LITTLE HAYES REST HOME [SB]
Revenue,Community Wellbeing & Social Care,5105657731,26.09.2012,Elderly Frail Residential Care,Charges from Independent Providers,951.83,LITTLE HAYES REST HOME [SB]
Revenue,Community Wellbeing & Social Care,5105654470,12.09.2012,REDACTED PERSONAL DATA,Order Settlement,"1,642.20",LITTLE HAYES REST HOME [SB]
Revenue,Community Wellbeing & Social Care,5105653657,05.09.2012,Elderly Frail Residential Care,Regular Respite Care,551.52,LITTLE HAYES REST HOME [SB]
Revenue,"Chief Executive, Schools & Learning",5105656349,19.09.2012,Independent Sector,Training,"1,025.00",LOCAL GOVERNMENT OMBUDSMAN
Revenue,Community Wellbeing & Social Care,5105654522,12.09.2012,Elderly Mental Ill Residential Care,Charges from Independent Providers,"1,930.32",LONDON RESIDENTIAL HEALTHCARE [SB]
Revenue,Community Wellbeing & Social Care,5105654522,12.09.2012,Elderly Mental Ill Residential Care,Charges from Independent Providers,"1,642.20",LONDON RESIDENTIAL HEALTHCARE [SB]
Revenue,Community Wellbeing & Social Care,5105654522,12.09.2012,Elderly Mental Ill Residential Care,Charges from Independent Providers,"1,642.20",LONDON RESIDENTIAL HEALTHCARE [SB]
Revenue,Community Wellbeing & Social Care,5105654522,12.09.2012,Elderly Mental Ill Residential Care,Charges from Independent Providers,"1,642.20",LONDON RESIDENTIAL HEALTHCARE [SB]
Revenue,Community Wellbeing & Social Care,5105654522,12.09.2012,Elderly Mental Ill Residential Care,Charges from Independent Providers,"1,930.32",LONDON RESIDENTIAL HEALTHCARE [SB]
Revenue,Community Wellbeing & Social Care,5105654522,12.09.2012,Elderly Mental Ill Residential Care,Charges from Independent Providers,"1,930.32",LONDON RESIDENTIAL HEALTHCARE [SB]
Revenue,Community Wellbeing & Social Care,5105654522,12.09.2012,Elderly Mental Ill Residential Care,Charges from Independent Providers,"1,642.20",LONDON RESIDENTIAL HEALTHCARE [SB]
Revenue,Community Wellbeing & Social Care,5105654522,12.09.2012,Elderly Mental Ill Residential Care,Charges from Independent Providers,"1,567.72",LONDON RESIDENTIAL HEALTHCARE [SB]
Revenue,Community Wellbeing & Social Care,5105654522,12.09.2012,Elderly Mental Ill Residential Care,Charges from Independent Providers,"1,930.32",LONDON RESIDENTIAL HEALTHCARE [SB]
Revenue,Community Wellbeing & Social Care,5105654522,12.09.2012,Elderly Mental Ill Residential Care,Charges from Independent Providers,"1,930.32",LONDON RESIDENTIAL HEALTHCARE [SB]
Revenue,Community Wellbeing & Social Care,5105654522,12.09.2012,Elderly Mental Ill Residential Care,Charges from Independent Providers,"1,930.32",LONDON RESIDENTIAL HEALTHCARE [SB]
Revenue,Community Wellbeing & Social Care,5105655825,19.09.2012,Elderly Mental Ill Residential Care,Charges from Independent Providers,"4,692.00",LONDON RESIDENTIAL HEALTHCARE [SB]
Revenue,Community Wellbeing & Social Care,5105654522,12.09.2012,Physical Disability Nursing Island,Charges from Independent Providers,"2,598.12",LONDON RESIDENTIAL HEALTHCARE [SB]
Revenue,Community Wellbeing & Social Care,5105654522,12.09.2012,Elderly Mentally Ill Nursing Island,Charges from Independent Providers,"2,598.12",LONDON RESIDENTIAL HEALTHCARE [SB]
Revenue,Community Wellbeing & Social Care,5105654522,12.09.2012,Elderly Frail Residential Care,Charges from Independent Providers,"1,930.32",LONDON RESIDENTIAL HEALTHCARE [SB]
Revenue,Community Wellbeing & Social Care,5105654522,12.09.2012,Elderly Mentally Ill Nursing Island,Charges from Independent Providers,"2,598.12",LONDON RESIDENTIAL HEALTHCARE [SB]
Revenue,Community Wellbeing & Social Care,5105654522,12.09.2012,Elderly Frail Nursing Island,Charges from Independent Providers,"2,598.12",LONDON RESIDENTIAL HEALTHCARE [SB]
Revenue,Community Wellbeing & Social Care,5105654522,12.09.2012,Elderly Frail Residential Care,Charges from Independent Providers,"1,642.20",LONDON RESIDENTIAL HEALTHCARE [SB]
Revenue,Community Wellbeing & Social Care,5105654522,12.09.2012,Elderly Frail Nursing Island,Charges from Independent Providers,"2,598.12",LONDON RESIDENTIAL HEALTHCARE [SB]
Revenue,Community Wellbeing & Social Care,5105654522,12.09.2012,Elderly Mentally Ill Nursing Island,Charges from Independent Providers,"2,598.12",LONDON RESIDENTIAL HEALTHCARE [SB]
Revenue,Community Wellbeing & Social Care,5105654522,12.09.2012,Elderly Frail Nursing Island,Charges from Independent Providers,"2,598.12",LONDON RESIDENTIAL HEALTHCARE [SB]
Revenue,Community Wellbeing & Social Care,5105655263,12.09.2012,Elderly Frail Nursing Island,Charges from Independent Providers,"6,309.72",LONDON RESIDENTIAL HEALTHCARE [SB]
Revenue,Community Wellbeing & Social Care,5105657796,26.09.2012,Elderly Frail Nursing Island,Charges from Independent Providers,"2,598.12",LONDON RESIDENTIAL HEALTHCARE [SB]
Revenue,Community Wellbeing & Social Care,5105654522,12.09.2012,Dementia Residential care,Charges from Independent Providers,"1,930.32",LONDON RESIDENTIAL HEALTHCARE [SB]
Revenue,Community Wellbeing & Social Care,5105654522,12.09.2012,Dementia Residential care,Charges from Independent Providers,"1,930.32",LONDON RESIDENTIAL HEALTHCARE [SB]
Revenue,Community Wellbeing & Social Care,5105654522,12.09.2012,Dementia Residential care,Charges from Independent Providers,"1,642.20",LONDON RESIDENTIAL HEALTHCARE [SB]
Revenue,Community Wellbeing & Social Care,5105654522,12.09.2012,Dementia Residential care,Charges from Independent Providers,"1,930.32",LONDON RESIDENTIAL HEALTHCARE [SB]
Revenue,Community Wellbeing & Social Care,5105654522,12.09.2012,REDACTED PERSONAL DATA,Order Settlement,"1,642.20",LONDON RESIDENTIAL HEALTHCARE [SB]
Revenue,Community Wellbeing & Social Care,5105654522,12.09.2012,REDACTED PERSONAL DATA,Order Settlement,"2,598.12",LONDON RESIDENTIAL HEALTHCARE [SB]
Revenue,Community Wellbeing & Social Care,1700045984,12.09.2012,REDACTED PERSONAL DATA,Order Settlement,"-4,639.50",LONDON RESIDENTIAL HEALTHCARE [SB]
Revenue,Community Wellbeing & Social Care,1700045992,12.09.2012,Elderly Frail Nursing Island,Refund of Overpayments,"-16,052.67",LONDON RESIDENTIAL HEALTHCARE [SB]
Revenue,Community Wellbeing & Social Care,1700046137,26.09.2012,REDACTED PERSONAL DATA,Order Settlement,-620.46,LONDON RESIDENTIAL HEALTHCARE [SB]
